{"text_format":"1","workbook":"xlsx","n_sheets":9,"sheets":["INSTRUCCIONES","INFORMACIÓN DE LA ORGANIZACIÓN","BD PLÁSTICOS","LB MENSUAL","ANÁLISIS CUANTITATIVO","INDICADORES","SEGUIMIENTO MENSUAL","BD SEGUIMIENTO MENSUAL","FICHAS TÉCNICAS DE PLÁSTICOS"],"not_rendered":{"charts":0,"images":6,"macros":1,"external_links":0,"defined_names":39,"comments":0,"pivot_tables":0},"unopened":[],"bounds":{"document_bytes":16777216,"sheet_cells":100000,"rows_first":2000,"rows_last":500,"rows_between":2000,"halvings":0,"cell_chars":16384,"cell_head_chars":4096},"cells_cut":0,"cells_raw":0,"read":"whole","date_system":"1900"}

{"sheet":"INSTRUCCIONES","index":0,"n_rows":80,"n_cols":8,"rows_kept":80,"cut":false,"hidden":false,"merged":[[72,1,72,11],[73,1,73,11],[54,1,54,11],[55,1,55,11],[56,1,56,11],[24,1,24,11],[25,1,25,11],[26,1,26,11],[40,1,40,11],[44,1,44,11],[45,1,45,11],[50,1,50,11],[52,1,52,11],[53,1,53,11],[30,1,30,11],[34,1,34,11],[35,1,35,11],[37,1,37,11],[58,1,58,11],[38,1,38,11],[39,1,39,11],[43,1,43,11],[49,1,49,11],[41,1,41,11],[22,1,22,11],[23,1,23,11],[3,1,3,11],[0,1,1,11],[5,1,5,11],[14,1,14,11],[7,1,7,4],[16,1,16,11],[17,1,17,11],[18,1,18,11],[7,7,7,10],[8,1,8,3],[9,1,9,3],[10,1,10,3],[9,7,9,9],[10,7,10,9],[8,7,8,9],[9,10,9,11],[10,10,10,11],[15,1,15,11],[12,1,12,11],[19,1,19,11],[20,1,20,11],[21,1,21,11],[42,1,42,11],[47,1,47,11],[33,1,33,11],[36,1,36,11],[46,1,46,11],[48,1,48,11],[27,1,27,11],[28,1,28,11],[29,1,29,11],[84,1,84,11],[85,1,85,11],[86,1,86,11],[87,1,87,11],[80,1,80,11],[81,1,81,11],[82,1,82,11],[79,1,79,11],[59,1,59,11],[78,1,78,11],[75,1,75,11],[60,1,60,11],[83,1,83,11],[76,1,76,11],[66,1,66,11],[61,1,61,11],[62,1,62,11],[63,1,63,11],[64,1,64,11],[65,1,65,11],[68,1,68,11],[69,1,69,11],[70,1,70,11],[71,1,71,11],[93,1,93,11],[94,1,94,11],[95,1,95,11],[96,1,96,11],[97,1,97,11],[88,1,88,11],[89,1,89,11],[90,1,90,11],[91,1,91,11],[92,1,92,11],[103,1,103,11],[104,1,104,11],[105,1,105,11],[106,1,106,11],[107,1,107,11],[98,1,98,11],[99,1,99,11],[100,1,100,11],[101,1,101,11],[102,1,102,11],[113,1,113,11],[114,1,114,11],[115,1,115,11],[116,1,116,11],[117,1,117,11],[108,1,108,11],[109,1,109,11],[110,1,110,11],[111,1,111,11],[112,1,112,11],[123,1,123,11],[124,1,124,11],[125,1,125,11],[126,1,126,11],[127,1,127,11],[118,1,118,11],[119,1,119,11],[120,1,120,11],[121,1,121,11],[122,1,122,11],[133,1,133,11],[134,1,134,11],[135,1,135,11],[136,1,136,11],[137,1,137,11],[128,1,128,11],[129,1,129,11],[130,1,130,11],[131,1,131,11],[132,1,132,11],[143,1,143,11],[144,1,144,11],[145,1,145,11],[146,1,146,11],[147,1,147,11],[138,1,138,11],[139,1,139,11],[140,1,140,11],[141,1,141,11],[142,1,142,11],[153,1,153,11],[154,1,154,11],[155,1,155,11],[156,1,156,11],[157,1,157,11],[148,1,148,11],[149,1,149,11],[150,1,150,11],[151,1,151,11],[152,1,152,11],[163,1,163,11],[164,1,164,11],[165,1,165,11],[166,1,166,11],[167,1,167,11],[158,1,158,11],[159,1,159,11],[160,1,160,11],[161,1,161,11],[162,1,162,11],[173,1,173,11],[174,1,174,11],[175,1,175,11],[176,1,176,11],[177,1,177,11],[168,1,168,11],[169,1,169,11],[170,1,170,11],[171,1,171,11],[172,1,172,11],[183,1,183,11],[184,1,184,11],[185,1,185,11],[186,1,186,11],[187,1,187,11],[178,1,178,11],[179,1,179,11],[180,1,180,11],[181,1,181,11],[182,1,182,11],[193,1,193,11],[194,1,194,11],[195,1,195,11],[196,1,196,11],[197,1,197,11],[188,1,188,11],[189,1,189,11],[190,1,190,11],[191,1,191,11],[192,1,192,11],[203,1,203,11],[204,1,204,11],[205,1,205,11],[206,1,206,11],[207,1,207,11],[198,1,198,11],[199,1,199,11],[200,1,200,11],[201,1,201,11],[202,1,202,11],[213,1,213,11],[214,1,214,11],[215,1,215,11],[216,1,216,11],[217,1,217,11],[208,1,208,11],[209,1,209,11],[210,1,210,11],[211,1,211,11],[212,1,212,11],[223,1,223,11],[224,1,224,11],[225,1,225,11],[226,1,226,11],[227,1,227,11],[218,1,218,11],[219,1,219,11],[220,1,220,11],[221,1,221,11],[222,1,222,11],[259,1,259,11],[260,1,260,11],[261,1,261,11],[31,1,31,11],[253,1,253,11],[254,1,254,11],[255,1,255,11],[256,1,256,11],[257,1,257,11],[248,1,248,11],[249,1,249,11],[250,1,250,11],[251,1,251,11],[258,1,258,11],[252,1,252,11],[243,1,243,11],[244,1,244,11],[245,1,245,11],[246,1,246,11],[228,1,228,11],[229,1,229,11],[230,1,230,11],[231,1,231,11],[232,1,232,11],[247,1,247,11],[238,1,238,11],[239,1,239,11],[240,1,240,11],[241,1,241,11],[242,1,242,11],[233,1,233,11],[234,1,234,11],[235,1,235,11],[236,1,236,11],[237,1,237,11]]}
[null,"GUÍA MENOS PLÁSTICO\nHerramientas para prevenir el consumo de plásticos en el sector turismo"]
[]
[]
[null,"\nEsta herramienta es el resultado de los trabajos de actualización realizados en la “Herramienta para la identificación de plásticos innecesarios en el sector del turismo” del proyecto OLAS. El proyecto OLAS fue el resultado de la alianza estratégica entre la empresa LafargeHolcim y la Deutsche Gesellschaft für Internationale Zusammenarbeit (GIZ) GmbH, esta última, trabajando por encargo del Ministerio Federal de Cooperación Económica y Desarrollo (BMZ) de Alemania.\n\nLos trabajos de actualización, se realizaron en el marco del proyecto  “Prevención de residuos plásticos en los mares de Centroamérica y el Caribe (Caribe Circular)” que es implementado por la Deutsche Gesellschaft für Internationale Zusammenarbeit (GIZ) GmbH, en coordinación con la Comisión Centroamericana de Ambiente y Desarrollo (CCAD) del Sistema de la Integración Centroamericana (SICA) y con la Secretaría de Ecología y Medio Ambiente (SEMA) del Estado de Quintana-Roo, México. Está financiado por la Unión Europea (UE) y el Ministerio Federal de Cooperación Económica y Desarrollo (BMZ) de Alemania.\n\nA través de su uso, se espera contribuir con el sector del turismo de Centroamérica y México para disminuir el consumo de productos de plástico que tienen el potencial de convertirse en contaminación marina."]
[]
[null,"INSTRUCCIONES"]
[]
[null,"CódiGo de colores de las hojas",null,null,null,null,null,"Código de color de las celdas"]
[null,"Las HOJAS GRISES contienen información general sobre la herramienta así como información de apoyo y consulta para el usuario.",null,null,null,null,null,"Las celdas grises muestran los encabezados de cada hoja."]
[null,"Las HOJAS de color VERDE contienen apartados donde el usuario deberá ingresar información.",null,null,null,null,null,"Las celdas de color verde claro señalan las columnas o celdas donde se deberá realizar  el registro de información por parte del usuario."]
[null,"Las HOJAS de color AZUL permiten la visualización de la información que se genera a partir del ingreso de Datos por parte del usuario.",null,null,null,null,null,"Las celdas de color azul claro señalan las columnas o celdas donde se despliega la información del análisis que realiza la herramienta."]
[]
[null,"Cuando tengas dudas sobre el significado de una instrucción, concepto o botón, puedes dar un clic sobre el elemento de la herramienta que genera la duda y te enviará a un apartado dentro de esta hoja para proporcionate información sobre ese elemento."]
[]
[null,"INFORMACIÓN DE LA ORGANIZACIÓN"]
[null,"En esta hoja se registra información general, como el nombre, ubicación y las acciones que realiza en temas de sustentabilidad, principalmente las que estén relacionadas con las compras sustentables y gestión de materiales o residuos. \n"]
[null,"Nombre. En esta celda se registra la razón social y el nombre comercial de la organización.\n\nES IMPORTANTE REGISTRAR CORRECTAMENTE EL NOMBRE DE LA ORGANIZACIÓN YA QUE ESTE SERÁ EL QUE SE USARÁ EN LOS REPORTES GENERADOS EN LA HERRAMIENTA DE POWER BI"]
[null,"Giro comercial. En esta celda se registra la actividad económica que realiza la empresa, por ejemplo, estancia, alojamiento, venta de alimentos, venta de bebidas, transporte, tours, etc. "]
[null,"No. de habitaciones/mesas/unidades/otro. En esta celda se registra la cantidad de habitaciones en el caso de los hoteles, en el caso de los restaurantes la cantidad de mesas, en el caso de las empresas tour operadoras, la cantidad de tours que realizan. Con esta información se podrán obtener indicadores como el consumo promedio de productos de plástico por habitación, por mesa, por tour, etc. "]
[null,"Promedio de huéspedes por habitación/clientes por mesa/otro.  En esta celda se registra la cantidad de huéspedes por habitación en el caso de los hoteles, en el caso de los restaurantes la cantidad de comensales por mesa y  en el caso de las empresas touroperadoras la cantidad de personas que participan en los tours por vehículo. Estos valores se pueden registrar de forma diaria, mensual o anual. Con esta información se podrán obtener indicadores como el el consumo promedio de productos de plástico por habitación, mesa o vehículo. "]
[null,"Año de registro de la Línea Base. Es el año al que corresponde la información que se ingresa para realziar el análisis de línea base con la herramienta. \n\nES MUY IMPORTANTE QUE SE REGISTRE CORRECTAMENTE EL AÑO, YA QUE SERÁ UTILIZADO PARA LOS REPORTES GENERADOS EN LA HERRAMIENTA DE POWER BI"]
[null,"Duración media de la estancia (Hoteles). En esta celda se registra el número de días promedio que un huésped permanece en las instalaciones del hotel. Esta información se puede utilizar para generar indicadores sobre el consumo promedio del huésped por hotel. "]
[null,"Servicios que ofrece. En esta celda se registran los servicios que se ofrecen dentro de la empresa, por ejemplo, en un hotel pueden darse los servicios de SPA, Restaurantes, etc. Esta información es útil para identificar las áreas de la empresa"]
[null,"No. de trabajadores. En esta celda se registra el número de colaboradores o trabajadores de la empresa, incluyendo administración y operación de la empresa, siempre y cuando se encuentren dentro de las instalaciones de esta y su estancia contribuya con la generación de residuos. Esta información es útil para obtener indicadores sobre la generación de residuos por parte de los colaboradores o personal de la empresa."]
[null,"País. Donde se encuentre ubicada la organización"]
[null,"Municipalidad. En la que esta ubicada la organización"]
[null,"Dirección. La dirección física de la organización"]
[null,"Ubicación geográfica. En esta celda se puede ingresar el vínculo de google earth u otra plataforma, que permita la ubicación en un sistema de geoposicionamiento de las instalaciones de la empresa. "]
[null,"Certificaciones con las que cuenta. En esta celda se registra el nombre de las certificaciones con las que cuenta y preferentemente un vínculo o forma de acceso a la información documental que la empresa presenta para la obtención de la certificación. "]
[null,"¿Cuenta con algún documento que contenga la política de sustentabilidad? En esta celda se debe registrar el nombre del documento y preferentemente el vínculo o forma en la que se puede tener acceso a la información relacionada con las políticas de sustentabildad de la organización, principalmente las relacionadas con compras sustentables o gestión de residuos. \n\n"]
[null,"Porcentaje de operación mensual. En este apartado se encuentran dos columnas, la de mes y la de % de ocupación. Esta útima se refiere al porentaje de operación que tuvo la organización mes con mes, por ejemplo, el porcentaje de ocupación que tuvo un hotel cada mes del año. \n\nCuando no se tiene acceso a la información de la compra mensual de los productos de plástico para registrar la línea base, se puede utilizar el porcentaje de ocupación de la organización para estimar la proporción del uso de los productos durante el año. Estas estimaciones serán utilizadas por las herrameintas de Powr BI para hacer proyecciones sobre los posbles ahorros y disminución de consumo de la organización así como para estimad una línea base mensual de consumo de porductos de plástico. \n\nESTOS DATOS SOLO DEBEN INGRESARSE CUANDO NO SE TENGA INFORMACIÓN DE LA COMPRA DE PRODUCTOS DE PLÁSTICO DE LOS MESES DEL AÑO DE LÍNEA BASE."]
[]
[]
[null,"BD PLÁSTICOS"]
[null,"En esta hoja se debe ingresar la información relacionada con los productos de plástico que se utilizan en los procesos de la organización por cada área. Esta información servirá para obtener los indicadores clave sobre el gasto que se realiza por cada uno de los productos de plástico que se usan, la cantidad de unidades del producto que se consumen o usan y el peso de los residuos que serán generados por estos consumos. Antes de iniciar con el registro, se recomienda seguir los siguientes pasos:\n\n- Realizar un recorrido por las áreas de la organización para identificar los plásticos de un solo uso que se consumen.\n- Solicitar al área de compras los registros de las compras de productos de plástico, distinguiendo qué área es la que los consume. Esta información debe corresponder al año anterior a la implementación de la herramienta.\n- Confirmar que lo observado durante el recorrido coincide con los registros de compras; en caso contrario, solicitar la información faltante.\n\nES IMPORTANTE TENER EN CUENTA QUE SE DEBE INGRESAR LA INFORMACIÓN RESULTANTE DE LA COMPRA TOTAL DEL AÑO ANTERIOR PARA CADA PRODUCTO. \n\nSIEMPRE SERÁ RECOMENDABLE INGRESAR INFORMACIÓN MENSUAL PARA GENERAR LA LÍNEA BASE, SI TIENES ESTOS DATOS, PUEDES INGRESARLOS EN LA HOJA LB MENSUAL"]
[null,"No.  Identificador. Este es un código que se le asigna al producto. Comúnmente la administración de la empresa podría tener un folio, código o número de producto previamente asignado a cada producto. En caso de que no exista alguno, se deberá asignar uno para realizar el registro del producto. Este número debe ser único.\n\nSe sugiere usar la siguiente nomenclatura: Dos letras del nombre del área de la empresa, 3 dígitos que indiquen el valor ordinal de ingreso. De esta forma si es el primer producto que se ingresa para el área de Cocina, el No. de Identificador quedaría CO001, si es el tercero quedaría: CO003. "]
[null,"Áreas de la organización. En esta celda se despliegan las áreas que fueron registradas en la hoja de NFORMACIÓN DE LA ORGANIZACIÓN."]
[null,"Productos de plástico. En esta celda se despliegan los productos de plástico que fueron registrados en la hoja de  INFORMACIÓN DE LA ORGANIZACIÓN, aquí se pueden utilizar los nombres comunes con los que la organización los reconoce o los a catalogádo en sus registros."]
[]
[null,"Tipos de empaque. En esta celda se despliegan las áreas que fueron registradas en el apartado de INFORMACIÓN DE LA ORGANIZACIÓN.  "]
[null,"Cantidad de producto por cada empaque. Esta celda se registra la cantidad de unidades, del producto que se está registrando, que están contenidas en cada empaque comprado.Por ejemplo el número de botellas de agua que se compran por cada caja, el número de cucharas desechables que se compran por cada bolsa, etc. "]
[null,"Cantidad de empaques adquiridos. En esta celda se registra la cantidad de  cajas, paquetes, fardos y cualquier otro tipo de empaque que se haya comprado en la que se contenían los productos."]
[null,"Gasto de adquisición por tipo de empaque. En esta celda se debe registrar la cantidad de dinero, expresado en unidades monetarias, que la empresa pagó por cada uno de los productos de  plástico. De esta forma se registrará en esta celda el gasto promedio mensual que la empresa realizó, por ejemplo: por un paquete de vasos, una caja de botellas de agua, etc. Se utiliza la cantidad de acuerdo con la moneda de cada país. Por ejemplo $25 pesos por cada caja de 200 botellas de agua, en el caso de México. "]
[null,"Tipos de manejo. En esta celda se despliegan los tipos de manejo que fueron registrados en el apartado de INFORMACIÓN DE LA ORGANIZACIÓN.  "]
[null,"Categoría de producto. Este apartado, despliega una las categorías, se debe seleccionar la que mejor identifica al producto. Las categorías se refieren al lugar donde está ubicado el producto o el propósito que cumple, por ejmplo, las amenidades de baño se refieren a los prodcutos que pueden utilizarse en el baño para la limpieza personal, como el jabón de baño, acondicionar, etc., mientas que la cateogría botellas de agua incluye a todo el tipo de botellas que se utilizan para contener agua. "]
[null,"Tipo de producto. Este apartado despliega una serie de nombres técnicos o comerciales, que se han identificado como comunes para referirse a algunos prodcutos de plástico. Se deberá seleccionar el nombre del producto con el que mejor pueda identificarse el producto de plástico que ya se ha registrado con el nombre con el que la organización lo identifica."]
[null,"Tipos de plástico. En esta celda se despliega, de forma automática, los tipos de plástico que se encuentran por default registrados en la hoja  FICHAS TÉCNICAS DE PLÁSTICO, una vez que se ha seleccionado la categoría y el tipo de plástico. Esta información corresponde a la clasificación de tipos de plástico más utilizada a nivel internacional. "]
[null,"Peso del producto de plástico.  Esta celda despliega, de forma automática, el peso en kilogramos de cada producto de plástico que se esté analizando, una vez que se ha seleccionado la categoría y el tipo de plástico."]
[null,"Objetivo. Esta columna esta relacionada con el Plan de Acción. En esta se registra el objetivo que se ha definido para cada producto, ya sea la Eliminación, Susutitución o Disminución."]
[null,"Porcentaje. Esta columna está vinculada con la anterior, la columna de Objetivo. En esta se registra el porcentaje que se buscará lograr alcanzar para la disminución del consumo por producto, es decir, si se eliminará completamente, se disminuriá cierto porcentaje el primer año o será sustituido completamente durante el siguiente año en el que se realicen acciones para la disminución."]
[null,"Botón de \"Guardar Plan de Acción en Seguimiento Mensual\". Una vez que se han seleccionado los productos que tienen algún objetivo y meta dentro del Plan de Acción, se deberá dar un clic en este botón, para que lso productos seleccionados se guarden en la hoja de seguimiento mensual, desde esta, podrás realziar la carga de información de seguimiento al cumplimiento del Plan de Acción. "]
[]
[null,"LB MENSUAL"]
[null,"Esta hoja tiene como función contener los datos sobre la compra de productos mes con mes de la Línea Base. El ingreso de la información ocurre a través de los siguienes procesos:"]
[null,"Ingreso de datos a través de la hoja Información de la Organización en el apartado \"Porcentaje de operación mensual\". Una vez que se han registrado los datos de operación mensual de la organización, se da un clic en el botón inferior guardar y automáticamente se estimará la proporción de uso de productos de acuerdo con la ocupación mensual. "]
[null,"Ingreso de datos de forma directa. Si cuentas con la información de la compra de productos de cada mes, para la generación de Línea Base, siemrpe será recomendable usar el ingreso directo de datos. El ingreso se realiza de la sigueinte forma:\n1. Registrar el número identificador del producto de plástico, únicamente de aquellos productos, "]
[null,"SIEMPRE SERÁ MEJOR UTILIZAR INFORMACIÓN DE CADA MES DE LA LÍNEA BASE, SOLO CUANDO NO SE CUENTE CON ESTOS DATOS SE RECOMIENDA USAR EL PORCENTAJE DE OCUPACIÓN PARA TENER UN VALOR ESTIMADO DEL USO MENSUAL DE LOS PRODUCTOS DE PLÁSTICO"]
[]
[null,"ANÁLISIS CUANTITATIVO"]
[null,"Este apartado analiza la información ingresada en BD PLÁSTICOS y la presenta de forma agrupada y resumida. \n\nContiene 3 tablas que presentan los siguientes resultados:"]
[null,"Inventario de productos de plástico. Se muestra los resultados, en valores mensuales y anuales, de la suma del peso, número de piezas y gasto realizado para la adquisición de los productos de plástico usados en el hotel."]
[null,"Inventario de tipos de plástico. Se muestra los resultados, en valores mensuales y anuales, de la suma del peso, número de piezas y gasto económico de los artículos de plástico usados en el hotel."]
[null,"Inventario de áreas del hotel. Se muestra los resultados, en valores mensuales y anuales, de la suma del peso, número de piezas y gasto económico de los artículos de plástico usados en el hotel."]
[null,"Los conceptos que se presentan en este apartado son los siguientes"]
[null,"Gasto de adquisición mensual. Este concepto se refiere al promedio mensual de dinero, expresado en unidades monetarias, que la empresa pagó por cada uno de los productos de  plástico. "]
[null,"Unidades del producto al mes. Este concepto se refiere a la cantidad promedio mensual de un tipo de producto de plástico que la empresa consumió durante un año . "]
[null,"Peso mensual. Este concepto se refiere al promedio mensual de los residuos generados de un tipo de producto de plástico durante un año, por el consumo realizado durante un año"]
[]
[null,"INDICADORES"]
[null,"En esta hoja se despliega de forma automática los indicadores sobre: Gasto en dinero por la adquisición, peso en kilogramos  y la cantidad o número de unidades de producto. \n\nEn este apartado se podrán identificar,  por su valor ordinal, los productos que se hayan ingresado en BD PLÁSTICOS. De esta forma a través de las celdas de la columna Posición Ordinal, se pueden ir realizando cambios en los número de las celdas para que se muestren los productos que ocupen el 1°, 2°, 3°... hasta la posición que se desee del rango de datos ingresado.\n\nSe pueden identificar 3 grandes  columnas:"]
[null,"Productos de mayor importancia de acuerdo con el indicador Gasto de Adquisición (GA). Se muestran los productos que ocupen la posición ordinal seleccionada con respecto al gasto que la empresa realizó para la adquisición total de ese tipo de producto. "]
[null,"Productos de mayor importancia de acuerdo con el indicador peso. Se muestran los productos que ocupen la posición ordinal seleccionada con respecto al peso en kilogramos"]
[null,"Productos de mayor importancia de acuerdo con el indicador cantidad de producto. Se muestran los productos que ocupen la posición ordinal seleccionada con respecto al número de unidades de producto adquirido. "]
[null,"Esta información, junto con el reporte de Power BI, ayudarán a tomar las decisiones sobre qué plásticos pueden ser eliminados o iniciar con la disminución del consumo. Antes de generar propuestas, se recomienda tener una discusión con el encargado de cada área del hotel en la que se desea intervenir para confirmar que se puede prescindir del uso de estos productos. Será necesario hacer una reflexión sobre el papel que juega el plástico en los procesos, si pueden ser sustituidos por otros materiales o por otros procesos. "]
[]
[null,"SEGUIMIENTO MENSUAL. "]
[null,"\nEn esta hoja se podrán registrar los datos mensuales con respecto a la compra de los productos de plástico, de esta forma se podrá dar seguimiento a los objetivos que fueron planteados para la disminución del consumo de los productos de plástico en el Plan de Acción. Aquí, aparecen la información de los productos de plástico a los que se les asignó algún objetivo para disminur el consumo en la organización y quee fueron guardados en la Hoja BD PLÁSTICOS.\n\nEste apartado tiene la misma estructura que la hoja BD PLÁSTICOS, pero la columna \"Cantidad de empaques adquiridos\", sombreada en color verde, no contiene datos, es aquí donde se registra la compra mensual de cada producto que está contemplado en el Plan de Acción. En el caso de que hayan cambiado algunas condiciones de la compra de los productos, como la cantidad de producto por empaque, o el costo, estos también pueden ser modificados cuando sea necesario. \n\nUna vez que se han ingresado los datos de la compra mensual, se deberá registrar el año y el mes al que corresponden, en las columnas correspondientes, que se encuentran al final de la tabla, también sobreadas en color verde. \n\nUna vez que se ha registrado completamente la información, se deberá dar un click en el botón guardar. Esta acción se deberá realizar mes con mes. En el caso de que la información se ingrese en periodos mayores a un mes, por ejemplo, cada trimestre, será recomendable realizar el ingreso de datos de cada uno de los meses del trimestre a reportar, si la información disponible corresponde al trimestre y no se puede desagregar para cada mes, se recomienda relacionarlo con el porcentaje de operación de la organización, para que la el consumo de los productos sea proporcional a la ocupación de cada mes. \n\n\n\n\n"]
[]
[null,"FICHAS TÉCNICAS DE PLÁSTICOS."]
[null,"En esta hoja se encuentran los registros sobre las características de algunos productos de plástico que pueden ser encontrados en un hotel. La información es utilizada para el llenado de las celdas que se encuentran en el apartado BD PLÁSTICOS, específicamente para el Peso del Producto y Tipo de Plástico. Es importante mencionar que el nombre y las características descritas en este apartado pueden variar en cada país o de acuerdo con la marca del producto. Para tener resultados más cercanos a la realidad, se deberá priorizar realizar los pesajes de los productos y en segundo lugar utilizar la información de este apartado. \n\nSi quieres realizar el ingreso de nuevos productos y sus características sigue los siguientes pasos:\n\n1. Si la categoría del producto existe, entonces inserta una fila entre los productos ya registrados, selecciona la información de las celdas de las columnas \"categoría\" y \"nombre de la categoría que están arriba de las celdas ingresadas, arrastra la información a tus nuevas celdas vacías  y listo, ingresa la información sobre las características del nuevo producto.\n\n2. Si no encuentras la categoría para incluir el nuevo producto entonces:\n-Escribe el nombre de la nueva categoría\n-Escribe la información del producto\n-Da un clic en la pestaña \"Formulas\"\n-Da un clic en la función \"Administrar nombres\"\n-Escribe el nombre de la nueva categoría\n-Da un clic en la flecha de la celda \"se refiere a\" y selecciona la información del producto\n-Listo ya lo puedes encontrar en la hoja BD Plásticos\n"]

{"sheet":"INFORMACIÓN DE LA ORGANIZACIÓN","index":1,"n_rows":23,"n_cols":8,"rows_kept":23,"cut":false,"hidden":false,"merged":[[8,1,8,2],[0,2,0,8],[2,1,2,4],[1,1,1,8],[2,7,2,8],[2,5,2,6]]}
[]
[null,"INFORMACIÓN DE LA ORGANIZACIÓN"]
[null,"ORGANIZACIÓN",null,null,null,"UBICACIÓN",null,"SUSTENTABILIDAD"]
[null,"Nombre ",null,"Año del registro de Línea Base",null,"País de origen",null,"Certificaciones con las que cuenta "]
[null,"Giro comercial ",null,"Duración media de la estancia (Hoteles)",null,"Municipalidad",null,"¿Cuenta con algún documento que contenga la política de sustentabilidad?"]
[null,"No. de habitaciones/mesas/unidades/otro",null,"Servicios que ofrece",null,"Dirección completa"]
[null,"Promedio de huéspedes por habitación/clientes por mesa/otro",null,"No. de trabajadores",null,"Ubicación geográfica"]
[]
[null,"Porcentaje de operación mensual"]
[null,"MES","% OCUPACIÓN","% MENSUAL"]
[null,"Enero",1,{"$f":"(C11*100/C$23)/100","v":8.3333333333333343E-2}]
[null,"Febrero",1,{"$f":"(C12*100/C$23)/100","v":8.3333333333333343E-2}]
[null,"Marzo",1,8.3333333333333343E-2]
[null,"Abril",1,8.3333333333333343E-2]
[null,"Mayo",1,8.3333333333333343E-2]
[null,"Junio",1,8.3333333333333343E-2]
[null,"Julio",1,8.3333333333333343E-2]
[null,"Agosto",1,8.3333333333333343E-2]
[null,"Septiembre",1,8.3333333333333343E-2]
[null,"Octubre",1,8.3333333333333343E-2]
[null,"Noviembre",1,8.3333333333333343E-2]
[null,"Diciembre",1,8.3333333333333343E-2]
[null,null,{"$f":"SUM(C11:C22)","v":12},{"$f":"SUM(D11:D22)","v":1.0000000000000002}]

{"sheet":"BD PLÁSTICOS","index":2,"n_rows":2,"n_cols":19,"rows_kept":2,"cut":false,"hidden":false,"merged":[[0,0,0,11],[0,12,0,13]]}
["INFORMACIÓN DE LÍNEA BASE",null,null,null,null,null,null,null,null,null,null,null,"PLAN  DE ACCIÓN"]
["No. IDENTIFICADOR","ÁREA DEL HOTEL","PRODUCTO DE PLÁSTICO","TIPO DE EMPAQUE","CANTIDAD DE PRODUCTO POR EMPAQUE","CANTIDAD DE EMPAQUES ADQUIRIDOS","GASTO REALIZADO POR CADA DE EMPAQUE","TIPO DE MANEJO","CATEGORÍA DEL PRODUCTO","TIPO DE PRODUCTO","PESO DEL PRODUCTO DE PLÁSTICO","TIPO DE PLÁSTICO","OBJETIVO","PORCENTAJE","Columna2","Columna1","GASTO DE ADQUISICIÓN ANUAL ","PESO TOTAL ANUAL DEL PRODUCTO","UNIDADES AL AÑO DE PRODUCTO"]

{"sheet":"LB MENSUAL","index":3,"n_rows":22,"n_cols":13,"rows_kept":22,"cut":false,"hidden":false,"merged":[[0,0,0,11]]}
["INFORMACIÓN DE LÍNEA BASE MENSUAL (CANTIDAD DE EMPAQUES ADQUIRIDOS POR MES)"]
["No. IDENTIFICADOR","Enero","Febrero","Marzo","Abril","Mayo","Junio","Julio","Agosto","Septiembre","Octubre","Noviembre","Diciembre"]
[1090,1800,2250,4050,2250,2400,4200,2850,2550,2250,1950,3600,1500]
[30544,21,15,21,4,28,18,22,23,5,4,19,15]
[1742,16,6,26,14,13,14,14,18,6,8,17,14]
[1744,20,45,25,31,64,25,65,90,21,9,20,0]
[1667,14,12,14,20,39,33,28,20,21,26,28,26]
[1668,20,19,6,20,14,35,31,10,26,27,31,30]
[1669,18,17,17,16,45,33,32,14,28,27,31,30]
[35681,600,0,2100,1200,2400,0,0,2400,0,0,0,0]
[45554,1344,384,2688,576,1920,1152,0,2688,2688,768,4032,768]
[1655,54,66,89,95,62,93,87,87,90,89,105,93]
[56996,750,100,735,1100,565,150,400,750,525,500,425,725]
[56998,50,50,225,125,225,350,275,100,250,75,325,175]
[56999,75,425,150,25,275,575,475,225,175,200,250,200]
[60204,8,13,13,6,7,11,3,13,24,6,4,12]
[37266,48,68,64,52,57,37,29,46,42,23,19,12]
[84115,175,100,175,100,300,125,50,0,0,0,0,0]
[60772,2,0,0,6,0,0,0,1,0,0,0,0]
[67288,400,0,0,0,0,0,0,0,0,0,0,0]
[67286,0,1200,0,0,0,0,0,0,0,0,0,0]
[67289,0,1500,0,0,0,0,0,200,0,0,0,0]

{"sheet":"ANÁLISIS CUANTITATIVO","index":4,"n_rows":274,"n_cols":9,"rows_kept":274,"cut":false,"hidden":false,"merged":[[1,1,1,4],[3,1,3,4],[223,1,223,4],[241,1,241,4],[2,1,2,4],[237,1,237,4],[219,1,219,4]]}
[]
[null,"ANÁLISIS CUANTITAVIVO"]
[]
[null," INVENTARIO DE PRODUCTOS DE PLÁSTICO"]
[null,"PRODUCTO","UNIDADES DEL PRODUCTO AL AÑO","PESO ANUAL (kg)","GASTO DE ADQUISCIÓN  ANUAL",null,"UNIDADES Aux","PESO Aux","GASTO Aux"]
[null,{"$f":"_xlfn.UNIQUE(_xlfn._xlws.FILTER(BDP[TIPO DE PRODUCTO],BDP[TIPO DE PRODUCTO]<> \"\"))","v":{"$error":"#VALUE!"}},{"$f":"SUMIF('BD PLÁSTICOS'!J:J,'ANÁLISIS CUANTITATIVO'!B6,'BD PLÁSTICOS'!S:S)","v":0},{"$f":"SUMIF('BD PLÁSTICOS'!J:J,'ANÁLISIS CUANTITATIVO'!B6,'BD PLÁSTICOS'!R:R)","v":0},{"$f":"SUMIF('BD PLÁSTICOS'!J:J,'ANÁLISIS CUANTITATIVO'!B6,'BD PLÁSTICOS'!Q:Q)","v":0},null,{"$f":"C6+(COUNTA($C$6:$C$219)-ROW()+20)*0.00001","v":2.2800000000000003E-3},{"$f":"D6+(COUNTA($C$6:$C$219)-ROW()+20)*0.00001","v":2.2800000000000003E-3},{"$f":"E6+(COUNTA($C$6:$C$219)-ROW()+20)*0.00001","v":2.2800000000000003E-3}]
[null,null,{"$f":"SUMIF('BD PLÁSTICOS'!J:J,'ANÁLISIS CUANTITATIVO'!B7,'BD PLÁSTICOS'!S:S)","v":0},{"$f":"SUMIF('BD PLÁSTICOS'!J:J,'ANÁLISIS CUANTITATIVO'!B7,'BD PLÁSTICOS'!R:R)","v":0},{"$f":"SUMIF('BD PLÁSTICOS'!J:J,'ANÁLISIS CUANTITATIVO'!B7,'BD PLÁSTICOS'!Q:Q)","v":0},null,2.2700000000000003E-3,2.2700000000000003E-3,2.2700000000000003E-3]
[null,null,{"$f":"SUMIF('BD PLÁSTICOS'!J:J,'ANÁLISIS CUANTITATIVO'!B8,'BD PLÁSTICOS'!S:S)","v":0},{"$f":"SUMIF('BD PLÁSTICOS'!J:J,'ANÁLISIS CUANTITATIVO'!B8,'BD PLÁSTICOS'!R:R)","v":0},{"$f":"SUMIF('BD PLÁSTICOS'!J:J,'ANÁLISIS CUANTITATIVO'!B8,'BD PLÁSTICOS'!Q:Q)","v":0},null,2.2600000000000003E-3,2.2600000000000003E-3,2.2600000000000003E-3]
[null,null,{"$f":"SUMIF('BD PLÁSTICOS'!J:J,'ANÁLISIS CUANTITATIVO'!B9,'BD PLÁSTICOS'!S:S)","v":0},{"$f":"SUMIF('BD PLÁSTICOS'!J:J,'ANÁLISIS CUANTITATIVO'!B9,'BD PLÁSTICOS'!R:R)","v":0},{"$f":"SUMIF('BD PLÁSTICOS'!J:J,'ANÁLISIS CUANTITATIVO'!B9,'BD PLÁSTICOS'!Q:Q)","v":0},null,2.2500000000000003E-3,2.2500000000000003E-3,2.2500000000000003E-3]
[null,null,{"$f":"SUMIF('BD PLÁSTICOS'!J:J,'ANÁLISIS CUANTITATIVO'!B10,'BD PLÁSTICOS'!S:S)","v":0},{"$f":"SUMIF('BD PLÁSTICOS'!J:J,'ANÁLISIS CUANTITATIVO'!B10,'BD PLÁSTICOS'!R:R)","v":0},{"$f":"SUMIF('BD PLÁSTICOS'!J:J,'ANÁLISIS CUANTITATIVO'!B10,'BD PLÁSTICOS'!Q:Q)","v":0},null,2.2400000000000002E-3,2.2400000000000002E-3,2.2400000000000002E-3]
[null,null,{"$f":"SUMIF('BD PLÁSTICOS'!J:J,'ANÁLISIS CUANTITATIVO'!B11,'BD PLÁSTICOS'!S:S)","v":0},{"$f":"SUMIF('BD PLÁSTICOS'!J:J,'ANÁLISIS CUANTITATIVO'!B11,'BD PLÁSTICOS'!R:R)","v":0},{"$f":"SUMIF('BD PLÁSTICOS'!J:J,'ANÁLISIS CUANTITATIVO'!B11,'BD PLÁSTICOS'!Q:Q)","v":0},null,2.2300000000000002E-3,2.2300000000000002E-3,2.2300000000000002E-3]
[null,null,{"$f":"SUMIF('BD PLÁSTICOS'!J:J,'ANÁLISIS CUANTITATIVO'!B12,'BD PLÁSTICOS'!S:S)","v":0},{"$f":"SUMIF('BD PLÁSTICOS'!J:J,'ANÁLISIS CUANTITATIVO'!B12,'BD PLÁSTICOS'!R:R)","v":0},{"$f":"SUMIF('BD PLÁSTICOS'!J:J,'ANÁLISIS CUANTITATIVO'!B12,'BD PLÁSTICOS'!Q:Q)","v":0},null,2.2200000000000002E-3,2.2200000000000002E-3,2.2200000000000002E-3]
[null,null,{"$f":"SUMIF('BD PLÁSTICOS'!J:J,'ANÁLISIS CUANTITATIVO'!B13,'BD PLÁSTICOS'!S:S)","v":0},{"$f":"SUMIF('BD PLÁSTICOS'!J:J,'ANÁLISIS CUANTITATIVO'!B13,'BD PLÁSTICOS'!R:R)","v":0},{"$f":"SUMIF('BD PLÁSTICOS'!J:J,'ANÁLISIS CUANTITATIVO'!B13,'BD PLÁSTICOS'!Q:Q)","v":0},null,2.2100000000000002E-3,2.2100000000000002E-3,2.2100000000000002E-3]
[null,null,{"$f":"SUMIF('BD PLÁSTICOS'!J:J,'ANÁLISIS CUANTITATIVO'!B14,'BD PLÁSTICOS'!S:S)","v":0},{"$f":"SUMIF('BD PLÁSTICOS'!J:J,'ANÁLISIS CUANTITATIVO'!B14,'BD PLÁSTICOS'!R:R)","v":0},{"$f":"SUMIF('BD PLÁSTICOS'!J:J,'ANÁLISIS CUANTITATIVO'!B14,'BD PLÁSTICOS'!Q:Q)","v":0},null,2.2000000000000001E-3,2.2000000000000001E-3,2.2000000000000001E-3]
[null,null,{"$f":"SUMIF('BD PLÁSTICOS'!J:J,'ANÁLISIS CUANTITATIVO'!B15,'BD PLÁSTICOS'!S:S)","v":0},{"$f":"SUMIF('BD PLÁSTICOS'!J:J,'ANÁLISIS CUANTITATIVO'!B15,'BD PLÁSTICOS'!R:R)","v":0},{"$f":"SUMIF('BD PLÁSTICOS'!J:J,'ANÁLISIS CUANTITATIVO'!B15,'BD PLÁSTICOS'!Q:Q)","v":0},null,2.1900000000000001E-3,2.1900000000000001E-3,2.1900000000000001E-3]
[null,null,{"$f":"SUMIF('BD PLÁSTICOS'!J:J,'ANÁLISIS CUANTITATIVO'!B16,'BD PLÁSTICOS'!S:S)","v":0},{"$f":"SUMIF('BD PLÁSTICOS'!J:J,'ANÁLISIS CUANTITATIVO'!B16,'BD PLÁSTICOS'!R:R)","v":0},{"$f":"SUMIF('BD PLÁSTICOS'!J:J,'ANÁLISIS CUANTITATIVO'!B16,'BD PLÁSTICOS'!Q:Q)","v":0},null,2.1800000000000001E-3,2.1800000000000001E-3,2.1800000000000001E-3]
[null,null,{"$f":"SUMIF('BD PLÁSTICOS'!J:J,'ANÁLISIS CUANTITATIVO'!B17,'BD PLÁSTICOS'!S:S)","v":0},{"$f":"SUMIF('BD PLÁSTICOS'!J:J,'ANÁLISIS CUANTITATIVO'!B17,'BD PLÁSTICOS'!R:R)","v":0},{"$f":"SUMIF('BD PLÁSTICOS'!J:J,'ANÁLISIS CUANTITATIVO'!B17,'BD PLÁSTICOS'!Q:Q)","v":0},null,2.1700000000000001E-3,2.1700000000000001E-3,2.1700000000000001E-3]
[null,null,{"$f":"SUMIF('BD PLÁSTICOS'!J:J,'ANÁLISIS CUANTITATIVO'!B18,'BD PLÁSTICOS'!S:S)","v":0},{"$f":"SUMIF('BD PLÁSTICOS'!J:J,'ANÁLISIS CUANTITATIVO'!B18,'BD PLÁSTICOS'!R:R)","v":0},{"$f":"SUMIF('BD PLÁSTICOS'!J:J,'ANÁLISIS CUANTITATIVO'!B18,'BD PLÁSTICOS'!Q:Q)","v":0},null,2.16E-3,2.16E-3,2.16E-3]
[null,null,{"$f":"SUMIF('BD PLÁSTICOS'!J:J,'ANÁLISIS CUANTITATIVO'!B19,'BD PLÁSTICOS'!S:S)","v":0},{"$f":"SUMIF('BD PLÁSTICOS'!J:J,'ANÁLISIS CUANTITATIVO'!B19,'BD PLÁSTICOS'!R:R)","v":0},{"$f":"SUMIF('BD PLÁSTICOS'!J:J,'ANÁLISIS CUANTITATIVO'!B19,'BD PLÁSTICOS'!Q:Q)","v":0},null,2.15E-3,2.15E-3,2.15E-3]
[null,null,{"$f":"SUMIF('BD PLÁSTICOS'!J:J,'ANÁLISIS CUANTITATIVO'!B20,'BD PLÁSTICOS'!S:S)","v":0},{"$f":"SUMIF('BD PLÁSTICOS'!J:J,'ANÁLISIS CUANTITATIVO'!B20,'BD PLÁSTICOS'!R:R)","v":0},{"$f":"SUMIF('BD PLÁSTICOS'!J:J,'ANÁLISIS CUANTITATIVO'!B20,'BD PLÁSTICOS'!Q:Q)","v":0},null,2.14E-3,2.14E-3,2.14E-3]
[null,null,{"$f":"SUMIF('BD PLÁSTICOS'!J:J,'ANÁLISIS CUANTITATIVO'!B21,'BD PLÁSTICOS'!S:S)","v":0},{"$f":"SUMIF('BD PLÁSTICOS'!J:J,'ANÁLISIS CUANTITATIVO'!B21,'BD PLÁSTICOS'!R:R)","v":0},{"$f":"SUMIF('BD PLÁSTICOS'!J:J,'ANÁLISIS CUANTITATIVO'!B21,'BD PLÁSTICOS'!Q:Q)","v":0},null,2.1300000000000004E-3,2.1300000000000004E-3,2.1300000000000004E-3]
[null,null,{"$f":"SUMIF('BD PLÁSTICOS'!J:J,'ANÁLISIS CUANTITATIVO'!B22,'BD PLÁSTICOS'!S:S)","v":0},{"$f":"SUMIF('BD PLÁSTICOS'!J:J,'ANÁLISIS CUANTITATIVO'!B22,'BD PLÁSTICOS'!R:R)","v":0},{"$f":"SUMIF('BD PLÁSTICOS'!J:J,'ANÁLISIS CUANTITATIVO'!B22,'BD PLÁSTICOS'!Q:Q)","v":0},null,2.1200000000000004E-3,2.1200000000000004E-3,2.1200000000000004E-3]
[null,null,{"$f":"SUMIF('BD PLÁSTICOS'!J:J,'ANÁLISIS CUANTITATIVO'!B23,'BD PLÁSTICOS'!S:S)","v":0},{"$f":"SUMIF('BD PLÁSTICOS'!J:J,'ANÁLISIS CUANTITATIVO'!B23,'BD PLÁSTICOS'!R:R)","v":0},{"$f":"SUMIF('BD PLÁSTICOS'!J:J,'ANÁLISIS CUANTITATIVO'!B23,'BD PLÁSTICOS'!Q:Q)","v":0},null,2.1100000000000003E-3,2.1100000000000003E-3,2.1100000000000003E-3]
[null,null,{"$f":"SUMIF('BD PLÁSTICOS'!J:J,'ANÁLISIS CUANTITATIVO'!B24,'BD PLÁSTICOS'!S:S)","v":0},{"$f":"SUMIF('BD PLÁSTICOS'!J:J,'ANÁLISIS CUANTITATIVO'!B24,'BD PLÁSTICOS'!R:R)","v":0},{"$f":"SUMIF('BD PLÁSTICOS'!J:J,'ANÁLISIS CUANTITATIVO'!B24,'BD PLÁSTICOS'!Q:Q)","v":0},null,2.1000000000000003E-3,2.1000000000000003E-3,2.1000000000000003E-3]
[null,null,{"$f":"SUMIF('BD PLÁSTICOS'!J:J,'ANÁLISIS CUANTITATIVO'!B25,'BD PLÁSTICOS'!S:S)","v":0},{"$f":"SUMIF('BD PLÁSTICOS'!J:J,'ANÁLISIS CUANTITATIVO'!B25,'BD PLÁSTICOS'!R:R)","v":0},{"$f":"SUMIF('BD PLÁSTICOS'!J:J,'ANÁLISIS CUANTITATIVO'!B25,'BD PLÁSTICOS'!Q:Q)","v":0},null,2.0900000000000003E-3,2.0900000000000003E-3,2.0900000000000003E-3]
[null,null,{"$f":"SUMIF('BD PLÁSTICOS'!J:J,'ANÁLISIS CUANTITATIVO'!B26,'BD PLÁSTICOS'!S:S)","v":0},{"$f":"SUMIF('BD PLÁSTICOS'!J:J,'ANÁLISIS CUANTITATIVO'!B26,'BD PLÁSTICOS'!R:R)","v":0},{"$f":"SUMIF('BD PLÁSTICOS'!J:J,'ANÁLISIS CUANTITATIVO'!B26,'BD PLÁSTICOS'!Q:Q)","v":0},null,2.0800000000000003E-3,2.0800000000000003E-3,2.0800000000000003E-3]
[null,null,{"$f":"SUMIF('BD PLÁSTICOS'!J:J,'ANÁLISIS CUANTITATIVO'!B27,'BD PLÁSTICOS'!S:S)","v":0},{"$f":"SUMIF('BD PLÁSTICOS'!J:J,'ANÁLISIS CUANTITATIVO'!B27,'BD PLÁSTICOS'!R:R)","v":0},{"$f":"SUMIF('BD PLÁSTICOS'!J:J,'ANÁLISIS CUANTITATIVO'!B27,'BD PLÁSTICOS'!Q:Q)","v":0},null,2.0700000000000002E-3,2.0700000000000002E-3,2.0700000000000002E-3]
[null,null,{"$f":"SUMIF('BD PLÁSTICOS'!J:J,'ANÁLISIS CUANTITATIVO'!B28,'BD PLÁSTICOS'!S:S)","v":0},{"$f":"SUMIF('BD PLÁSTICOS'!J:J,'ANÁLISIS CUANTITATIVO'!B28,'BD PLÁSTICOS'!R:R)","v":0},{"$f":"SUMIF('BD PLÁSTICOS'!J:J,'ANÁLISIS CUANTITATIVO'!B28,'BD PLÁSTICOS'!Q:Q)","v":0},null,2.0600000000000002E-3,2.0600000000000002E-3,2.0600000000000002E-3]
[null,null,{"$f":"SUMIF('BD PLÁSTICOS'!J:J,'ANÁLISIS CUANTITATIVO'!B29,'BD PLÁSTICOS'!S:S)","v":0},{"$f":"SUMIF('BD PLÁSTICOS'!J:J,'ANÁLISIS CUANTITATIVO'!B29,'BD PLÁSTICOS'!R:R)","v":0},{"$f":"SUMIF('BD PLÁSTICOS'!J:J,'ANÁLISIS CUANTITATIVO'!B29,'BD PLÁSTICOS'!Q:Q)","v":0},null,2.0500000000000002E-3,2.0500000000000002E-3,2.0500000000000002E-3]
[null,null,{"$f":"SUMIF('BD PLÁSTICOS'!J:J,'ANÁLISIS CUANTITATIVO'!B30,'BD PLÁSTICOS'!S:S)","v":0},{"$f":"SUMIF('BD PLÁSTICOS'!J:J,'ANÁLISIS CUANTITATIVO'!B30,'BD PLÁSTICOS'!R:R)","v":0},{"$f":"SUMIF('BD PLÁSTICOS'!J:J,'ANÁLISIS CUANTITATIVO'!B30,'BD PLÁSTICOS'!Q:Q)","v":0},null,2.0400000000000001E-3,2.0400000000000001E-3,2.0400000000000001E-3]
[null,null,{"$f":"SUMIF('BD PLÁSTICOS'!J:J,'ANÁLISIS CUANTITATIVO'!B31,'BD PLÁSTICOS'!S:S)","v":0},{"$f":"SUMIF('BD PLÁSTICOS'!J:J,'ANÁLISIS CUANTITATIVO'!B31,'BD PLÁSTICOS'!R:R)","v":0},{"$f":"SUMIF('BD PLÁSTICOS'!J:J,'ANÁLISIS CUANTITATIVO'!B31,'BD PLÁSTICOS'!Q:Q)","v":0},null,2.0300000000000001E-3,2.0300000000000001E-3,2.0300000000000001E-3]
[null,null,{"$f":"SUMIF('BD PLÁSTICOS'!J:J,'ANÁLISIS CUANTITATIVO'!B32,'BD PLÁSTICOS'!S:S)","v":0},{"$f":"SUMIF('BD PLÁSTICOS'!J:J,'ANÁLISIS CUANTITATIVO'!B32,'BD PLÁSTICOS'!R:R)","v":0},{"$f":"SUMIF('BD PLÁSTICOS'!J:J,'ANÁLISIS CUANTITATIVO'!B32,'BD PLÁSTICOS'!Q:Q)","v":0},null,2.0200000000000001E-3,2.0200000000000001E-3,2.0200000000000001E-3]
[null,null,{"$f":"SUMIF('BD PLÁSTICOS'!J:J,'ANÁLISIS CUANTITATIVO'!B33,'BD PLÁSTICOS'!S:S)","v":0},{"$f":"SUMIF('BD PLÁSTICOS'!J:J,'ANÁLISIS CUANTITATIVO'!B33,'BD PLÁSTICOS'!R:R)","v":0},{"$f":"SUMIF('BD PLÁSTICOS'!J:J,'ANÁLISIS CUANTITATIVO'!B33,'BD PLÁSTICOS'!Q:Q)","v":0},null,2.0100000000000001E-3,2.0100000000000001E-3,2.0100000000000001E-3]
[null,null,{"$f":"SUMIF('BD PLÁSTICOS'!J:J,'ANÁLISIS CUANTITATIVO'!B34,'BD PLÁSTICOS'!S:S)","v":0},{"$f":"SUMIF('BD PLÁSTICOS'!J:J,'ANÁLISIS CUANTITATIVO'!B34,'BD PLÁSTICOS'!R:R)","v":0},{"$f":"SUMIF('BD PLÁSTICOS'!J:J,'ANÁLISIS CUANTITATIVO'!B34,'BD PLÁSTICOS'!Q:Q)","v":0},null,2E-3,2E-3,2E-3]
[null,null,{"$f":"SUMIF('BD PLÁSTICOS'!J:J,'ANÁLISIS CUANTITATIVO'!B35,'BD PLÁSTICOS'!S:S)","v":0},{"$f":"SUMIF('BD PLÁSTICOS'!J:J,'ANÁLISIS CUANTITATIVO'!B35,'BD PLÁSTICOS'!R:R)","v":0},{"$f":"SUMIF('BD PLÁSTICOS'!J:J,'ANÁLISIS CUANTITATIVO'!B35,'BD PLÁSTICOS'!Q:Q)","v":0},null,1.99E-3,1.99E-3,1.99E-3]
[null,null,{"$f":"SUMIF('BD PLÁSTICOS'!J:J,'ANÁLISIS CUANTITATIVO'!B36,'BD PLÁSTICOS'!S:S)","v":0},{"$f":"SUMIF('BD PLÁSTICOS'!J:J,'ANÁLISIS CUANTITATIVO'!B36,'BD PLÁSTICOS'!R:R)","v":0},{"$f":"SUMIF('BD PLÁSTICOS'!J:J,'ANÁLISIS CUANTITATIVO'!B36,'BD PLÁSTICOS'!Q:Q)","v":0},null,1.98E-3,1.98E-3,1.98E-3]
[null,null,{"$f":"SUMIF('BD PLÁSTICOS'!J:J,'ANÁLISIS CUANTITATIVO'!B37,'BD PLÁSTICOS'!S:S)","v":0},{"$f":"SUMIF('BD PLÁSTICOS'!J:J,'ANÁLISIS CUANTITATIVO'!B37,'BD PLÁSTICOS'!R:R)","v":0},{"$f":"SUMIF('BD PLÁSTICOS'!J:J,'ANÁLISIS CUANTITATIVO'!B37,'BD PLÁSTICOS'!Q:Q)","v":0},null,1.97E-3,1.97E-3,1.97E-3]
[null,null,{"$f":"SUMIF('BD PLÁSTICOS'!J:J,'ANÁLISIS CUANTITATIVO'!B38,'BD PLÁSTICOS'!S:S)","v":0},{"$f":"SUMIF('BD PLÁSTICOS'!J:J,'ANÁLISIS CUANTITATIVO'!B38,'BD PLÁSTICOS'!R:R)","v":0},{"$f":"SUMIF('BD PLÁSTICOS'!J:J,'ANÁLISIS CUANTITATIVO'!B38,'BD PLÁSTICOS'!Q:Q)","v":0},null,1.9600000000000004E-3,1.9600000000000004E-3,1.9600000000000004E-3]
[null,null,{"$f":"SUMIF('BD PLÁSTICOS'!J:J,'ANÁLISIS CUANTITATIVO'!B39,'BD PLÁSTICOS'!S:S)","v":0},{"$f":"SUMIF('BD PLÁSTICOS'!J:J,'ANÁLISIS CUANTITATIVO'!B39,'BD PLÁSTICOS'!R:R)","v":0},{"$f":"SUMIF('BD PLÁSTICOS'!J:J,'ANÁLISIS CUANTITATIVO'!B39,'BD PLÁSTICOS'!Q:Q)","v":0},null,1.9500000000000001E-3,1.9500000000000001E-3,1.9500000000000001E-3]
[null,null,{"$f":"SUMIF('BD PLÁSTICOS'!J:J,'ANÁLISIS CUANTITATIVO'!B40,'BD PLÁSTICOS'!S:S)","v":0},{"$f":"SUMIF('BD PLÁSTICOS'!J:J,'ANÁLISIS CUANTITATIVO'!B40,'BD PLÁSTICOS'!R:R)","v":0},{"$f":"SUMIF('BD PLÁSTICOS'!J:J,'ANÁLISIS CUANTITATIVO'!B40,'BD PLÁSTICOS'!Q:Q)","v":0},null,1.9400000000000001E-3,1.9400000000000001E-3,1.9400000000000001E-3]
[null,null,{"$f":"SUMIF('BD PLÁSTICOS'!J:J,'ANÁLISIS CUANTITATIVO'!B41,'BD PLÁSTICOS'!S:S)","v":0},{"$f":"SUMIF('BD PLÁSTICOS'!J:J,'ANÁLISIS CUANTITATIVO'!B41,'BD PLÁSTICOS'!R:R)","v":0},{"$f":"SUMIF('BD PLÁSTICOS'!J:J,'ANÁLISIS CUANTITATIVO'!B41,'BD PLÁSTICOS'!Q:Q)","v":0},null,1.9300000000000001E-3,1.9300000000000001E-3,1.9300000000000001E-3]
[null,null,{"$f":"SUMIF('BD PLÁSTICOS'!J:J,'ANÁLISIS CUANTITATIVO'!B42,'BD PLÁSTICOS'!S:S)","v":0},{"$f":"SUMIF('BD PLÁSTICOS'!J:J,'ANÁLISIS CUANTITATIVO'!B42,'BD PLÁSTICOS'!R:R)","v":0},{"$f":"SUMIF('BD PLÁSTICOS'!J:J,'ANÁLISIS CUANTITATIVO'!B42,'BD PLÁSTICOS'!Q:Q)","v":0},null,1.9200000000000003E-3,1.9200000000000003E-3,1.9200000000000003E-3]
[null,null,{"$f":"SUMIF('BD PLÁSTICOS'!J:J,'ANÁLISIS CUANTITATIVO'!B43,'BD PLÁSTICOS'!S:S)","v":0},{"$f":"SUMIF('BD PLÁSTICOS'!J:J,'ANÁLISIS CUANTITATIVO'!B43,'BD PLÁSTICOS'!R:R)","v":0},{"$f":"SUMIF('BD PLÁSTICOS'!J:J,'ANÁLISIS CUANTITATIVO'!B43,'BD PLÁSTICOS'!Q:Q)","v":0},null,1.9100000000000002E-3,1.9100000000000002E-3,1.9100000000000002E-3]
[null,null,{"$f":"SUMIF('BD PLÁSTICOS'!J:J,'ANÁLISIS CUANTITATIVO'!B44,'BD PLÁSTICOS'!S:S)","v":0},{"$f":"SUMIF('BD PLÁSTICOS'!J:J,'ANÁLISIS CUANTITATIVO'!B44,'BD PLÁSTICOS'!R:R)","v":0},{"$f":"SUMIF('BD PLÁSTICOS'!J:J,'ANÁLISIS CUANTITATIVO'!B44,'BD PLÁSTICOS'!Q:Q)","v":0},null,1.9000000000000002E-3,1.9000000000000002E-3,1.9000000000000002E-3]
[null,null,{"$f":"SUMIF('BD PLÁSTICOS'!J:J,'ANÁLISIS CUANTITATIVO'!B45,'BD PLÁSTICOS'!S:S)","v":0},{"$f":"SUMIF('BD PLÁSTICOS'!J:J,'ANÁLISIS CUANTITATIVO'!B45,'BD PLÁSTICOS'!R:R)","v":0},{"$f":"SUMIF('BD PLÁSTICOS'!J:J,'ANÁLISIS CUANTITATIVO'!B45,'BD PLÁSTICOS'!Q:Q)","v":0},null,1.8900000000000002E-3,1.8900000000000002E-3,1.8900000000000002E-3]
[null,null,{"$f":"SUMIF('BD PLÁSTICOS'!J:J,'ANÁLISIS CUANTITATIVO'!B46,'BD PLÁSTICOS'!S:S)","v":0},{"$f":"SUMIF('BD PLÁSTICOS'!J:J,'ANÁLISIS CUANTITATIVO'!B46,'BD PLÁSTICOS'!R:R)","v":0},{"$f":"SUMIF('BD PLÁSTICOS'!J:J,'ANÁLISIS CUANTITATIVO'!B46,'BD PLÁSTICOS'!Q:Q)","v":0},null,1.8800000000000002E-3,1.8800000000000002E-3,1.8800000000000002E-3]
[null,null,{"$f":"SUMIF('BD PLÁSTICOS'!J:J,'ANÁLISIS CUANTITATIVO'!B47,'BD PLÁSTICOS'!S:S)","v":0},{"$f":"SUMIF('BD PLÁSTICOS'!J:J,'ANÁLISIS CUANTITATIVO'!B47,'BD PLÁSTICOS'!R:R)","v":0},{"$f":"SUMIF('BD PLÁSTICOS'!J:J,'ANÁLISIS CUANTITATIVO'!B47,'BD PLÁSTICOS'!Q:Q)","v":0},null,1.8700000000000001E-3,1.8700000000000001E-3,1.8700000000000001E-3]
[null,null,{"$f":"SUMIF('BD PLÁSTICOS'!J:J,'ANÁLISIS CUANTITATIVO'!B48,'BD PLÁSTICOS'!S:S)","v":0},{"$f":"SUMIF('BD PLÁSTICOS'!J:J,'ANÁLISIS CUANTITATIVO'!B48,'BD PLÁSTICOS'!R:R)","v":0},{"$f":"SUMIF('BD PLÁSTICOS'!J:J,'ANÁLISIS CUANTITATIVO'!B48,'BD PLÁSTICOS'!Q:Q)","v":0},null,1.8600000000000001E-3,1.8600000000000001E-3,1.8600000000000001E-3]
[null,null,{"$f":"SUMIF('BD PLÁSTICOS'!J:J,'ANÁLISIS CUANTITATIVO'!B49,'BD PLÁSTICOS'!S:S)","v":0},{"$f":"SUMIF('BD PLÁSTICOS'!J:J,'ANÁLISIS CUANTITATIVO'!B49,'BD PLÁSTICOS'!R:R)","v":0},{"$f":"SUMIF('BD PLÁSTICOS'!J:J,'ANÁLISIS CUANTITATIVO'!B49,'BD PLÁSTICOS'!Q:Q)","v":0},null,1.8500000000000001E-3,1.8500000000000001E-3,1.8500000000000001E-3]
[null,null,{"$f":"SUMIF('BD PLÁSTICOS'!J:J,'ANÁLISIS CUANTITATIVO'!B50,'BD PLÁSTICOS'!S:S)","v":0},{"$f":"SUMIF('BD PLÁSTICOS'!J:J,'ANÁLISIS CUANTITATIVO'!B50,'BD PLÁSTICOS'!R:R)","v":0},{"$f":"SUMIF('BD PLÁSTICOS'!J:J,'ANÁLISIS CUANTITATIVO'!B50,'BD PLÁSTICOS'!Q:Q)","v":0},null,1.8400000000000001E-3,1.8400000000000001E-3,1.8400000000000001E-3]
[null,null,{"$f":"SUMIF('BD PLÁSTICOS'!J:J,'ANÁLISIS CUANTITATIVO'!B51,'BD PLÁSTICOS'!S:S)","v":0},{"$f":"SUMIF('BD PLÁSTICOS'!J:J,'ANÁLISIS CUANTITATIVO'!B51,'BD PLÁSTICOS'!R:R)","v":0},{"$f":"SUMIF('BD PLÁSTICOS'!J:J,'ANÁLISIS CUANTITATIVO'!B51,'BD PLÁSTICOS'!Q:Q)","v":0},null,1.8300000000000002E-3,1.8300000000000002E-3,1.8300000000000002E-3]
[null,null,{"$f":"SUMIF('BD PLÁSTICOS'!J:J,'ANÁLISIS CUANTITATIVO'!B52,'BD PLÁSTICOS'!S:S)","v":0},{"$f":"SUMIF('BD PLÁSTICOS'!J:J,'ANÁLISIS CUANTITATIVO'!B52,'BD PLÁSTICOS'!R:R)","v":0},{"$f":"SUMIF('BD PLÁSTICOS'!J:J,'ANÁLISIS CUANTITATIVO'!B52,'BD PLÁSTICOS'!Q:Q)","v":0},null,1.8200000000000002E-3,1.8200000000000002E-3,1.8200000000000002E-3]
[null,null,{"$f":"SUMIF('BD PLÁSTICOS'!J:J,'ANÁLISIS CUANTITATIVO'!B53,'BD PLÁSTICOS'!S:S)","v":0},{"$f":"SUMIF('BD PLÁSTICOS'!J:J,'ANÁLISIS CUANTITATIVO'!B53,'BD PLÁSTICOS'!R:R)","v":0},{"$f":"SUMIF('BD PLÁSTICOS'!J:J,'ANÁLISIS CUANTITATIVO'!B53,'BD PLÁSTICOS'!Q:Q)","v":0},null,1.8100000000000002E-3,1.8100000000000002E-3,1.8100000000000002E-3]
[null,null,{"$f":"SUMIF('BD PLÁSTICOS'!J:J,'ANÁLISIS CUANTITATIVO'!B54,'BD PLÁSTICOS'!S:S)","v":0},{"$f":"SUMIF('BD PLÁSTICOS'!J:J,'ANÁLISIS CUANTITATIVO'!B54,'BD PLÁSTICOS'!R:R)","v":0},{"$f":"SUMIF('BD PLÁSTICOS'!J:J,'ANÁLISIS CUANTITATIVO'!B54,'BD PLÁSTICOS'!Q:Q)","v":0},null,1.8000000000000002E-3,1.8000000000000002E-3,1.8000000000000002E-3]
[null,null,{"$f":"SUMIF('BD PLÁSTICOS'!J:J,'ANÁLISIS CUANTITATIVO'!B55,'BD PLÁSTICOS'!S:S)","v":0},{"$f":"SUMIF('BD PLÁSTICOS'!J:J,'ANÁLISIS CUANTITATIVO'!B55,'BD PLÁSTICOS'!R:R)","v":0},{"$f":"SUMIF('BD PLÁSTICOS'!J:J,'ANÁLISIS CUANTITATIVO'!B55,'BD PLÁSTICOS'!Q:Q)","v":0},null,1.7900000000000001E-3,1.7900000000000001E-3,1.7900000000000001E-3]
[null,null,{"$f":"SUMIF('BD PLÁSTICOS'!J:J,'ANÁLISIS CUANTITATIVO'!B56,'BD PLÁSTICOS'!S:S)","v":0},{"$f":"SUMIF('BD PLÁSTICOS'!J:J,'ANÁLISIS CUANTITATIVO'!B56,'BD PLÁSTICOS'!R:R)","v":0},{"$f":"SUMIF('BD PLÁSTICOS'!J:J,'ANÁLISIS CUANTITATIVO'!B56,'BD PLÁSTICOS'!Q:Q)","v":0},null,1.7800000000000001E-3,1.7800000000000001E-3,1.7800000000000001E-3]
[null,null,{"$f":"SUMIF('BD PLÁSTICOS'!J:J,'ANÁLISIS CUANTITATIVO'!B57,'BD PLÁSTICOS'!S:S)","v":0},{"$f":"SUMIF('BD PLÁSTICOS'!J:J,'ANÁLISIS CUANTITATIVO'!B57,'BD PLÁSTICOS'!R:R)","v":0},{"$f":"SUMIF('BD PLÁSTICOS'!J:J,'ANÁLISIS CUANTITATIVO'!B57,'BD PLÁSTICOS'!Q:Q)","v":0},null,1.7700000000000001E-3,1.7700000000000001E-3,1.7700000000000001E-3]
[null,null,{"$f":"SUMIF('BD PLÁSTICOS'!J:J,'ANÁLISIS CUANTITATIVO'!B58,'BD PLÁSTICOS'!S:S)","v":0},{"$f":"SUMIF('BD PLÁSTICOS'!J:J,'ANÁLISIS CUANTITATIVO'!B58,'BD PLÁSTICOS'!R:R)","v":0},{"$f":"SUMIF('BD PLÁSTICOS'!J:J,'ANÁLISIS CUANTITATIVO'!B58,'BD PLÁSTICOS'!Q:Q)","v":0},null,1.7600000000000001E-3,1.7600000000000001E-3,1.7600000000000001E-3]
[null,null,{"$f":"SUMIF('BD PLÁSTICOS'!J:J,'ANÁLISIS CUANTITATIVO'!B59,'BD PLÁSTICOS'!S:S)","v":0},{"$f":"SUMIF('BD PLÁSTICOS'!J:J,'ANÁLISIS CUANTITATIVO'!B59,'BD PLÁSTICOS'!R:R)","v":0},{"$f":"SUMIF('BD PLÁSTICOS'!J:J,'ANÁLISIS CUANTITATIVO'!B59,'BD PLÁSTICOS'!Q:Q)","v":0},null,1.75E-3,1.75E-3,1.75E-3]
[null,null,{"$f":"SUMIF('BD PLÁSTICOS'!J:J,'ANÁLISIS CUANTITATIVO'!B60,'BD PLÁSTICOS'!S:S)","v":0},{"$f":"SUMIF('BD PLÁSTICOS'!J:J,'ANÁLISIS CUANTITATIVO'!B60,'BD PLÁSTICOS'!R:R)","v":0},{"$f":"SUMIF('BD PLÁSTICOS'!J:J,'ANÁLISIS CUANTITATIVO'!B60,'BD PLÁSTICOS'!Q:Q)","v":0},null,1.7400000000000002E-3,1.7400000000000002E-3,1.7400000000000002E-3]
[null,null,{"$f":"SUMIF('BD PLÁSTICOS'!J:J,'ANÁLISIS CUANTITATIVO'!B61,'BD PLÁSTICOS'!S:S)","v":0},{"$f":"SUMIF('BD PLÁSTICOS'!J:J,'ANÁLISIS CUANTITATIVO'!B61,'BD PLÁSTICOS'!R:R)","v":0},{"$f":"SUMIF('BD PLÁSTICOS'!J:J,'ANÁLISIS CUANTITATIVO'!B61,'BD PLÁSTICOS'!Q:Q)","v":0},null,1.7300000000000002E-3,1.7300000000000002E-3,1.7300000000000002E-3]
[null,null,{"$f":"SUMIF('BD PLÁSTICOS'!J:J,'ANÁLISIS CUANTITATIVO'!B62,'BD PLÁSTICOS'!S:S)","v":0},{"$f":"SUMIF('BD PLÁSTICOS'!J:J,'ANÁLISIS CUANTITATIVO'!B62,'BD PLÁSTICOS'!R:R)","v":0},{"$f":"SUMIF('BD PLÁSTICOS'!J:J,'ANÁLISIS CUANTITATIVO'!B62,'BD PLÁSTICOS'!Q:Q)","v":0},null,1.7200000000000002E-3,1.7200000000000002E-3,1.7200000000000002E-3]
[null,null,{"$f":"SUMIF('BD PLÁSTICOS'!J:J,'ANÁLISIS CUANTITATIVO'!B63,'BD PLÁSTICOS'!S:S)","v":0},{"$f":"SUMIF('BD PLÁSTICOS'!J:J,'ANÁLISIS CUANTITATIVO'!B63,'BD PLÁSTICOS'!R:R)","v":0},{"$f":"SUMIF('BD PLÁSTICOS'!J:J,'ANÁLISIS CUANTITATIVO'!B63,'BD PLÁSTICOS'!Q:Q)","v":0},null,1.7100000000000001E-3,1.7100000000000001E-3,1.7100000000000001E-3]
[null,null,{"$f":"SUMIF('BD PLÁSTICOS'!J:J,'ANÁLISIS CUANTITATIVO'!B64,'BD PLÁSTICOS'!S:S)","v":0},{"$f":"SUMIF('BD PLÁSTICOS'!J:J,'ANÁLISIS CUANTITATIVO'!B64,'BD PLÁSTICOS'!R:R)","v":0},{"$f":"SUMIF('BD PLÁSTICOS'!J:J,'ANÁLISIS CUANTITATIVO'!B64,'BD PLÁSTICOS'!Q:Q)","v":0},null,1.7000000000000001E-3,1.7000000000000001E-3,1.7000000000000001E-3]
[null,null,{"$f":"SUMIF('BD PLÁSTICOS'!J:J,'ANÁLISIS CUANTITATIVO'!B65,'BD PLÁSTICOS'!S:S)","v":0},{"$f":"SUMIF('BD PLÁSTICOS'!J:J,'ANÁLISIS CUANTITATIVO'!B65,'BD PLÁSTICOS'!R:R)","v":0},{"$f":"SUMIF('BD PLÁSTICOS'!J:J,'ANÁLISIS CUANTITATIVO'!B65,'BD PLÁSTICOS'!Q:Q)","v":0},null,1.6900000000000001E-3,1.6900000000000001E-3,1.6900000000000001E-3]
[null,null,{"$f":"SUMIF('BD PLÁSTICOS'!J:J,'ANÁLISIS CUANTITATIVO'!B66,'BD PLÁSTICOS'!S:S)","v":0},{"$f":"SUMIF('BD PLÁSTICOS'!J:J,'ANÁLISIS CUANTITATIVO'!B66,'BD PLÁSTICOS'!R:R)","v":0},{"$f":"SUMIF('BD PLÁSTICOS'!J:J,'ANÁLISIS CUANTITATIVO'!B66,'BD PLÁSTICOS'!Q:Q)","v":0},null,1.6800000000000001E-3,1.6800000000000001E-3,1.6800000000000001E-3]
[null,null,{"$f":"SUMIF('BD PLÁSTICOS'!J:J,'ANÁLISIS CUANTITATIVO'!B67,'BD PLÁSTICOS'!S:S)","v":0},{"$f":"SUMIF('BD PLÁSTICOS'!J:J,'ANÁLISIS CUANTITATIVO'!B67,'BD PLÁSTICOS'!R:R)","v":0},{"$f":"SUMIF('BD PLÁSTICOS'!J:J,'ANÁLISIS CUANTITATIVO'!B67,'BD PLÁSTICOS'!Q:Q)","v":0},null,1.67E-3,1.67E-3,1.67E-3]
[null,null,{"$f":"SUMIF('BD PLÁSTICOS'!J:J,'ANÁLISIS CUANTITATIVO'!B68,'BD PLÁSTICOS'!S:S)","v":0},{"$f":"SUMIF('BD PLÁSTICOS'!J:J,'ANÁLISIS CUANTITATIVO'!B68,'BD PLÁSTICOS'!R:R)","v":0},{"$f":"SUMIF('BD PLÁSTICOS'!J:J,'ANÁLISIS CUANTITATIVO'!B68,'BD PLÁSTICOS'!Q:Q)","v":0},null,1.6600000000000002E-3,1.6600000000000002E-3,1.6600000000000002E-3]
[null,null,{"$f":"SUMIF('BD PLÁSTICOS'!J:J,'ANÁLISIS CUANTITATIVO'!B69,'BD PLÁSTICOS'!S:S)","v":0},{"$f":"SUMIF('BD PLÁSTICOS'!J:J,'ANÁLISIS CUANTITATIVO'!B69,'BD PLÁSTICOS'!R:R)","v":0},{"$f":"SUMIF('BD PLÁSTICOS'!J:J,'ANÁLISIS CUANTITATIVO'!B69,'BD PLÁSTICOS'!Q:Q)","v":0},null,1.6500000000000002E-3,1.6500000000000002E-3,1.6500000000000002E-3]
[null,null,{"$f":"SUMIF('BD PLÁSTICOS'!J:J,'ANÁLISIS CUANTITATIVO'!B70,'BD PLÁSTICOS'!S:S)","v":0},{"$f":"SUMIF('BD PLÁSTICOS'!J:J,'ANÁLISIS CUANTITATIVO'!B70,'BD PLÁSTICOS'!R:R)","v":0},{"$f":"SUMIF('BD PLÁSTICOS'!J:J,'ANÁLISIS CUANTITATIVO'!B70,'BD PLÁSTICOS'!Q:Q)","v":0},null,{"$f":"C70+(COUNTA($C$6:$C$219)-ROW()+20)*0.00001","v":1.6400000000000002E-3},{"$f":"D70+(COUNTA($C$6:$C$219)-ROW()+20)*0.00001","v":1.6400000000000002E-3},{"$f":"E70+(COUNTA($C$6:$C$219)-ROW()+20)*0.00001","v":1.6400000000000002E-3}]
[null,null,{"$f":"SUMIF('BD PLÁSTICOS'!J:J,'ANÁLISIS CUANTITATIVO'!B71,'BD PLÁSTICOS'!S:S)","v":0},{"$f":"SUMIF('BD PLÁSTICOS'!J:J,'ANÁLISIS CUANTITATIVO'!B71,'BD PLÁSTICOS'!R:R)","v":0},{"$f":"SUMIF('BD PLÁSTICOS'!J:J,'ANÁLISIS CUANTITATIVO'!B71,'BD PLÁSTICOS'!Q:Q)","v":0},null,1.6300000000000002E-3,1.6300000000000002E-3,1.6300000000000002E-3]
[null,null,{"$f":"SUMIF('BD PLÁSTICOS'!J:J,'ANÁLISIS CUANTITATIVO'!B72,'BD PLÁSTICOS'!S:S)","v":0},{"$f":"SUMIF('BD PLÁSTICOS'!J:J,'ANÁLISIS CUANTITATIVO'!B72,'BD PLÁSTICOS'!R:R)","v":0},{"$f":"SUMIF('BD PLÁSTICOS'!J:J,'ANÁLISIS CUANTITATIVO'!B72,'BD PLÁSTICOS'!Q:Q)","v":0},null,1.6200000000000001E-3,1.6200000000000001E-3,1.6200000000000001E-3]
[null,null,{"$f":"SUMIF('BD PLÁSTICOS'!J:J,'ANÁLISIS CUANTITATIVO'!B73,'BD PLÁSTICOS'!S:S)","v":0},{"$f":"SUMIF('BD PLÁSTICOS'!J:J,'ANÁLISIS CUANTITATIVO'!B73,'BD PLÁSTICOS'!R:R)","v":0},{"$f":"SUMIF('BD PLÁSTICOS'!J:J,'ANÁLISIS CUANTITATIVO'!B73,'BD PLÁSTICOS'!Q:Q)","v":0},null,1.6100000000000001E-3,1.6100000000000001E-3,1.6100000000000001E-3]
[null,null,{"$f":"SUMIF('BD PLÁSTICOS'!J:J,'ANÁLISIS CUANTITATIVO'!B74,'BD PLÁSTICOS'!S:S)","v":0},{"$f":"SUMIF('BD PLÁSTICOS'!J:J,'ANÁLISIS CUANTITATIVO'!B74,'BD PLÁSTICOS'!R:R)","v":0},{"$f":"SUMIF('BD PLÁSTICOS'!J:J,'ANÁLISIS CUANTITATIVO'!B74,'BD PLÁSTICOS'!Q:Q)","v":0},null,1.6000000000000001E-3,1.6000000000000001E-3,1.6000000000000001E-3]
[null,null,{"$f":"SUMIF('BD PLÁSTICOS'!J:J,'ANÁLISIS CUANTITATIVO'!B75,'BD PLÁSTICOS'!S:S)","v":0},{"$f":"SUMIF('BD PLÁSTICOS'!J:J,'ANÁLISIS CUANTITATIVO'!B75,'BD PLÁSTICOS'!R:R)","v":0},{"$f":"SUMIF('BD PLÁSTICOS'!J:J,'ANÁLISIS CUANTITATIVO'!B75,'BD PLÁSTICOS'!Q:Q)","v":0},null,1.5900000000000001E-3,1.5900000000000001E-3,1.5900000000000001E-3]
[null,null,{"$f":"SUMIF('BD PLÁSTICOS'!J:J,'ANÁLISIS CUANTITATIVO'!B76,'BD PLÁSTICOS'!S:S)","v":0},{"$f":"SUMIF('BD PLÁSTICOS'!J:J,'ANÁLISIS CUANTITATIVO'!B76,'BD PLÁSTICOS'!R:R)","v":0},{"$f":"SUMIF('BD PLÁSTICOS'!J:J,'ANÁLISIS CUANTITATIVO'!B76,'BD PLÁSTICOS'!Q:Q)","v":0},null,1.58E-3,1.58E-3,1.58E-3]
[null,null,{"$f":"SUMIF('BD PLÁSTICOS'!J:J,'ANÁLISIS CUANTITATIVO'!B77,'BD PLÁSTICOS'!S:S)","v":0},{"$f":"SUMIF('BD PLÁSTICOS'!J:J,'ANÁLISIS CUANTITATIVO'!B77,'BD PLÁSTICOS'!R:R)","v":0},{"$f":"SUMIF('BD PLÁSTICOS'!J:J,'ANÁLISIS CUANTITATIVO'!B77,'BD PLÁSTICOS'!Q:Q)","v":0},null,1.5700000000000002E-3,1.5700000000000002E-3,1.5700000000000002E-3]
[null,null,{"$f":"SUMIF('BD PLÁSTICOS'!J:J,'ANÁLISIS CUANTITATIVO'!B78,'BD PLÁSTICOS'!S:S)","v":0},{"$f":"SUMIF('BD PLÁSTICOS'!J:J,'ANÁLISIS CUANTITATIVO'!B78,'BD PLÁSTICOS'!R:R)","v":0},{"$f":"SUMIF('BD PLÁSTICOS'!J:J,'ANÁLISIS CUANTITATIVO'!B78,'BD PLÁSTICOS'!Q:Q)","v":0},null,1.5600000000000002E-3,1.5600000000000002E-3,1.5600000000000002E-3]
[null,null,{"$f":"SUMIF('BD PLÁSTICOS'!J:J,'ANÁLISIS CUANTITATIVO'!B79,'BD PLÁSTICOS'!S:S)","v":0},{"$f":"SUMIF('BD PLÁSTICOS'!J:J,'ANÁLISIS CUANTITATIVO'!B79,'BD PLÁSTICOS'!R:R)","v":0},{"$f":"SUMIF('BD PLÁSTICOS'!J:J,'ANÁLISIS CUANTITATIVO'!B79,'BD PLÁSTICOS'!Q:Q)","v":0},null,1.5500000000000002E-3,1.5500000000000002E-3,1.5500000000000002E-3]
[null,null,{"$f":"SUMIF('BD PLÁSTICOS'!J:J,'ANÁLISIS CUANTITATIVO'!B80,'BD PLÁSTICOS'!S:S)","v":0},{"$f":"SUMIF('BD PLÁSTICOS'!J:J,'ANÁLISIS CUANTITATIVO'!B80,'BD PLÁSTICOS'!R:R)","v":0},{"$f":"SUMIF('BD PLÁSTICOS'!J:J,'ANÁLISIS CUANTITATIVO'!B80,'BD PLÁSTICOS'!Q:Q)","v":0},null,1.5400000000000001E-3,1.5400000000000001E-3,1.5400000000000001E-3]
[null,null,{"$f":"SUMIF('BD PLÁSTICOS'!J:J,'ANÁLISIS CUANTITATIVO'!B81,'BD PLÁSTICOS'!S:S)","v":0},{"$f":"SUMIF('BD PLÁSTICOS'!J:J,'ANÁLISIS CUANTITATIVO'!B81,'BD PLÁSTICOS'!R:R)","v":0},{"$f":"SUMIF('BD PLÁSTICOS'!J:J,'ANÁLISIS CUANTITATIVO'!B81,'BD PLÁSTICOS'!Q:Q)","v":0},null,1.5300000000000001E-3,1.5300000000000001E-3,1.5300000000000001E-3]
[null,null,{"$f":"SUMIF('BD PLÁSTICOS'!J:J,'ANÁLISIS CUANTITATIVO'!B82,'BD PLÁSTICOS'!S:S)","v":0},{"$f":"SUMIF('BD PLÁSTICOS'!J:J,'ANÁLISIS CUANTITATIVO'!B82,'BD PLÁSTICOS'!R:R)","v":0},{"$f":"SUMIF('BD PLÁSTICOS'!J:J,'ANÁLISIS CUANTITATIVO'!B82,'BD PLÁSTICOS'!Q:Q)","v":0},null,1.5200000000000001E-3,1.5200000000000001E-3,1.5200000000000001E-3]
[null,null,{"$f":"SUMIF('BD PLÁSTICOS'!J:J,'ANÁLISIS CUANTITATIVO'!B83,'BD PLÁSTICOS'!S:S)","v":0},{"$f":"SUMIF('BD PLÁSTICOS'!J:J,'ANÁLISIS CUANTITATIVO'!B83,'BD PLÁSTICOS'!R:R)","v":0},{"$f":"SUMIF('BD PLÁSTICOS'!J:J,'ANÁLISIS CUANTITATIVO'!B83,'BD PLÁSTICOS'!Q:Q)","v":0},null,1.5100000000000001E-3,1.5100000000000001E-3,1.5100000000000001E-3]
[null,null,{"$f":"SUMIF('BD PLÁSTICOS'!J:J,'ANÁLISIS CUANTITATIVO'!B84,'BD PLÁSTICOS'!S:S)","v":0},{"$f":"SUMIF('BD PLÁSTICOS'!J:J,'ANÁLISIS CUANTITATIVO'!B84,'BD PLÁSTICOS'!R:R)","v":0},{"$f":"SUMIF('BD PLÁSTICOS'!J:J,'ANÁLISIS CUANTITATIVO'!B84,'BD PLÁSTICOS'!Q:Q)","v":0},null,1.5E-3,1.5E-3,1.5E-3]
[null,null,{"$f":"SUMIF('BD PLÁSTICOS'!J:J,'ANÁLISIS CUANTITATIVO'!B85,'BD PLÁSTICOS'!S:S)","v":0},{"$f":"SUMIF('BD PLÁSTICOS'!J:J,'ANÁLISIS CUANTITATIVO'!B85,'BD PLÁSTICOS'!R:R)","v":0},{"$f":"SUMIF('BD PLÁSTICOS'!J:J,'ANÁLISIS CUANTITATIVO'!B85,'BD PLÁSTICOS'!Q:Q)","v":0},null,1.4900000000000002E-3,1.4900000000000002E-3,1.4900000000000002E-3]
[null,null,{"$f":"SUMIF('BD PLÁSTICOS'!J:J,'ANÁLISIS CUANTITATIVO'!B86,'BD PLÁSTICOS'!S:S)","v":0},{"$f":"SUMIF('BD PLÁSTICOS'!J:J,'ANÁLISIS CUANTITATIVO'!B86,'BD PLÁSTICOS'!R:R)","v":0},{"$f":"SUMIF('BD PLÁSTICOS'!J:J,'ANÁLISIS CUANTITATIVO'!B86,'BD PLÁSTICOS'!Q:Q)","v":0},null,1.4800000000000002E-3,1.4800000000000002E-3,1.4800000000000002E-3]
[null,null,{"$f":"SUMIF('BD PLÁSTICOS'!J:J,'ANÁLISIS CUANTITATIVO'!B87,'BD PLÁSTICOS'!S:S)","v":0},{"$f":"SUMIF('BD PLÁSTICOS'!J:J,'ANÁLISIS CUANTITATIVO'!B87,'BD PLÁSTICOS'!R:R)","v":0},{"$f":"SUMIF('BD PLÁSTICOS'!J:J,'ANÁLISIS CUANTITATIVO'!B87,'BD PLÁSTICOS'!Q:Q)","v":0},null,1.4700000000000002E-3,1.4700000000000002E-3,1.4700000000000002E-3]
[null,null,{"$f":"SUMIF('BD PLÁSTICOS'!J:J,'ANÁLISIS CUANTITATIVO'!B88,'BD PLÁSTICOS'!S:S)","v":0},{"$f":"SUMIF('BD PLÁSTICOS'!J:J,'ANÁLISIS CUANTITATIVO'!B88,'BD PLÁSTICOS'!R:R)","v":0},{"$f":"SUMIF('BD PLÁSTICOS'!J:J,'ANÁLISIS CUANTITATIVO'!B88,'BD PLÁSTICOS'!Q:Q)","v":0},null,1.4600000000000001E-3,1.4600000000000001E-3,1.4600000000000001E-3]
[null,null,{"$f":"SUMIF('BD PLÁSTICOS'!J:J,'ANÁLISIS CUANTITATIVO'!B89,'BD PLÁSTICOS'!S:S)","v":0},{"$f":"SUMIF('BD PLÁSTICOS'!J:J,'ANÁLISIS CUANTITATIVO'!B89,'BD PLÁSTICOS'!R:R)","v":0},{"$f":"SUMIF('BD PLÁSTICOS'!J:J,'ANÁLISIS CUANTITATIVO'!B89,'BD PLÁSTICOS'!Q:Q)","v":0},null,1.4500000000000001E-3,1.4500000000000001E-3,1.4500000000000001E-3]
[null,null,{"$f":"SUMIF('BD PLÁSTICOS'!J:J,'ANÁLISIS CUANTITATIVO'!B90,'BD PLÁSTICOS'!S:S)","v":0},{"$f":"SUMIF('BD PLÁSTICOS'!J:J,'ANÁLISIS CUANTITATIVO'!B90,'BD PLÁSTICOS'!R:R)","v":0},{"$f":"SUMIF('BD PLÁSTICOS'!J:J,'ANÁLISIS CUANTITATIVO'!B90,'BD PLÁSTICOS'!Q:Q)","v":0},null,1.4400000000000001E-3,1.4400000000000001E-3,1.4400000000000001E-3]
[null,null,{"$f":"SUMIF('BD PLÁSTICOS'!J:J,'ANÁLISIS CUANTITATIVO'!B91,'BD PLÁSTICOS'!S:S)","v":0},{"$f":"SUMIF('BD PLÁSTICOS'!J:J,'ANÁLISIS CUANTITATIVO'!B91,'BD PLÁSTICOS'!R:R)","v":0},{"$f":"SUMIF('BD PLÁSTICOS'!J:J,'ANÁLISIS CUANTITATIVO'!B91,'BD PLÁSTICOS'!Q:Q)","v":0},null,1.4300000000000001E-3,1.4300000000000001E-3,1.4300000000000001E-3]
[null,null,{"$f":"SUMIF('BD PLÁSTICOS'!J:J,'ANÁLISIS CUANTITATIVO'!B92,'BD PLÁSTICOS'!S:S)","v":0},{"$f":"SUMIF('BD PLÁSTICOS'!J:J,'ANÁLISIS CUANTITATIVO'!B92,'BD PLÁSTICOS'!R:R)","v":0},{"$f":"SUMIF('BD PLÁSTICOS'!J:J,'ANÁLISIS CUANTITATIVO'!B92,'BD PLÁSTICOS'!Q:Q)","v":0},null,1.42E-3,1.42E-3,1.42E-3]
[null,null,{"$f":"SUMIF('BD PLÁSTICOS'!J:J,'ANÁLISIS CUANTITATIVO'!B93,'BD PLÁSTICOS'!S:S)","v":0},{"$f":"SUMIF('BD PLÁSTICOS'!J:J,'ANÁLISIS CUANTITATIVO'!B93,'BD PLÁSTICOS'!R:R)","v":0},{"$f":"SUMIF('BD PLÁSTICOS'!J:J,'ANÁLISIS CUANTITATIVO'!B93,'BD PLÁSTICOS'!Q:Q)","v":0},null,1.41E-3,1.41E-3,1.41E-3]
[null,null,{"$f":"SUMIF('BD PLÁSTICOS'!J:J,'ANÁLISIS CUANTITATIVO'!B94,'BD PLÁSTICOS'!S:S)","v":0},{"$f":"SUMIF('BD PLÁSTICOS'!J:J,'ANÁLISIS CUANTITATIVO'!B94,'BD PLÁSTICOS'!R:R)","v":0},{"$f":"SUMIF('BD PLÁSTICOS'!J:J,'ANÁLISIS CUANTITATIVO'!B94,'BD PLÁSTICOS'!Q:Q)","v":0},null,1.4000000000000002E-3,1.4000000000000002E-3,1.4000000000000002E-3]
[null,null,{"$f":"SUMIF('BD PLÁSTICOS'!J:J,'ANÁLISIS CUANTITATIVO'!B95,'BD PLÁSTICOS'!S:S)","v":0},{"$f":"SUMIF('BD PLÁSTICOS'!J:J,'ANÁLISIS CUANTITATIVO'!B95,'BD PLÁSTICOS'!R:R)","v":0},{"$f":"SUMIF('BD PLÁSTICOS'!J:J,'ANÁLISIS CUANTITATIVO'!B95,'BD PLÁSTICOS'!Q:Q)","v":0},null,1.3900000000000002E-3,1.3900000000000002E-3,1.3900000000000002E-3]
[null,null,{"$f":"SUMIF('BD PLÁSTICOS'!J:J,'ANÁLISIS CUANTITATIVO'!B96,'BD PLÁSTICOS'!S:S)","v":0},{"$f":"SUMIF('BD PLÁSTICOS'!J:J,'ANÁLISIS CUANTITATIVO'!B96,'BD PLÁSTICOS'!R:R)","v":0},{"$f":"SUMIF('BD PLÁSTICOS'!J:J,'ANÁLISIS CUANTITATIVO'!B96,'BD PLÁSTICOS'!Q:Q)","v":0},null,1.3800000000000002E-3,1.3800000000000002E-3,1.3800000000000002E-3]
[null,null,{"$f":"SUMIF('BD PLÁSTICOS'!J:J,'ANÁLISIS CUANTITATIVO'!B97,'BD PLÁSTICOS'!S:S)","v":0},{"$f":"SUMIF('BD PLÁSTICOS'!J:J,'ANÁLISIS CUANTITATIVO'!B97,'BD PLÁSTICOS'!R:R)","v":0},{"$f":"SUMIF('BD PLÁSTICOS'!J:J,'ANÁLISIS CUANTITATIVO'!B97,'BD PLÁSTICOS'!Q:Q)","v":0},null,1.3700000000000001E-3,1.3700000000000001E-3,1.3700000000000001E-3]
[null,null,{"$f":"SUMIF('BD PLÁSTICOS'!J:J,'ANÁLISIS CUANTITATIVO'!B98,'BD PLÁSTICOS'!S:S)","v":0},{"$f":"SUMIF('BD PLÁSTICOS'!J:J,'ANÁLISIS CUANTITATIVO'!B98,'BD PLÁSTICOS'!R:R)","v":0},{"$f":"SUMIF('BD PLÁSTICOS'!J:J,'ANÁLISIS CUANTITATIVO'!B98,'BD PLÁSTICOS'!Q:Q)","v":0},null,1.3600000000000001E-3,1.3600000000000001E-3,1.3600000000000001E-3]
[null,null,{"$f":"SUMIF('BD PLÁSTICOS'!J:J,'ANÁLISIS CUANTITATIVO'!B99,'BD PLÁSTICOS'!S:S)","v":0},{"$f":"SUMIF('BD PLÁSTICOS'!J:J,'ANÁLISIS CUANTITATIVO'!B99,'BD PLÁSTICOS'!R:R)","v":0},{"$f":"SUMIF('BD PLÁSTICOS'!J:J,'ANÁLISIS CUANTITATIVO'!B99,'BD PLÁSTICOS'!Q:Q)","v":0},null,1.3500000000000001E-3,1.3500000000000001E-3,1.3500000000000001E-3]
[null,null,{"$f":"SUMIF('BD PLÁSTICOS'!J:J,'ANÁLISIS CUANTITATIVO'!B100,'BD PLÁSTICOS'!S:S)","v":0},{"$f":"SUMIF('BD PLÁSTICOS'!J:J,'ANÁLISIS CUANTITATIVO'!B100,'BD PLÁSTICOS'!R:R)","v":0},{"$f":"SUMIF('BD PLÁSTICOS'!J:J,'ANÁLISIS CUANTITATIVO'!B100,'BD PLÁSTICOS'!Q:Q)","v":0},null,1.34E-3,1.34E-3,1.34E-3]
[null,null,{"$f":"SUMIF('BD PLÁSTICOS'!J:J,'ANÁLISIS CUANTITATIVO'!B101,'BD PLÁSTICOS'!S:S)","v":0},{"$f":"SUMIF('BD PLÁSTICOS'!J:J,'ANÁLISIS CUANTITATIVO'!B101,'BD PLÁSTICOS'!R:R)","v":0},{"$f":"SUMIF('BD PLÁSTICOS'!J:J,'ANÁLISIS CUANTITATIVO'!B101,'BD PLÁSTICOS'!Q:Q)","v":0},null,1.33E-3,1.33E-3,1.33E-3]
[null,null,{"$f":"SUMIF('BD PLÁSTICOS'!J:J,'ANÁLISIS CUANTITATIVO'!B102,'BD PLÁSTICOS'!S:S)","v":0},{"$f":"SUMIF('BD PLÁSTICOS'!J:J,'ANÁLISIS CUANTITATIVO'!B102,'BD PLÁSTICOS'!R:R)","v":0},{"$f":"SUMIF('BD PLÁSTICOS'!J:J,'ANÁLISIS CUANTITATIVO'!B102,'BD PLÁSTICOS'!Q:Q)","v":0},null,1.3200000000000002E-3,1.3200000000000002E-3,1.3200000000000002E-3]
[null,null,{"$f":"SUMIF('BD PLÁSTICOS'!J:J,'ANÁLISIS CUANTITATIVO'!B103,'BD PLÁSTICOS'!S:S)","v":0},{"$f":"SUMIF('BD PLÁSTICOS'!J:J,'ANÁLISIS CUANTITATIVO'!B103,'BD PLÁSTICOS'!R:R)","v":0},{"$f":"SUMIF('BD PLÁSTICOS'!J:J,'ANÁLISIS CUANTITATIVO'!B103,'BD PLÁSTICOS'!Q:Q)","v":0},null,1.3100000000000002E-3,1.3100000000000002E-3,1.3100000000000002E-3]
[null,null,{"$f":"SUMIF('BD PLÁSTICOS'!J:J,'ANÁLISIS CUANTITATIVO'!B104,'BD PLÁSTICOS'!S:S)","v":0},{"$f":"SUMIF('BD PLÁSTICOS'!J:J,'ANÁLISIS CUANTITATIVO'!B104,'BD PLÁSTICOS'!R:R)","v":0},{"$f":"SUMIF('BD PLÁSTICOS'!J:J,'ANÁLISIS CUANTITATIVO'!B104,'BD PLÁSTICOS'!Q:Q)","v":0},null,1.3000000000000002E-3,1.3000000000000002E-3,1.3000000000000002E-3]
[null,null,{"$f":"SUMIF('BD PLÁSTICOS'!J:J,'ANÁLISIS CUANTITATIVO'!B105,'BD PLÁSTICOS'!S:S)","v":0},{"$f":"SUMIF('BD PLÁSTICOS'!J:J,'ANÁLISIS CUANTITATIVO'!B105,'BD PLÁSTICOS'!R:R)","v":0},{"$f":"SUMIF('BD PLÁSTICOS'!J:J,'ANÁLISIS CUANTITATIVO'!B105,'BD PLÁSTICOS'!Q:Q)","v":0},null,1.2900000000000001E-3,1.2900000000000001E-3,1.2900000000000001E-3]
[null,null,{"$f":"SUMIF('BD PLÁSTICOS'!J:J,'ANÁLISIS CUANTITATIVO'!B106,'BD PLÁSTICOS'!S:S)","v":0},{"$f":"SUMIF('BD PLÁSTICOS'!J:J,'ANÁLISIS CUANTITATIVO'!B106,'BD PLÁSTICOS'!R:R)","v":0},{"$f":"SUMIF('BD PLÁSTICOS'!J:J,'ANÁLISIS CUANTITATIVO'!B106,'BD PLÁSTICOS'!Q:Q)","v":0},null,1.2800000000000001E-3,1.2800000000000001E-3,1.2800000000000001E-3]
[null,null,{"$f":"SUMIF('BD PLÁSTICOS'!J:J,'ANÁLISIS CUANTITATIVO'!B107,'BD PLÁSTICOS'!S:S)","v":0},{"$f":"SUMIF('BD PLÁSTICOS'!J:J,'ANÁLISIS CUANTITATIVO'!B107,'BD PLÁSTICOS'!R:R)","v":0},{"$f":"SUMIF('BD PLÁSTICOS'!J:J,'ANÁLISIS CUANTITATIVO'!B107,'BD PLÁSTICOS'!Q:Q)","v":0},null,1.2700000000000001E-3,1.2700000000000001E-3,1.2700000000000001E-3]
[null,null,{"$f":"SUMIF('BD PLÁSTICOS'!J:J,'ANÁLISIS CUANTITATIVO'!B108,'BD PLÁSTICOS'!S:S)","v":0},{"$f":"SUMIF('BD PLÁSTICOS'!J:J,'ANÁLISIS CUANTITATIVO'!B108,'BD PLÁSTICOS'!R:R)","v":0},{"$f":"SUMIF('BD PLÁSTICOS'!J:J,'ANÁLISIS CUANTITATIVO'!B108,'BD PLÁSTICOS'!Q:Q)","v":0},null,1.2600000000000001E-3,1.2600000000000001E-3,1.2600000000000001E-3]
[null,null,{"$f":"SUMIF('BD PLÁSTICOS'!J:J,'ANÁLISIS CUANTITATIVO'!B109,'BD PLÁSTICOS'!S:S)","v":0},{"$f":"SUMIF('BD PLÁSTICOS'!J:J,'ANÁLISIS CUANTITATIVO'!B109,'BD PLÁSTICOS'!R:R)","v":0},{"$f":"SUMIF('BD PLÁSTICOS'!J:J,'ANÁLISIS CUANTITATIVO'!B109,'BD PLÁSTICOS'!Q:Q)","v":0},null,1.25E-3,1.25E-3,1.25E-3]
[null,null,{"$f":"SUMIF('BD PLÁSTICOS'!J:J,'ANÁLISIS CUANTITATIVO'!B110,'BD PLÁSTICOS'!S:S)","v":0},{"$f":"SUMIF('BD PLÁSTICOS'!J:J,'ANÁLISIS CUANTITATIVO'!B110,'BD PLÁSTICOS'!R:R)","v":0},{"$f":"SUMIF('BD PLÁSTICOS'!J:J,'ANÁLISIS CUANTITATIVO'!B110,'BD PLÁSTICOS'!Q:Q)","v":0},null,1.24E-3,1.24E-3,1.24E-3]
[null,null,{"$f":"SUMIF('BD PLÁSTICOS'!J:J,'ANÁLISIS CUANTITATIVO'!B111,'BD PLÁSTICOS'!S:S)","v":0},{"$f":"SUMIF('BD PLÁSTICOS'!J:J,'ANÁLISIS CUANTITATIVO'!B111,'BD PLÁSTICOS'!R:R)","v":0},{"$f":"SUMIF('BD PLÁSTICOS'!J:J,'ANÁLISIS CUANTITATIVO'!B111,'BD PLÁSTICOS'!Q:Q)","v":0},null,1.2300000000000002E-3,1.2300000000000002E-3,1.2300000000000002E-3]
[null,null,{"$f":"SUMIF('BD PLÁSTICOS'!J:J,'ANÁLISIS CUANTITATIVO'!B112,'BD PLÁSTICOS'!S:S)","v":0},{"$f":"SUMIF('BD PLÁSTICOS'!J:J,'ANÁLISIS CUANTITATIVO'!B112,'BD PLÁSTICOS'!R:R)","v":0},{"$f":"SUMIF('BD PLÁSTICOS'!J:J,'ANÁLISIS CUANTITATIVO'!B112,'BD PLÁSTICOS'!Q:Q)","v":0},null,1.2200000000000002E-3,1.2200000000000002E-3,1.2200000000000002E-3]
[null,null,{"$f":"SUMIF('BD PLÁSTICOS'!J:J,'ANÁLISIS CUANTITATIVO'!B113,'BD PLÁSTICOS'!S:S)","v":0},{"$f":"SUMIF('BD PLÁSTICOS'!J:J,'ANÁLISIS CUANTITATIVO'!B113,'BD PLÁSTICOS'!R:R)","v":0},{"$f":"SUMIF('BD PLÁSTICOS'!J:J,'ANÁLISIS CUANTITATIVO'!B113,'BD PLÁSTICOS'!Q:Q)","v":0},null,1.2100000000000001E-3,1.2100000000000001E-3,1.2100000000000001E-3]
[null,null,{"$f":"SUMIF('BD PLÁSTICOS'!J:J,'ANÁLISIS CUANTITATIVO'!B114,'BD PLÁSTICOS'!S:S)","v":0},{"$f":"SUMIF('BD PLÁSTICOS'!J:J,'ANÁLISIS CUANTITATIVO'!B114,'BD PLÁSTICOS'!R:R)","v":0},{"$f":"SUMIF('BD PLÁSTICOS'!J:J,'ANÁLISIS CUANTITATIVO'!B114,'BD PLÁSTICOS'!Q:Q)","v":0},null,1.2000000000000001E-3,1.2000000000000001E-3,1.2000000000000001E-3]
[null,null,{"$f":"SUMIF('BD PLÁSTICOS'!J:J,'ANÁLISIS CUANTITATIVO'!B115,'BD PLÁSTICOS'!S:S)","v":0},{"$f":"SUMIF('BD PLÁSTICOS'!J:J,'ANÁLISIS CUANTITATIVO'!B115,'BD PLÁSTICOS'!R:R)","v":0},{"$f":"SUMIF('BD PLÁSTICOS'!J:J,'ANÁLISIS CUANTITATIVO'!B115,'BD PLÁSTICOS'!Q:Q)","v":0},null,1.1900000000000001E-3,1.1900000000000001E-3,1.1900000000000001E-3]
[null,null,{"$f":"SUMIF('BD PLÁSTICOS'!J:J,'ANÁLISIS CUANTITATIVO'!B116,'BD PLÁSTICOS'!S:S)","v":0},{"$f":"SUMIF('BD PLÁSTICOS'!J:J,'ANÁLISIS CUANTITATIVO'!B116,'BD PLÁSTICOS'!R:R)","v":0},{"$f":"SUMIF('BD PLÁSTICOS'!J:J,'ANÁLISIS CUANTITATIVO'!B116,'BD PLÁSTICOS'!Q:Q)","v":0},null,1.1800000000000001E-3,1.1800000000000001E-3,1.1800000000000001E-3]
[null,null,{"$f":"SUMIF('BD PLÁSTICOS'!J:J,'ANÁLISIS CUANTITATIVO'!B117,'BD PLÁSTICOS'!S:S)","v":0},{"$f":"SUMIF('BD PLÁSTICOS'!J:J,'ANÁLISIS CUANTITATIVO'!B117,'BD PLÁSTICOS'!R:R)","v":0},{"$f":"SUMIF('BD PLÁSTICOS'!J:J,'ANÁLISIS CUANTITATIVO'!B117,'BD PLÁSTICOS'!Q:Q)","v":0},null,1.17E-3,1.17E-3,1.17E-3]
[null,null,{"$f":"SUMIF('BD PLÁSTICOS'!J:J,'ANÁLISIS CUANTITATIVO'!B118,'BD PLÁSTICOS'!S:S)","v":0},{"$f":"SUMIF('BD PLÁSTICOS'!J:J,'ANÁLISIS CUANTITATIVO'!B118,'BD PLÁSTICOS'!R:R)","v":0},{"$f":"SUMIF('BD PLÁSTICOS'!J:J,'ANÁLISIS CUANTITATIVO'!B118,'BD PLÁSTICOS'!Q:Q)","v":0},null,1.16E-3,1.16E-3,1.16E-3]
[null,null,{"$f":"SUMIF('BD PLÁSTICOS'!J:J,'ANÁLISIS CUANTITATIVO'!B119,'BD PLÁSTICOS'!S:S)","v":0},{"$f":"SUMIF('BD PLÁSTICOS'!J:J,'ANÁLISIS CUANTITATIVO'!B119,'BD PLÁSTICOS'!R:R)","v":0},{"$f":"SUMIF('BD PLÁSTICOS'!J:J,'ANÁLISIS CUANTITATIVO'!B119,'BD PLÁSTICOS'!Q:Q)","v":0},null,1.1500000000000002E-3,1.1500000000000002E-3,1.1500000000000002E-3]
[null,null,{"$f":"SUMIF('BD PLÁSTICOS'!J:J,'ANÁLISIS CUANTITATIVO'!B120,'BD PLÁSTICOS'!S:S)","v":0},{"$f":"SUMIF('BD PLÁSTICOS'!J:J,'ANÁLISIS CUANTITATIVO'!B120,'BD PLÁSTICOS'!R:R)","v":0},{"$f":"SUMIF('BD PLÁSTICOS'!J:J,'ANÁLISIS CUANTITATIVO'!B120,'BD PLÁSTICOS'!Q:Q)","v":0},null,1.1400000000000002E-3,1.1400000000000002E-3,1.1400000000000002E-3]
[null,null,{"$f":"SUMIF('BD PLÁSTICOS'!J:J,'ANÁLISIS CUANTITATIVO'!B121,'BD PLÁSTICOS'!S:S)","v":0},{"$f":"SUMIF('BD PLÁSTICOS'!J:J,'ANÁLISIS CUANTITATIVO'!B121,'BD PLÁSTICOS'!R:R)","v":0},{"$f":"SUMIF('BD PLÁSTICOS'!J:J,'ANÁLISIS CUANTITATIVO'!B121,'BD PLÁSTICOS'!Q:Q)","v":0},null,1.1300000000000001E-3,1.1300000000000001E-3,1.1300000000000001E-3]
[null,null,{"$f":"SUMIF('BD PLÁSTICOS'!J:J,'ANÁLISIS CUANTITATIVO'!B122,'BD PLÁSTICOS'!S:S)","v":0},{"$f":"SUMIF('BD PLÁSTICOS'!J:J,'ANÁLISIS CUANTITATIVO'!B122,'BD PLÁSTICOS'!R:R)","v":0},{"$f":"SUMIF('BD PLÁSTICOS'!J:J,'ANÁLISIS CUANTITATIVO'!B122,'BD PLÁSTICOS'!Q:Q)","v":0},null,1.1200000000000001E-3,1.1200000000000001E-3,1.1200000000000001E-3]
[null,null,{"$f":"SUMIF('BD PLÁSTICOS'!J:J,'ANÁLISIS CUANTITATIVO'!B123,'BD PLÁSTICOS'!S:S)","v":0},{"$f":"SUMIF('BD PLÁSTICOS'!J:J,'ANÁLISIS CUANTITATIVO'!B123,'BD PLÁSTICOS'!R:R)","v":0},{"$f":"SUMIF('BD PLÁSTICOS'!J:J,'ANÁLISIS CUANTITATIVO'!B123,'BD PLÁSTICOS'!Q:Q)","v":0},null,1.1100000000000001E-3,1.1100000000000001E-3,1.1100000000000001E-3]
[null,null,{"$f":"SUMIF('BD PLÁSTICOS'!J:J,'ANÁLISIS CUANTITATIVO'!B124,'BD PLÁSTICOS'!S:S)","v":0},{"$f":"SUMIF('BD PLÁSTICOS'!J:J,'ANÁLISIS CUANTITATIVO'!B124,'BD PLÁSTICOS'!R:R)","v":0},{"$f":"SUMIF('BD PLÁSTICOS'!J:J,'ANÁLISIS CUANTITATIVO'!B124,'BD PLÁSTICOS'!Q:Q)","v":0},null,1.1000000000000001E-3,1.1000000000000001E-3,1.1000000000000001E-3]
[null,null,{"$f":"SUMIF('BD PLÁSTICOS'!J:J,'ANÁLISIS CUANTITATIVO'!B125,'BD PLÁSTICOS'!S:S)","v":0},{"$f":"SUMIF('BD PLÁSTICOS'!J:J,'ANÁLISIS CUANTITATIVO'!B125,'BD PLÁSTICOS'!R:R)","v":0},{"$f":"SUMIF('BD PLÁSTICOS'!J:J,'ANÁLISIS CUANTITATIVO'!B125,'BD PLÁSTICOS'!Q:Q)","v":0},null,1.09E-3,1.09E-3,1.09E-3]
[null,null,{"$f":"SUMIF('BD PLÁSTICOS'!J:J,'ANÁLISIS CUANTITATIVO'!B126,'BD PLÁSTICOS'!S:S)","v":0},{"$f":"SUMIF('BD PLÁSTICOS'!J:J,'ANÁLISIS CUANTITATIVO'!B126,'BD PLÁSTICOS'!R:R)","v":0},{"$f":"SUMIF('BD PLÁSTICOS'!J:J,'ANÁLISIS CUANTITATIVO'!B126,'BD PLÁSTICOS'!Q:Q)","v":0},null,1.08E-3,1.08E-3,1.08E-3]
[null,null,{"$f":"SUMIF('BD PLÁSTICOS'!J:J,'ANÁLISIS CUANTITATIVO'!B127,'BD PLÁSTICOS'!S:S)","v":0},{"$f":"SUMIF('BD PLÁSTICOS'!J:J,'ANÁLISIS CUANTITATIVO'!B127,'BD PLÁSTICOS'!R:R)","v":0},{"$f":"SUMIF('BD PLÁSTICOS'!J:J,'ANÁLISIS CUANTITATIVO'!B127,'BD PLÁSTICOS'!Q:Q)","v":0},null,1.07E-3,1.07E-3,1.07E-3]
[null,null,{"$f":"SUMIF('BD PLÁSTICOS'!J:J,'ANÁLISIS CUANTITATIVO'!B128,'BD PLÁSTICOS'!S:S)","v":0},{"$f":"SUMIF('BD PLÁSTICOS'!J:J,'ANÁLISIS CUANTITATIVO'!B128,'BD PLÁSTICOS'!R:R)","v":0},{"$f":"SUMIF('BD PLÁSTICOS'!J:J,'ANÁLISIS CUANTITATIVO'!B128,'BD PLÁSTICOS'!Q:Q)","v":0},null,1.0600000000000002E-3,1.0600000000000002E-3,1.0600000000000002E-3]
[null,null,{"$f":"SUMIF('BD PLÁSTICOS'!J:J,'ANÁLISIS CUANTITATIVO'!B129,'BD PLÁSTICOS'!S:S)","v":0},{"$f":"SUMIF('BD PLÁSTICOS'!J:J,'ANÁLISIS CUANTITATIVO'!B129,'BD PLÁSTICOS'!R:R)","v":0},{"$f":"SUMIF('BD PLÁSTICOS'!J:J,'ANÁLISIS CUANTITATIVO'!B129,'BD PLÁSTICOS'!Q:Q)","v":0},null,1.0500000000000002E-3,1.0500000000000002E-3,1.0500000000000002E-3]
[null,null,{"$f":"SUMIF('BD PLÁSTICOS'!J:J,'ANÁLISIS CUANTITATIVO'!B130,'BD PLÁSTICOS'!S:S)","v":0},{"$f":"SUMIF('BD PLÁSTICOS'!J:J,'ANÁLISIS CUANTITATIVO'!B130,'BD PLÁSTICOS'!R:R)","v":0},{"$f":"SUMIF('BD PLÁSTICOS'!J:J,'ANÁLISIS CUANTITATIVO'!B130,'BD PLÁSTICOS'!Q:Q)","v":0},null,1.0400000000000001E-3,1.0400000000000001E-3,1.0400000000000001E-3]
[null,null,{"$f":"SUMIF('BD PLÁSTICOS'!J:J,'ANÁLISIS CUANTITATIVO'!B131,'BD PLÁSTICOS'!S:S)","v":0},{"$f":"SUMIF('BD PLÁSTICOS'!J:J,'ANÁLISIS CUANTITATIVO'!B131,'BD PLÁSTICOS'!R:R)","v":0},{"$f":"SUMIF('BD PLÁSTICOS'!J:J,'ANÁLISIS CUANTITATIVO'!B131,'BD PLÁSTICOS'!Q:Q)","v":0},null,1.0300000000000001E-3,1.0300000000000001E-3,1.0300000000000001E-3]
[null,null,{"$f":"SUMIF('BD PLÁSTICOS'!J:J,'ANÁLISIS CUANTITATIVO'!B132,'BD PLÁSTICOS'!S:S)","v":0},{"$f":"SUMIF('BD PLÁSTICOS'!J:J,'ANÁLISIS CUANTITATIVO'!B132,'BD PLÁSTICOS'!R:R)","v":0},{"$f":"SUMIF('BD PLÁSTICOS'!J:J,'ANÁLISIS CUANTITATIVO'!B132,'BD PLÁSTICOS'!Q:Q)","v":0},null,1.0200000000000001E-3,1.0200000000000001E-3,1.0200000000000001E-3]
[null,null,{"$f":"SUMIF('BD PLÁSTICOS'!J:J,'ANÁLISIS CUANTITATIVO'!B133,'BD PLÁSTICOS'!S:S)","v":0},{"$f":"SUMIF('BD PLÁSTICOS'!J:J,'ANÁLISIS CUANTITATIVO'!B133,'BD PLÁSTICOS'!R:R)","v":0},{"$f":"SUMIF('BD PLÁSTICOS'!J:J,'ANÁLISIS CUANTITATIVO'!B133,'BD PLÁSTICOS'!Q:Q)","v":0},null,1.01E-3,1.01E-3,1.01E-3]
[null,null,{"$f":"SUMIF('BD PLÁSTICOS'!J:J,'ANÁLISIS CUANTITATIVO'!B134,'BD PLÁSTICOS'!S:S)","v":0},{"$f":"SUMIF('BD PLÁSTICOS'!J:J,'ANÁLISIS CUANTITATIVO'!B134,'BD PLÁSTICOS'!R:R)","v":0},{"$f":"SUMIF('BD PLÁSTICOS'!J:J,'ANÁLISIS CUANTITATIVO'!B134,'BD PLÁSTICOS'!Q:Q)","v":0},null,{"$f":"C134+(COUNTA($C$6:$C$219)-ROW()+20)*0.00001","v":1E-3},{"$f":"D134+(COUNTA($C$6:$C$219)-ROW()+20)*0.00001","v":1E-3},{"$f":"E134+(COUNTA($C$6:$C$219)-ROW()+20)*0.00001","v":1E-3}]
[null,null,{"$f":"SUMIF('BD PLÁSTICOS'!J:J,'ANÁLISIS CUANTITATIVO'!B135,'BD PLÁSTICOS'!S:S)","v":0},{"$f":"SUMIF('BD PLÁSTICOS'!J:J,'ANÁLISIS CUANTITATIVO'!B135,'BD PLÁSTICOS'!R:R)","v":0},{"$f":"SUMIF('BD PLÁSTICOS'!J:J,'ANÁLISIS CUANTITATIVO'!B135,'BD PLÁSTICOS'!Q:Q)","v":0},null,9.8999999999999999E-4,9.8999999999999999E-4,9.8999999999999999E-4]
[null,null,{"$f":"SUMIF('BD PLÁSTICOS'!J:J,'ANÁLISIS CUANTITATIVO'!B136,'BD PLÁSTICOS'!S:S)","v":0},{"$f":"SUMIF('BD PLÁSTICOS'!J:J,'ANÁLISIS CUANTITATIVO'!B136,'BD PLÁSTICOS'!R:R)","v":0},{"$f":"SUMIF('BD PLÁSTICOS'!J:J,'ANÁLISIS CUANTITATIVO'!B136,'BD PLÁSTICOS'!Q:Q)","v":0},null,9.8000000000000019E-4,9.8000000000000019E-4,9.8000000000000019E-4]
[null,null,{"$f":"SUMIF('BD PLÁSTICOS'!J:J,'ANÁLISIS CUANTITATIVO'!B137,'BD PLÁSTICOS'!S:S)","v":0},{"$f":"SUMIF('BD PLÁSTICOS'!J:J,'ANÁLISIS CUANTITATIVO'!B137,'BD PLÁSTICOS'!R:R)","v":0},{"$f":"SUMIF('BD PLÁSTICOS'!J:J,'ANÁLISIS CUANTITATIVO'!B137,'BD PLÁSTICOS'!Q:Q)","v":0},null,9.7000000000000005E-4,9.7000000000000005E-4,9.7000000000000005E-4]
[null,null,{"$f":"SUMIF('BD PLÁSTICOS'!J:J,'ANÁLISIS CUANTITATIVO'!B138,'BD PLÁSTICOS'!S:S)","v":0},{"$f":"SUMIF('BD PLÁSTICOS'!J:J,'ANÁLISIS CUANTITATIVO'!B138,'BD PLÁSTICOS'!R:R)","v":0},{"$f":"SUMIF('BD PLÁSTICOS'!J:J,'ANÁLISIS CUANTITATIVO'!B138,'BD PLÁSTICOS'!Q:Q)","v":0},null,9.6000000000000013E-4,9.6000000000000013E-4,9.6000000000000013E-4]
[null,null,{"$f":"SUMIF('BD PLÁSTICOS'!J:J,'ANÁLISIS CUANTITATIVO'!B139,'BD PLÁSTICOS'!S:S)","v":0},{"$f":"SUMIF('BD PLÁSTICOS'!J:J,'ANÁLISIS CUANTITATIVO'!B139,'BD PLÁSTICOS'!R:R)","v":0},{"$f":"SUMIF('BD PLÁSTICOS'!J:J,'ANÁLISIS CUANTITATIVO'!B139,'BD PLÁSTICOS'!Q:Q)","v":0},null,9.5000000000000011E-4,9.5000000000000011E-4,9.5000000000000011E-4]
[null,null,{"$f":"SUMIF('BD PLÁSTICOS'!J:J,'ANÁLISIS CUANTITATIVO'!B140,'BD PLÁSTICOS'!S:S)","v":0},{"$f":"SUMIF('BD PLÁSTICOS'!J:J,'ANÁLISIS CUANTITATIVO'!B140,'BD PLÁSTICOS'!R:R)","v":0},{"$f":"SUMIF('BD PLÁSTICOS'!J:J,'ANÁLISIS CUANTITATIVO'!B140,'BD PLÁSTICOS'!Q:Q)","v":0},null,9.4000000000000008E-4,9.4000000000000008E-4,9.4000000000000008E-4]
[null,null,{"$f":"SUMIF('BD PLÁSTICOS'!J:J,'ANÁLISIS CUANTITATIVO'!B141,'BD PLÁSTICOS'!S:S)","v":0},{"$f":"SUMIF('BD PLÁSTICOS'!J:J,'ANÁLISIS CUANTITATIVO'!B141,'BD PLÁSTICOS'!R:R)","v":0},{"$f":"SUMIF('BD PLÁSTICOS'!J:J,'ANÁLISIS CUANTITATIVO'!B141,'BD PLÁSTICOS'!Q:Q)","v":0},null,9.3000000000000005E-4,9.3000000000000005E-4,9.3000000000000005E-4]
[null,null,{"$f":"SUMIF('BD PLÁSTICOS'!J:J,'ANÁLISIS CUANTITATIVO'!B142,'BD PLÁSTICOS'!S:S)","v":0},{"$f":"SUMIF('BD PLÁSTICOS'!J:J,'ANÁLISIS CUANTITATIVO'!B142,'BD PLÁSTICOS'!R:R)","v":0},{"$f":"SUMIF('BD PLÁSTICOS'!J:J,'ANÁLISIS CUANTITATIVO'!B142,'BD PLÁSTICOS'!Q:Q)","v":0},null,9.2000000000000003E-4,9.2000000000000003E-4,9.2000000000000003E-4]
[null,null,{"$f":"SUMIF('BD PLÁSTICOS'!J:J,'ANÁLISIS CUANTITATIVO'!B143,'BD PLÁSTICOS'!S:S)","v":0},{"$f":"SUMIF('BD PLÁSTICOS'!J:J,'ANÁLISIS CUANTITATIVO'!B143,'BD PLÁSTICOS'!R:R)","v":0},{"$f":"SUMIF('BD PLÁSTICOS'!J:J,'ANÁLISIS CUANTITATIVO'!B143,'BD PLÁSTICOS'!Q:Q)","v":0},null,9.1000000000000011E-4,9.1000000000000011E-4,9.1000000000000011E-4]
[null,null,{"$f":"SUMIF('BD PLÁSTICOS'!J:J,'ANÁLISIS CUANTITATIVO'!B144,'BD PLÁSTICOS'!S:S)","v":0},{"$f":"SUMIF('BD PLÁSTICOS'!J:J,'ANÁLISIS CUANTITATIVO'!B144,'BD PLÁSTICOS'!R:R)","v":0},{"$f":"SUMIF('BD PLÁSTICOS'!J:J,'ANÁLISIS CUANTITATIVO'!B144,'BD PLÁSTICOS'!Q:Q)","v":0},null,9.0000000000000008E-4,9.0000000000000008E-4,9.0000000000000008E-4]
[null,null,{"$f":"SUMIF('BD PLÁSTICOS'!J:J,'ANÁLISIS CUANTITATIVO'!B145,'BD PLÁSTICOS'!S:S)","v":0},{"$f":"SUMIF('BD PLÁSTICOS'!J:J,'ANÁLISIS CUANTITATIVO'!B145,'BD PLÁSTICOS'!R:R)","v":0},{"$f":"SUMIF('BD PLÁSTICOS'!J:J,'ANÁLISIS CUANTITATIVO'!B145,'BD PLÁSTICOS'!Q:Q)","v":0},null,8.9000000000000006E-4,8.9000000000000006E-4,8.9000000000000006E-4]
[null,null,{"$f":"SUMIF('BD PLÁSTICOS'!J:J,'ANÁLISIS CUANTITATIVO'!B146,'BD PLÁSTICOS'!S:S)","v":0},{"$f":"SUMIF('BD PLÁSTICOS'!J:J,'ANÁLISIS CUANTITATIVO'!B146,'BD PLÁSTICOS'!R:R)","v":0},{"$f":"SUMIF('BD PLÁSTICOS'!J:J,'ANÁLISIS CUANTITATIVO'!B146,'BD PLÁSTICOS'!Q:Q)","v":0},null,8.8000000000000003E-4,8.8000000000000003E-4,8.8000000000000003E-4]
[null,null,{"$f":"SUMIF('BD PLÁSTICOS'!J:J,'ANÁLISIS CUANTITATIVO'!B147,'BD PLÁSTICOS'!S:S)","v":0},{"$f":"SUMIF('BD PLÁSTICOS'!J:J,'ANÁLISIS CUANTITATIVO'!B147,'BD PLÁSTICOS'!R:R)","v":0},{"$f":"SUMIF('BD PLÁSTICOS'!J:J,'ANÁLISIS CUANTITATIVO'!B147,'BD PLÁSTICOS'!Q:Q)","v":0},null,8.7000000000000011E-4,8.7000000000000011E-4,8.7000000000000011E-4]
[null,null,{"$f":"SUMIF('BD PLÁSTICOS'!J:J,'ANÁLISIS CUANTITATIVO'!B148,'BD PLÁSTICOS'!S:S)","v":0},{"$f":"SUMIF('BD PLÁSTICOS'!J:J,'ANÁLISIS CUANTITATIVO'!B148,'BD PLÁSTICOS'!R:R)","v":0},{"$f":"SUMIF('BD PLÁSTICOS'!J:J,'ANÁLISIS CUANTITATIVO'!B148,'BD PLÁSTICOS'!Q:Q)","v":0},null,8.6000000000000009E-4,8.6000000000000009E-4,8.6000000000000009E-4]
[null,null,{"$f":"SUMIF('BD PLÁSTICOS'!J:J,'ANÁLISIS CUANTITATIVO'!B149,'BD PLÁSTICOS'!S:S)","v":0},{"$f":"SUMIF('BD PLÁSTICOS'!J:J,'ANÁLISIS CUANTITATIVO'!B149,'BD PLÁSTICOS'!R:R)","v":0},{"$f":"SUMIF('BD PLÁSTICOS'!J:J,'ANÁLISIS CUANTITATIVO'!B149,'BD PLÁSTICOS'!Q:Q)","v":0},null,8.5000000000000006E-4,8.5000000000000006E-4,8.5000000000000006E-4]
[null,null,{"$f":"SUMIF('BD PLÁSTICOS'!J:J,'ANÁLISIS CUANTITATIVO'!B150,'BD PLÁSTICOS'!S:S)","v":0},{"$f":"SUMIF('BD PLÁSTICOS'!J:J,'ANÁLISIS CUANTITATIVO'!B150,'BD PLÁSTICOS'!R:R)","v":0},{"$f":"SUMIF('BD PLÁSTICOS'!J:J,'ANÁLISIS CUANTITATIVO'!B150,'BD PLÁSTICOS'!Q:Q)","v":0},null,8.4000000000000003E-4,8.4000000000000003E-4,8.4000000000000003E-4]
[null,null,{"$f":"SUMIF('BD PLÁSTICOS'!J:J,'ANÁLISIS CUANTITATIVO'!B151,'BD PLÁSTICOS'!S:S)","v":0},{"$f":"SUMIF('BD PLÁSTICOS'!J:J,'ANÁLISIS CUANTITATIVO'!B151,'BD PLÁSTICOS'!R:R)","v":0},{"$f":"SUMIF('BD PLÁSTICOS'!J:J,'ANÁLISIS CUANTITATIVO'!B151,'BD PLÁSTICOS'!Q:Q)","v":0},null,8.3000000000000012E-4,8.3000000000000012E-4,8.3000000000000012E-4]
[null,null,{"$f":"SUMIF('BD PLÁSTICOS'!J:J,'ANÁLISIS CUANTITATIVO'!B152,'BD PLÁSTICOS'!S:S)","v":0},{"$f":"SUMIF('BD PLÁSTICOS'!J:J,'ANÁLISIS CUANTITATIVO'!B152,'BD PLÁSTICOS'!R:R)","v":0},{"$f":"SUMIF('BD PLÁSTICOS'!J:J,'ANÁLISIS CUANTITATIVO'!B152,'BD PLÁSTICOS'!Q:Q)","v":0},null,8.2000000000000009E-4,8.2000000000000009E-4,8.2000000000000009E-4]
[null,null,{"$f":"SUMIF('BD PLÁSTICOS'!J:J,'ANÁLISIS CUANTITATIVO'!B153,'BD PLÁSTICOS'!S:S)","v":0},{"$f":"SUMIF('BD PLÁSTICOS'!J:J,'ANÁLISIS CUANTITATIVO'!B153,'BD PLÁSTICOS'!R:R)","v":0},{"$f":"SUMIF('BD PLÁSTICOS'!J:J,'ANÁLISIS CUANTITATIVO'!B153,'BD PLÁSTICOS'!Q:Q)","v":0},null,8.1000000000000006E-4,8.1000000000000006E-4,8.1000000000000006E-4]
[null,null,{"$f":"SUMIF('BD PLÁSTICOS'!J:J,'ANÁLISIS CUANTITATIVO'!B154,'BD PLÁSTICOS'!S:S)","v":0},{"$f":"SUMIF('BD PLÁSTICOS'!J:J,'ANÁLISIS CUANTITATIVO'!B154,'BD PLÁSTICOS'!R:R)","v":0},{"$f":"SUMIF('BD PLÁSTICOS'!J:J,'ANÁLISIS CUANTITATIVO'!B154,'BD PLÁSTICOS'!Q:Q)","v":0},null,8.0000000000000004E-4,8.0000000000000004E-4,8.0000000000000004E-4]
[null,null,{"$f":"SUMIF('BD PLÁSTICOS'!J:J,'ANÁLISIS CUANTITATIVO'!B155,'BD PLÁSTICOS'!S:S)","v":0},{"$f":"SUMIF('BD PLÁSTICOS'!J:J,'ANÁLISIS CUANTITATIVO'!B155,'BD PLÁSTICOS'!R:R)","v":0},{"$f":"SUMIF('BD PLÁSTICOS'!J:J,'ANÁLISIS CUANTITATIVO'!B155,'BD PLÁSTICOS'!Q:Q)","v":0},null,7.9000000000000001E-4,7.9000000000000001E-4,7.9000000000000001E-4]
[null,null,{"$f":"SUMIF('BD PLÁSTICOS'!J:J,'ANÁLISIS CUANTITATIVO'!B156,'BD PLÁSTICOS'!S:S)","v":0},{"$f":"SUMIF('BD PLÁSTICOS'!J:J,'ANÁLISIS CUANTITATIVO'!B156,'BD PLÁSTICOS'!R:R)","v":0},{"$f":"SUMIF('BD PLÁSTICOS'!J:J,'ANÁLISIS CUANTITATIVO'!B156,'BD PLÁSTICOS'!Q:Q)","v":0},null,7.8000000000000009E-4,7.8000000000000009E-4,7.8000000000000009E-4]
[null,null,{"$f":"SUMIF('BD PLÁSTICOS'!J:J,'ANÁLISIS CUANTITATIVO'!B157,'BD PLÁSTICOS'!S:S)","v":0},{"$f":"SUMIF('BD PLÁSTICOS'!J:J,'ANÁLISIS CUANTITATIVO'!B157,'BD PLÁSTICOS'!R:R)","v":0},{"$f":"SUMIF('BD PLÁSTICOS'!J:J,'ANÁLISIS CUANTITATIVO'!B157,'BD PLÁSTICOS'!Q:Q)","v":0},null,7.7000000000000007E-4,7.7000000000000007E-4,7.7000000000000007E-4]
[null,null,{"$f":"SUMIF('BD PLÁSTICOS'!J:J,'ANÁLISIS CUANTITATIVO'!B158,'BD PLÁSTICOS'!S:S)","v":0},{"$f":"SUMIF('BD PLÁSTICOS'!J:J,'ANÁLISIS CUANTITATIVO'!B158,'BD PLÁSTICOS'!R:R)","v":0},{"$f":"SUMIF('BD PLÁSTICOS'!J:J,'ANÁLISIS CUANTITATIVO'!B158,'BD PLÁSTICOS'!Q:Q)","v":0},null,7.6000000000000004E-4,7.6000000000000004E-4,7.6000000000000004E-4]
[null,null,{"$f":"SUMIF('BD PLÁSTICOS'!J:J,'ANÁLISIS CUANTITATIVO'!B159,'BD PLÁSTICOS'!S:S)","v":0},{"$f":"SUMIF('BD PLÁSTICOS'!J:J,'ANÁLISIS CUANTITATIVO'!B159,'BD PLÁSTICOS'!R:R)","v":0},{"$f":"SUMIF('BD PLÁSTICOS'!J:J,'ANÁLISIS CUANTITATIVO'!B159,'BD PLÁSTICOS'!Q:Q)","v":0},null,7.5000000000000002E-4,7.5000000000000002E-4,7.5000000000000002E-4]
[null,null,{"$f":"SUMIF('BD PLÁSTICOS'!J:J,'ANÁLISIS CUANTITATIVO'!B160,'BD PLÁSTICOS'!S:S)","v":0},{"$f":"SUMIF('BD PLÁSTICOS'!J:J,'ANÁLISIS CUANTITATIVO'!B160,'BD PLÁSTICOS'!R:R)","v":0},{"$f":"SUMIF('BD PLÁSTICOS'!J:J,'ANÁLISIS CUANTITATIVO'!B160,'BD PLÁSTICOS'!Q:Q)","v":0},null,7.400000000000001E-4,7.400000000000001E-4,7.400000000000001E-4]
[null,null,{"$f":"SUMIF('BD PLÁSTICOS'!J:J,'ANÁLISIS CUANTITATIVO'!B161,'BD PLÁSTICOS'!S:S)","v":0},{"$f":"SUMIF('BD PLÁSTICOS'!J:J,'ANÁLISIS CUANTITATIVO'!B161,'BD PLÁSTICOS'!R:R)","v":0},{"$f":"SUMIF('BD PLÁSTICOS'!J:J,'ANÁLISIS CUANTITATIVO'!B161,'BD PLÁSTICOS'!Q:Q)","v":0},null,7.3000000000000007E-4,7.3000000000000007E-4,7.3000000000000007E-4]
[null,null,{"$f":"SUMIF('BD PLÁSTICOS'!J:J,'ANÁLISIS CUANTITATIVO'!B162,'BD PLÁSTICOS'!S:S)","v":0},{"$f":"SUMIF('BD PLÁSTICOS'!J:J,'ANÁLISIS CUANTITATIVO'!B162,'BD PLÁSTICOS'!R:R)","v":0},{"$f":"SUMIF('BD PLÁSTICOS'!J:J,'ANÁLISIS CUANTITATIVO'!B162,'BD PLÁSTICOS'!Q:Q)","v":0},null,7.2000000000000005E-4,7.2000000000000005E-4,7.2000000000000005E-4]
[null,null,{"$f":"SUMIF('BD PLÁSTICOS'!J:J,'ANÁLISIS CUANTITATIVO'!B163,'BD PLÁSTICOS'!S:S)","v":0},{"$f":"SUMIF('BD PLÁSTICOS'!J:J,'ANÁLISIS CUANTITATIVO'!B163,'BD PLÁSTICOS'!R:R)","v":0},{"$f":"SUMIF('BD PLÁSTICOS'!J:J,'ANÁLISIS CUANTITATIVO'!B163,'BD PLÁSTICOS'!Q:Q)","v":0},null,7.1000000000000002E-4,7.1000000000000002E-4,7.1000000000000002E-4]
[null,null,{"$f":"SUMIF('BD PLÁSTICOS'!J:J,'ANÁLISIS CUANTITATIVO'!B164,'BD PLÁSTICOS'!S:S)","v":0},{"$f":"SUMIF('BD PLÁSTICOS'!J:J,'ANÁLISIS CUANTITATIVO'!B164,'BD PLÁSTICOS'!R:R)","v":0},{"$f":"SUMIF('BD PLÁSTICOS'!J:J,'ANÁLISIS CUANTITATIVO'!B164,'BD PLÁSTICOS'!Q:Q)","v":0},null,7.000000000000001E-4,7.000000000000001E-4,7.000000000000001E-4]
[null,null,{"$f":"SUMIF('BD PLÁSTICOS'!J:J,'ANÁLISIS CUANTITATIVO'!B165,'BD PLÁSTICOS'!S:S)","v":0},{"$f":"SUMIF('BD PLÁSTICOS'!J:J,'ANÁLISIS CUANTITATIVO'!B165,'BD PLÁSTICOS'!R:R)","v":0},{"$f":"SUMIF('BD PLÁSTICOS'!J:J,'ANÁLISIS CUANTITATIVO'!B165,'BD PLÁSTICOS'!Q:Q)","v":0},null,6.9000000000000008E-4,6.9000000000000008E-4,6.9000000000000008E-4]
[null,null,{"$f":"SUMIF('BD PLÁSTICOS'!J:J,'ANÁLISIS CUANTITATIVO'!B166,'BD PLÁSTICOS'!S:S)","v":0},{"$f":"SUMIF('BD PLÁSTICOS'!J:J,'ANÁLISIS CUANTITATIVO'!B166,'BD PLÁSTICOS'!R:R)","v":0},{"$f":"SUMIF('BD PLÁSTICOS'!J:J,'ANÁLISIS CUANTITATIVO'!B166,'BD PLÁSTICOS'!Q:Q)","v":0},null,6.8000000000000005E-4,6.8000000000000005E-4,6.8000000000000005E-4]
[null,null,{"$f":"SUMIF('BD PLÁSTICOS'!J:J,'ANÁLISIS CUANTITATIVO'!B167,'BD PLÁSTICOS'!S:S)","v":0},{"$f":"SUMIF('BD PLÁSTICOS'!J:J,'ANÁLISIS CUANTITATIVO'!B167,'BD PLÁSTICOS'!R:R)","v":0},{"$f":"SUMIF('BD PLÁSTICOS'!J:J,'ANÁLISIS CUANTITATIVO'!B167,'BD PLÁSTICOS'!Q:Q)","v":0},null,6.7000000000000002E-4,6.7000000000000002E-4,6.7000000000000002E-4]
[null,null,{"$f":"SUMIF('BD PLÁSTICOS'!J:J,'ANÁLISIS CUANTITATIVO'!B168,'BD PLÁSTICOS'!S:S)","v":0},{"$f":"SUMIF('BD PLÁSTICOS'!J:J,'ANÁLISIS CUANTITATIVO'!B168,'BD PLÁSTICOS'!R:R)","v":0},{"$f":"SUMIF('BD PLÁSTICOS'!J:J,'ANÁLISIS CUANTITATIVO'!B168,'BD PLÁSTICOS'!Q:Q)","v":0},null,6.600000000000001E-4,6.600000000000001E-4,6.600000000000001E-4]
[null,null,{"$f":"SUMIF('BD PLÁSTICOS'!J:J,'ANÁLISIS CUANTITATIVO'!B169,'BD PLÁSTICOS'!S:S)","v":0},{"$f":"SUMIF('BD PLÁSTICOS'!J:J,'ANÁLISIS CUANTITATIVO'!B169,'BD PLÁSTICOS'!R:R)","v":0},{"$f":"SUMIF('BD PLÁSTICOS'!J:J,'ANÁLISIS CUANTITATIVO'!B169,'BD PLÁSTICOS'!Q:Q)","v":0},null,6.5000000000000008E-4,6.5000000000000008E-4,6.5000000000000008E-4]
[null,null,{"$f":"SUMIF('BD PLÁSTICOS'!J:J,'ANÁLISIS CUANTITATIVO'!B170,'BD PLÁSTICOS'!S:S)","v":0},{"$f":"SUMIF('BD PLÁSTICOS'!J:J,'ANÁLISIS CUANTITATIVO'!B170,'BD PLÁSTICOS'!R:R)","v":0},{"$f":"SUMIF('BD PLÁSTICOS'!J:J,'ANÁLISIS CUANTITATIVO'!B170,'BD PLÁSTICOS'!Q:Q)","v":0},null,6.4000000000000005E-4,6.4000000000000005E-4,6.4000000000000005E-4]
[null,null,{"$f":"SUMIF('BD PLÁSTICOS'!J:J,'ANÁLISIS CUANTITATIVO'!B171,'BD PLÁSTICOS'!S:S)","v":0},{"$f":"SUMIF('BD PLÁSTICOS'!J:J,'ANÁLISIS CUANTITATIVO'!B171,'BD PLÁSTICOS'!R:R)","v":0},{"$f":"SUMIF('BD PLÁSTICOS'!J:J,'ANÁLISIS CUANTITATIVO'!B171,'BD PLÁSTICOS'!Q:Q)","v":0},null,6.3000000000000003E-4,6.3000000000000003E-4,6.3000000000000003E-4]
[null,null,{"$f":"SUMIF('BD PLÁSTICOS'!J:J,'ANÁLISIS CUANTITATIVO'!B172,'BD PLÁSTICOS'!S:S)","v":0},{"$f":"SUMIF('BD PLÁSTICOS'!J:J,'ANÁLISIS CUANTITATIVO'!B172,'BD PLÁSTICOS'!R:R)","v":0},{"$f":"SUMIF('BD PLÁSTICOS'!J:J,'ANÁLISIS CUANTITATIVO'!B172,'BD PLÁSTICOS'!Q:Q)","v":0},null,6.2E-4,6.2E-4,6.2E-4]
[null,null,{"$f":"SUMIF('BD PLÁSTICOS'!J:J,'ANÁLISIS CUANTITATIVO'!B173,'BD PLÁSTICOS'!S:S)","v":0},{"$f":"SUMIF('BD PLÁSTICOS'!J:J,'ANÁLISIS CUANTITATIVO'!B173,'BD PLÁSTICOS'!R:R)","v":0},{"$f":"SUMIF('BD PLÁSTICOS'!J:J,'ANÁLISIS CUANTITATIVO'!B173,'BD PLÁSTICOS'!Q:Q)","v":0},null,6.1000000000000008E-4,6.1000000000000008E-4,6.1000000000000008E-4]
[null,null,{"$f":"SUMIF('BD PLÁSTICOS'!J:J,'ANÁLISIS CUANTITATIVO'!B174,'BD PLÁSTICOS'!S:S)","v":0},{"$f":"SUMIF('BD PLÁSTICOS'!J:J,'ANÁLISIS CUANTITATIVO'!B174,'BD PLÁSTICOS'!R:R)","v":0},{"$f":"SUMIF('BD PLÁSTICOS'!J:J,'ANÁLISIS CUANTITATIVO'!B174,'BD PLÁSTICOS'!Q:Q)","v":0},null,6.0000000000000006E-4,6.0000000000000006E-4,6.0000000000000006E-4]
[null,null,{"$f":"SUMIF('BD PLÁSTICOS'!J:J,'ANÁLISIS CUANTITATIVO'!B175,'BD PLÁSTICOS'!S:S)","v":0},{"$f":"SUMIF('BD PLÁSTICOS'!J:J,'ANÁLISIS CUANTITATIVO'!B175,'BD PLÁSTICOS'!R:R)","v":0},{"$f":"SUMIF('BD PLÁSTICOS'!J:J,'ANÁLISIS CUANTITATIVO'!B175,'BD PLÁSTICOS'!Q:Q)","v":0},null,5.9000000000000003E-4,5.9000000000000003E-4,5.9000000000000003E-4]
[null,null,{"$f":"SUMIF('BD PLÁSTICOS'!J:J,'ANÁLISIS CUANTITATIVO'!B176,'BD PLÁSTICOS'!S:S)","v":0},{"$f":"SUMIF('BD PLÁSTICOS'!J:J,'ANÁLISIS CUANTITATIVO'!B176,'BD PLÁSTICOS'!R:R)","v":0},{"$f":"SUMIF('BD PLÁSTICOS'!J:J,'ANÁLISIS CUANTITATIVO'!B176,'BD PLÁSTICOS'!Q:Q)","v":0},null,5.8E-4,5.8E-4,5.8E-4]
[null,null,{"$f":"SUMIF('BD PLÁSTICOS'!J:J,'ANÁLISIS CUANTITATIVO'!B177,'BD PLÁSTICOS'!S:S)","v":0},{"$f":"SUMIF('BD PLÁSTICOS'!J:J,'ANÁLISIS CUANTITATIVO'!B177,'BD PLÁSTICOS'!R:R)","v":0},{"$f":"SUMIF('BD PLÁSTICOS'!J:J,'ANÁLISIS CUANTITATIVO'!B177,'BD PLÁSTICOS'!Q:Q)","v":0},null,5.7000000000000009E-4,5.7000000000000009E-4,5.7000000000000009E-4]
[null,null,{"$f":"SUMIF('BD PLÁSTICOS'!J:J,'ANÁLISIS CUANTITATIVO'!B178,'BD PLÁSTICOS'!S:S)","v":0},{"$f":"SUMIF('BD PLÁSTICOS'!J:J,'ANÁLISIS CUANTITATIVO'!B178,'BD PLÁSTICOS'!R:R)","v":0},{"$f":"SUMIF('BD PLÁSTICOS'!J:J,'ANÁLISIS CUANTITATIVO'!B178,'BD PLÁSTICOS'!Q:Q)","v":0},null,5.6000000000000006E-4,5.6000000000000006E-4,5.6000000000000006E-4]
[null,null,{"$f":"SUMIF('BD PLÁSTICOS'!J:J,'ANÁLISIS CUANTITATIVO'!B179,'BD PLÁSTICOS'!S:S)","v":0},{"$f":"SUMIF('BD PLÁSTICOS'!J:J,'ANÁLISIS CUANTITATIVO'!B179,'BD PLÁSTICOS'!R:R)","v":0},{"$f":"SUMIF('BD PLÁSTICOS'!J:J,'ANÁLISIS CUANTITATIVO'!B179,'BD PLÁSTICOS'!Q:Q)","v":0},null,5.5000000000000003E-4,5.5000000000000003E-4,5.5000000000000003E-4]
[null,null,{"$f":"SUMIF('BD PLÁSTICOS'!J:J,'ANÁLISIS CUANTITATIVO'!B180,'BD PLÁSTICOS'!S:S)","v":0},{"$f":"SUMIF('BD PLÁSTICOS'!J:J,'ANÁLISIS CUANTITATIVO'!B180,'BD PLÁSTICOS'!R:R)","v":0},{"$f":"SUMIF('BD PLÁSTICOS'!J:J,'ANÁLISIS CUANTITATIVO'!B180,'BD PLÁSTICOS'!Q:Q)","v":0},null,5.4000000000000001E-4,5.4000000000000001E-4,5.4000000000000001E-4]
[null,null,{"$f":"SUMIF('BD PLÁSTICOS'!J:J,'ANÁLISIS CUANTITATIVO'!B181,'BD PLÁSTICOS'!S:S)","v":0},{"$f":"SUMIF('BD PLÁSTICOS'!J:J,'ANÁLISIS CUANTITATIVO'!B181,'BD PLÁSTICOS'!R:R)","v":0},{"$f":"SUMIF('BD PLÁSTICOS'!J:J,'ANÁLISIS CUANTITATIVO'!B181,'BD PLÁSTICOS'!Q:Q)","v":0},null,5.3000000000000009E-4,5.3000000000000009E-4,5.3000000000000009E-4]
[null,null,{"$f":"SUMIF('BD PLÁSTICOS'!J:J,'ANÁLISIS CUANTITATIVO'!B182,'BD PLÁSTICOS'!S:S)","v":0},{"$f":"SUMIF('BD PLÁSTICOS'!J:J,'ANÁLISIS CUANTITATIVO'!B182,'BD PLÁSTICOS'!R:R)","v":0},{"$f":"SUMIF('BD PLÁSTICOS'!J:J,'ANÁLISIS CUANTITATIVO'!B182,'BD PLÁSTICOS'!Q:Q)","v":0},null,5.2000000000000006E-4,5.2000000000000006E-4,5.2000000000000006E-4]
[null,null,{"$f":"SUMIF('BD PLÁSTICOS'!J:J,'ANÁLISIS CUANTITATIVO'!B183,'BD PLÁSTICOS'!S:S)","v":0},{"$f":"SUMIF('BD PLÁSTICOS'!J:J,'ANÁLISIS CUANTITATIVO'!B183,'BD PLÁSTICOS'!R:R)","v":0},{"$f":"SUMIF('BD PLÁSTICOS'!J:J,'ANÁLISIS CUANTITATIVO'!B183,'BD PLÁSTICOS'!Q:Q)","v":0},null,5.1000000000000004E-4,5.1000000000000004E-4,5.1000000000000004E-4]
[null,null,{"$f":"SUMIF('BD PLÁSTICOS'!J:J,'ANÁLISIS CUANTITATIVO'!B184,'BD PLÁSTICOS'!S:S)","v":0},{"$f":"SUMIF('BD PLÁSTICOS'!J:J,'ANÁLISIS CUANTITATIVO'!B184,'BD PLÁSTICOS'!R:R)","v":0},{"$f":"SUMIF('BD PLÁSTICOS'!J:J,'ANÁLISIS CUANTITATIVO'!B184,'BD PLÁSTICOS'!Q:Q)","v":0},null,5.0000000000000001E-4,5.0000000000000001E-4,5.0000000000000001E-4]
[null,null,{"$f":"SUMIF('BD PLÁSTICOS'!J:J,'ANÁLISIS CUANTITATIVO'!B185,'BD PLÁSTICOS'!S:S)","v":0},{"$f":"SUMIF('BD PLÁSTICOS'!J:J,'ANÁLISIS CUANTITATIVO'!B185,'BD PLÁSTICOS'!R:R)","v":0},{"$f":"SUMIF('BD PLÁSTICOS'!J:J,'ANÁLISIS CUANTITATIVO'!B185,'BD PLÁSTICOS'!Q:Q)","v":0},null,4.9000000000000009E-4,4.9000000000000009E-4,4.9000000000000009E-4]
[null,null,{"$f":"SUMIF('BD PLÁSTICOS'!J:J,'ANÁLISIS CUANTITATIVO'!B186,'BD PLÁSTICOS'!S:S)","v":0},{"$f":"SUMIF('BD PLÁSTICOS'!J:J,'ANÁLISIS CUANTITATIVO'!B186,'BD PLÁSTICOS'!R:R)","v":0},{"$f":"SUMIF('BD PLÁSTICOS'!J:J,'ANÁLISIS CUANTITATIVO'!B186,'BD PLÁSTICOS'!Q:Q)","v":0},null,4.8000000000000007E-4,4.8000000000000007E-4,4.8000000000000007E-4]
[null,null,{"$f":"SUMIF('BD PLÁSTICOS'!J:J,'ANÁLISIS CUANTITATIVO'!B187,'BD PLÁSTICOS'!S:S)","v":0},{"$f":"SUMIF('BD PLÁSTICOS'!J:J,'ANÁLISIS CUANTITATIVO'!B187,'BD PLÁSTICOS'!R:R)","v":0},{"$f":"SUMIF('BD PLÁSTICOS'!J:J,'ANÁLISIS CUANTITATIVO'!B187,'BD PLÁSTICOS'!Q:Q)","v":0},null,4.7000000000000004E-4,4.7000000000000004E-4,4.7000000000000004E-4]
[null,null,{"$f":"SUMIF('BD PLÁSTICOS'!J:J,'ANÁLISIS CUANTITATIVO'!B188,'BD PLÁSTICOS'!S:S)","v":0},{"$f":"SUMIF('BD PLÁSTICOS'!J:J,'ANÁLISIS CUANTITATIVO'!B188,'BD PLÁSTICOS'!R:R)","v":0},{"$f":"SUMIF('BD PLÁSTICOS'!J:J,'ANÁLISIS CUANTITATIVO'!B188,'BD PLÁSTICOS'!Q:Q)","v":0},null,4.6000000000000001E-4,4.6000000000000001E-4,4.6000000000000001E-4]
[null,null,{"$f":"SUMIF('BD PLÁSTICOS'!J:J,'ANÁLISIS CUANTITATIVO'!B189,'BD PLÁSTICOS'!S:S)","v":0},{"$f":"SUMIF('BD PLÁSTICOS'!J:J,'ANÁLISIS CUANTITATIVO'!B189,'BD PLÁSTICOS'!R:R)","v":0},{"$f":"SUMIF('BD PLÁSTICOS'!J:J,'ANÁLISIS CUANTITATIVO'!B189,'BD PLÁSTICOS'!Q:Q)","v":0},null,4.5000000000000004E-4,4.5000000000000004E-4,4.5000000000000004E-4]
[null,null,{"$f":"SUMIF('BD PLÁSTICOS'!J:J,'ANÁLISIS CUANTITATIVO'!B190,'BD PLÁSTICOS'!S:S)","v":0},{"$f":"SUMIF('BD PLÁSTICOS'!J:J,'ANÁLISIS CUANTITATIVO'!B190,'BD PLÁSTICOS'!R:R)","v":0},{"$f":"SUMIF('BD PLÁSTICOS'!J:J,'ANÁLISIS CUANTITATIVO'!B190,'BD PLÁSTICOS'!Q:Q)","v":0},null,4.4000000000000002E-4,4.4000000000000002E-4,4.4000000000000002E-4]
[null,null,{"$f":"SUMIF('BD PLÁSTICOS'!J:J,'ANÁLISIS CUANTITATIVO'!B191,'BD PLÁSTICOS'!S:S)","v":0},{"$f":"SUMIF('BD PLÁSTICOS'!J:J,'ANÁLISIS CUANTITATIVO'!B191,'BD PLÁSTICOS'!R:R)","v":0},{"$f":"SUMIF('BD PLÁSTICOS'!J:J,'ANÁLISIS CUANTITATIVO'!B191,'BD PLÁSTICOS'!Q:Q)","v":0},null,4.3000000000000004E-4,4.3000000000000004E-4,4.3000000000000004E-4]
[null,null,{"$f":"SUMIF('BD PLÁSTICOS'!J:J,'ANÁLISIS CUANTITATIVO'!B192,'BD PLÁSTICOS'!S:S)","v":0},{"$f":"SUMIF('BD PLÁSTICOS'!J:J,'ANÁLISIS CUANTITATIVO'!B192,'BD PLÁSTICOS'!R:R)","v":0},{"$f":"SUMIF('BD PLÁSTICOS'!J:J,'ANÁLISIS CUANTITATIVO'!B192,'BD PLÁSTICOS'!Q:Q)","v":0},null,4.2000000000000002E-4,4.2000000000000002E-4,4.2000000000000002E-4]
[null,null,{"$f":"SUMIF('BD PLÁSTICOS'!J:J,'ANÁLISIS CUANTITATIVO'!B193,'BD PLÁSTICOS'!S:S)","v":0},{"$f":"SUMIF('BD PLÁSTICOS'!J:J,'ANÁLISIS CUANTITATIVO'!B193,'BD PLÁSTICOS'!R:R)","v":0},{"$f":"SUMIF('BD PLÁSTICOS'!J:J,'ANÁLISIS CUANTITATIVO'!B193,'BD PLÁSTICOS'!Q:Q)","v":0},null,4.1000000000000005E-4,4.1000000000000005E-4,4.1000000000000005E-4]
[null,null,{"$f":"SUMIF('BD PLÁSTICOS'!J:J,'ANÁLISIS CUANTITATIVO'!B194,'BD PLÁSTICOS'!S:S)","v":0},{"$f":"SUMIF('BD PLÁSTICOS'!J:J,'ANÁLISIS CUANTITATIVO'!B194,'BD PLÁSTICOS'!R:R)","v":0},{"$f":"SUMIF('BD PLÁSTICOS'!J:J,'ANÁLISIS CUANTITATIVO'!B194,'BD PLÁSTICOS'!Q:Q)","v":0},null,4.0000000000000002E-4,4.0000000000000002E-4,4.0000000000000002E-4]
[null,null,{"$f":"SUMIF('BD PLÁSTICOS'!J:J,'ANÁLISIS CUANTITATIVO'!B195,'BD PLÁSTICOS'!S:S)","v":0},{"$f":"SUMIF('BD PLÁSTICOS'!J:J,'ANÁLISIS CUANTITATIVO'!B195,'BD PLÁSTICOS'!R:R)","v":0},{"$f":"SUMIF('BD PLÁSTICOS'!J:J,'ANÁLISIS CUANTITATIVO'!B195,'BD PLÁSTICOS'!Q:Q)","v":0},null,3.9000000000000005E-4,3.9000000000000005E-4,3.9000000000000005E-4]
[null,null,{"$f":"SUMIF('BD PLÁSTICOS'!J:J,'ANÁLISIS CUANTITATIVO'!B196,'BD PLÁSTICOS'!S:S)","v":0},{"$f":"SUMIF('BD PLÁSTICOS'!J:J,'ANÁLISIS CUANTITATIVO'!B196,'BD PLÁSTICOS'!R:R)","v":0},{"$f":"SUMIF('BD PLÁSTICOS'!J:J,'ANÁLISIS CUANTITATIVO'!B196,'BD PLÁSTICOS'!Q:Q)","v":0},null,3.8000000000000002E-4,3.8000000000000002E-4,3.8000000000000002E-4]
[null,null,{"$f":"SUMIF('BD PLÁSTICOS'!J:J,'ANÁLISIS CUANTITATIVO'!B197,'BD PLÁSTICOS'!S:S)","v":0},{"$f":"SUMIF('BD PLÁSTICOS'!J:J,'ANÁLISIS CUANTITATIVO'!B197,'BD PLÁSTICOS'!R:R)","v":0},{"$f":"SUMIF('BD PLÁSTICOS'!J:J,'ANÁLISIS CUANTITATIVO'!B197,'BD PLÁSTICOS'!Q:Q)","v":0},null,3.7000000000000005E-4,3.7000000000000005E-4,3.7000000000000005E-4]
[null,null,{"$f":"SUMIF('BD PLÁSTICOS'!J:J,'ANÁLISIS CUANTITATIVO'!B198,'BD PLÁSTICOS'!S:S)","v":0},{"$f":"SUMIF('BD PLÁSTICOS'!J:J,'ANÁLISIS CUANTITATIVO'!B198,'BD PLÁSTICOS'!R:R)","v":0},{"$f":"SUMIF('BD PLÁSTICOS'!J:J,'ANÁLISIS CUANTITATIVO'!B198,'BD PLÁSTICOS'!Q:Q)","v":0},null,{"$f":"C198+(COUNTA($C$6:$C$219)-ROW()+20)*0.00001","v":3.6000000000000002E-4},{"$f":"D198+(COUNTA($C$6:$C$219)-ROW()+20)*0.00001","v":3.6000000000000002E-4},{"$f":"E198+(COUNTA($C$6:$C$219)-ROW()+20)*0.00001","v":3.6000000000000002E-4}]
[null,null,{"$f":"SUMIF('BD PLÁSTICOS'!J:J,'ANÁLISIS CUANTITATIVO'!B199,'BD PLÁSTICOS'!S:S)","v":0},{"$f":"SUMIF('BD PLÁSTICOS'!J:J,'ANÁLISIS CUANTITATIVO'!B199,'BD PLÁSTICOS'!R:R)","v":0},{"$f":"SUMIF('BD PLÁSTICOS'!J:J,'ANÁLISIS CUANTITATIVO'!B199,'BD PLÁSTICOS'!Q:Q)","v":0},null,3.5000000000000005E-4,3.5000000000000005E-4,3.5000000000000005E-4]
[null,null,{"$f":"SUMIF('BD PLÁSTICOS'!J:J,'ANÁLISIS CUANTITATIVO'!B200,'BD PLÁSTICOS'!S:S)","v":0},{"$f":"SUMIF('BD PLÁSTICOS'!J:J,'ANÁLISIS CUANTITATIVO'!B200,'BD PLÁSTICOS'!R:R)","v":0},{"$f":"SUMIF('BD PLÁSTICOS'!J:J,'ANÁLISIS CUANTITATIVO'!B200,'BD PLÁSTICOS'!Q:Q)","v":0},null,3.4000000000000002E-4,3.4000000000000002E-4,3.4000000000000002E-4]
[null,null,{"$f":"SUMIF('BD PLÁSTICOS'!J:J,'ANÁLISIS CUANTITATIVO'!B201,'BD PLÁSTICOS'!S:S)","v":0},{"$f":"SUMIF('BD PLÁSTICOS'!J:J,'ANÁLISIS CUANTITATIVO'!B201,'BD PLÁSTICOS'!R:R)","v":0},{"$f":"SUMIF('BD PLÁSTICOS'!J:J,'ANÁLISIS CUANTITATIVO'!B201,'BD PLÁSTICOS'!Q:Q)","v":0},null,3.3000000000000005E-4,3.3000000000000005E-4,3.3000000000000005E-4]
[null,null,{"$f":"SUMIF('BD PLÁSTICOS'!J:J,'ANÁLISIS CUANTITATIVO'!B202,'BD PLÁSTICOS'!S:S)","v":0},{"$f":"SUMIF('BD PLÁSTICOS'!J:J,'ANÁLISIS CUANTITATIVO'!B202,'BD PLÁSTICOS'!R:R)","v":0},{"$f":"SUMIF('BD PLÁSTICOS'!J:J,'ANÁLISIS CUANTITATIVO'!B202,'BD PLÁSTICOS'!Q:Q)","v":0},null,3.2000000000000003E-4,3.2000000000000003E-4,3.2000000000000003E-4]
[null,null,{"$f":"SUMIF('BD PLÁSTICOS'!J:J,'ANÁLISIS CUANTITATIVO'!B203,'BD PLÁSTICOS'!S:S)","v":0},{"$f":"SUMIF('BD PLÁSTICOS'!J:J,'ANÁLISIS CUANTITATIVO'!B203,'BD PLÁSTICOS'!R:R)","v":0},{"$f":"SUMIF('BD PLÁSTICOS'!J:J,'ANÁLISIS CUANTITATIVO'!B203,'BD PLÁSTICOS'!Q:Q)","v":0},null,3.1E-4,3.1E-4,3.1E-4]
[null,null,{"$f":"SUMIF('BD PLÁSTICOS'!J:J,'ANÁLISIS CUANTITATIVO'!B204,'BD PLÁSTICOS'!S:S)","v":0},{"$f":"SUMIF('BD PLÁSTICOS'!J:J,'ANÁLISIS CUANTITATIVO'!B204,'BD PLÁSTICOS'!R:R)","v":0},{"$f":"SUMIF('BD PLÁSTICOS'!J:J,'ANÁLISIS CUANTITATIVO'!B204,'BD PLÁSTICOS'!Q:Q)","v":0},null,3.0000000000000003E-4,3.0000000000000003E-4,3.0000000000000003E-4]
[null,null,{"$f":"SUMIF('BD PLÁSTICOS'!J:J,'ANÁLISIS CUANTITATIVO'!B205,'BD PLÁSTICOS'!S:S)","v":0},{"$f":"SUMIF('BD PLÁSTICOS'!J:J,'ANÁLISIS CUANTITATIVO'!B205,'BD PLÁSTICOS'!R:R)","v":0},{"$f":"SUMIF('BD PLÁSTICOS'!J:J,'ANÁLISIS CUANTITATIVO'!B205,'BD PLÁSTICOS'!Q:Q)","v":0},null,2.9E-4,2.9E-4,2.9E-4]
[null,null,{"$f":"SUMIF('BD PLÁSTICOS'!J:J,'ANÁLISIS CUANTITATIVO'!B206,'BD PLÁSTICOS'!S:S)","v":0},{"$f":"SUMIF('BD PLÁSTICOS'!J:J,'ANÁLISIS CUANTITATIVO'!B206,'BD PLÁSTICOS'!R:R)","v":0},{"$f":"SUMIF('BD PLÁSTICOS'!J:J,'ANÁLISIS CUANTITATIVO'!B206,'BD PLÁSTICOS'!Q:Q)","v":0},null,2.8000000000000003E-4,2.8000000000000003E-4,2.8000000000000003E-4]
[null,null,{"$f":"SUMIF('BD PLÁSTICOS'!J:J,'ANÁLISIS CUANTITATIVO'!B207,'BD PLÁSTICOS'!S:S)","v":0},{"$f":"SUMIF('BD PLÁSTICOS'!J:J,'ANÁLISIS CUANTITATIVO'!B207,'BD PLÁSTICOS'!R:R)","v":0},{"$f":"SUMIF('BD PLÁSTICOS'!J:J,'ANÁLISIS CUANTITATIVO'!B207,'BD PLÁSTICOS'!Q:Q)","v":0},null,2.7E-4,2.7E-4,2.7E-4]
[null,null,{"$f":"SUMIF('BD PLÁSTICOS'!J:J,'ANÁLISIS CUANTITATIVO'!B208,'BD PLÁSTICOS'!S:S)","v":0},{"$f":"SUMIF('BD PLÁSTICOS'!J:J,'ANÁLISIS CUANTITATIVO'!B208,'BD PLÁSTICOS'!R:R)","v":0},{"$f":"SUMIF('BD PLÁSTICOS'!J:J,'ANÁLISIS CUANTITATIVO'!B208,'BD PLÁSTICOS'!Q:Q)","v":0},null,2.6000000000000003E-4,2.6000000000000003E-4,2.6000000000000003E-4]
[null,null,{"$f":"SUMIF('BD PLÁSTICOS'!J:J,'ANÁLISIS CUANTITATIVO'!B209,'BD PLÁSTICOS'!S:S)","v":0},{"$f":"SUMIF('BD PLÁSTICOS'!J:J,'ANÁLISIS CUANTITATIVO'!B209,'BD PLÁSTICOS'!R:R)","v":0},{"$f":"SUMIF('BD PLÁSTICOS'!J:J,'ANÁLISIS CUANTITATIVO'!B209,'BD PLÁSTICOS'!Q:Q)","v":0},null,2.5000000000000001E-4,2.5000000000000001E-4,2.5000000000000001E-4]
[null,null,{"$f":"SUMIF('BD PLÁSTICOS'!J:J,'ANÁLISIS CUANTITATIVO'!B210,'BD PLÁSTICOS'!S:S)","v":0},{"$f":"SUMIF('BD PLÁSTICOS'!J:J,'ANÁLISIS CUANTITATIVO'!B210,'BD PLÁSTICOS'!R:R)","v":0},{"$f":"SUMIF('BD PLÁSTICOS'!J:J,'ANÁLISIS CUANTITATIVO'!B210,'BD PLÁSTICOS'!Q:Q)","v":0},null,2.4000000000000003E-4,2.4000000000000003E-4,2.4000000000000003E-4]
[null,null,{"$f":"SUMIF('BD PLÁSTICOS'!J:J,'ANÁLISIS CUANTITATIVO'!B211,'BD PLÁSTICOS'!S:S)","v":0},{"$f":"SUMIF('BD PLÁSTICOS'!J:J,'ANÁLISIS CUANTITATIVO'!B211,'BD PLÁSTICOS'!R:R)","v":0},{"$f":"SUMIF('BD PLÁSTICOS'!J:J,'ANÁLISIS CUANTITATIVO'!B211,'BD PLÁSTICOS'!Q:Q)","v":0},null,2.3000000000000001E-4,2.3000000000000001E-4,2.3000000000000001E-4]
[null,null,{"$f":"SUMIF('BD PLÁSTICOS'!J:J,'ANÁLISIS CUANTITATIVO'!B212,'BD PLÁSTICOS'!S:S)","v":0},{"$f":"SUMIF('BD PLÁSTICOS'!J:J,'ANÁLISIS CUANTITATIVO'!B212,'BD PLÁSTICOS'!R:R)","v":0},{"$f":"SUMIF('BD PLÁSTICOS'!J:J,'ANÁLISIS CUANTITATIVO'!B212,'BD PLÁSTICOS'!Q:Q)","v":0},null,2.2000000000000001E-4,2.2000000000000001E-4,2.2000000000000001E-4]
[null,null,{"$f":"SUMIF('BD PLÁSTICOS'!J:J,'ANÁLISIS CUANTITATIVO'!B213,'BD PLÁSTICOS'!S:S)","v":0},{"$f":"SUMIF('BD PLÁSTICOS'!J:J,'ANÁLISIS CUANTITATIVO'!B213,'BD PLÁSTICOS'!R:R)","v":0},{"$f":"SUMIF('BD PLÁSTICOS'!J:J,'ANÁLISIS CUANTITATIVO'!B213,'BD PLÁSTICOS'!Q:Q)","v":0},null,2.1000000000000001E-4,2.1000000000000001E-4,2.1000000000000001E-4]
[null,null,{"$f":"SUMIF('BD PLÁSTICOS'!J:J,'ANÁLISIS CUANTITATIVO'!B214,'BD PLÁSTICOS'!S:S)","v":0},{"$f":"SUMIF('BD PLÁSTICOS'!J:J,'ANÁLISIS CUANTITATIVO'!B214,'BD PLÁSTICOS'!R:R)","v":0},{"$f":"SUMIF('BD PLÁSTICOS'!J:J,'ANÁLISIS CUANTITATIVO'!B214,'BD PLÁSTICOS'!Q:Q)","v":0},null,2.0000000000000001E-4,2.0000000000000001E-4,2.0000000000000001E-4]
[null,null,{"$f":"SUMIF('BD PLÁSTICOS'!J:J,'ANÁLISIS CUANTITATIVO'!B215,'BD PLÁSTICOS'!S:S)","v":0},{"$f":"SUMIF('BD PLÁSTICOS'!J:J,'ANÁLISIS CUANTITATIVO'!B215,'BD PLÁSTICOS'!R:R)","v":0},{"$f":"SUMIF('BD PLÁSTICOS'!J:J,'ANÁLISIS CUANTITATIVO'!B215,'BD PLÁSTICOS'!Q:Q)","v":0},null,1.9000000000000001E-4,1.9000000000000001E-4,1.9000000000000001E-4]
[null,null,{"$f":"SUMIF('BD PLÁSTICOS'!J:J,'ANÁLISIS CUANTITATIVO'!B216,'BD PLÁSTICOS'!S:S)","v":0},{"$f":"SUMIF('BD PLÁSTICOS'!J:J,'ANÁLISIS CUANTITATIVO'!B216,'BD PLÁSTICOS'!R:R)","v":0},{"$f":"SUMIF('BD PLÁSTICOS'!J:J,'ANÁLISIS CUANTITATIVO'!B216,'BD PLÁSTICOS'!Q:Q)","v":0},null,1.8000000000000001E-4,1.8000000000000001E-4,1.8000000000000001E-4]
[null,null,{"$f":"SUMIF('BD PLÁSTICOS'!J:J,'ANÁLISIS CUANTITATIVO'!B217,'BD PLÁSTICOS'!S:S)","v":0},{"$f":"SUMIF('BD PLÁSTICOS'!J:J,'ANÁLISIS CUANTITATIVO'!B217,'BD PLÁSTICOS'!R:R)","v":0},{"$f":"SUMIF('BD PLÁSTICOS'!J:J,'ANÁLISIS CUANTITATIVO'!B217,'BD PLÁSTICOS'!Q:Q)","v":0},null,1.7000000000000001E-4,1.7000000000000001E-4,1.7000000000000001E-4]
[null,null,{"$f":"SUMIF('BD PLÁSTICOS'!J:J,'ANÁLISIS CUANTITATIVO'!B218,'BD PLÁSTICOS'!S:S)","v":0},{"$f":"SUMIF('BD PLÁSTICOS'!J:J,'ANÁLISIS CUANTITATIVO'!B218,'BD PLÁSTICOS'!R:R)","v":0},{"$f":"SUMIF('BD PLÁSTICOS'!J:J,'ANÁLISIS CUANTITATIVO'!B218,'BD PLÁSTICOS'!Q:Q)","v":0},null,1.6000000000000001E-4,1.6000000000000001E-4,1.6000000000000001E-4]
[null,null,{"$f":"SUMIF('BD PLÁSTICOS'!J:J,'ANÁLISIS CUANTITATIVO'!B219,'BD PLÁSTICOS'!S:S)","v":0},{"$f":"SUMIF('BD PLÁSTICOS'!J:J,'ANÁLISIS CUANTITATIVO'!B219,'BD PLÁSTICOS'!R:R)","v":0},{"$f":"SUMIF('BD PLÁSTICOS'!J:J,'ANÁLISIS CUANTITATIVO'!B219,'BD PLÁSTICOS'!Q:Q)","v":0},null,1.5000000000000001E-4,1.5000000000000001E-4,1.5000000000000001E-4]
[]
[null,"Total",{"$f":"SUM(C6:C219)","v":0},0,0]
[]
[]
[null," INVENTARIO DE TIPOS DE PLÁSTICO"]
[null,"TIPO DE PLÁSTICO","UNIDADES DEL PRODUCTO AL AÑO","PESO ANUAL (kg)","GASTO DE ADQUISCIÓN ANUAL"]
[null,{"$f":"_xlfn.UNIQUE(_xlfn._xlws.FILTER(BDP[TIPO DE PLÁSTICO],BDP[TIPO DE PLÁSTICO]<> \"\"))","v":{"$error":"#VALUE!"}},{"$f":"IF(ISBLANK('ANÁLISIS CUANTITATIVO'!B226), 0, SUMIF('BD PLÁSTICOS'!L:L, 'ANÁLISIS CUANTITATIVO'!B226, 'BD PLÁSTICOS'!S:S))","v":0},{"$f":"IF(ISBLANK('ANÁLISIS CUANTITATIVO'!B226), 0, SUMIF('BD PLÁSTICOS'!L:L, 'ANÁLISIS CUANTITATIVO'!B226, 'BD PLÁSTICOS'!R:R))","v":0},{"$f":"IF(ISBLANK('ANÁLISIS CUANTITATIVO'!B226), 0, SUMIF('BD PLÁSTICOS'!L:L, 'ANÁLISIS CUANTITATIVO'!B226, 'BD PLÁSTICOS'!Q:Q))","v":0}]
[null,null,{"$f":"IF(ISBLANK('ANÁLISIS CUANTITATIVO'!B227), 0, SUMIF('BD PLÁSTICOS'!L:L, 'ANÁLISIS CUANTITATIVO'!B227, 'BD PLÁSTICOS'!S:S))","v":0},{"$f":"IF(ISBLANK('ANÁLISIS CUANTITATIVO'!B227), 0, SUMIF('BD PLÁSTICOS'!L:L, 'ANÁLISIS CUANTITATIVO'!B227, 'BD PLÁSTICOS'!R:R))","v":0},{"$f":"IF(ISBLANK('ANÁLISIS CUANTITATIVO'!B227), 0, SUMIF('BD PLÁSTICOS'!L:L, 'ANÁLISIS CUANTITATIVO'!B227, 'BD PLÁSTICOS'!Q:Q))","v":0}]
[null,null,{"$f":"IF(ISBLANK('ANÁLISIS CUANTITATIVO'!B228), 0, SUMIF('BD PLÁSTICOS'!L:L, 'ANÁLISIS CUANTITATIVO'!B228, 'BD PLÁSTICOS'!S:S))","v":0},{"$f":"IF(ISBLANK('ANÁLISIS CUANTITATIVO'!B228), 0, SUMIF('BD PLÁSTICOS'!L:L, 'ANÁLISIS CUANTITATIVO'!B228, 'BD PLÁSTICOS'!R:R))","v":0},{"$f":"IF(ISBLANK('ANÁLISIS CUANTITATIVO'!B228), 0, SUMIF('BD PLÁSTICOS'!L:L, 'ANÁLISIS CUANTITATIVO'!B228, 'BD PLÁSTICOS'!Q:Q))","v":0}]
[null,null,{"$f":"IF(ISBLANK('ANÁLISIS CUANTITATIVO'!B229), 0, SUMIF('BD PLÁSTICOS'!L:L, 'ANÁLISIS CUANTITATIVO'!B229, 'BD PLÁSTICOS'!S:S))","v":0},{"$f":"IF(ISBLANK('ANÁLISIS CUANTITATIVO'!B229), 0, SUMIF('BD PLÁSTICOS'!L:L, 'ANÁLISIS CUANTITATIVO'!B229, 'BD PLÁSTICOS'!R:R))","v":0},{"$f":"IF(ISBLANK('ANÁLISIS CUANTITATIVO'!B229), 0, SUMIF('BD PLÁSTICOS'!L:L, 'ANÁLISIS CUANTITATIVO'!B229, 'BD PLÁSTICOS'!Q:Q))","v":0}]
[null,null,{"$f":"IF(ISBLANK('ANÁLISIS CUANTITATIVO'!B230), 0, SUMIF('BD PLÁSTICOS'!L:L, 'ANÁLISIS CUANTITATIVO'!B230, 'BD PLÁSTICOS'!S:S))","v":0},{"$f":"IF(ISBLANK('ANÁLISIS CUANTITATIVO'!B230), 0, SUMIF('BD PLÁSTICOS'!L:L, 'ANÁLISIS CUANTITATIVO'!B230, 'BD PLÁSTICOS'!R:R))","v":0},{"$f":"IF(ISBLANK('ANÁLISIS CUANTITATIVO'!B230), 0, SUMIF('BD PLÁSTICOS'!L:L, 'ANÁLISIS CUANTITATIVO'!B230, 'BD PLÁSTICOS'!Q:Q))","v":0}]
[null,null,{"$f":"IF(ISBLANK('ANÁLISIS CUANTITATIVO'!B231), 0, SUMIF('BD PLÁSTICOS'!L:L, 'ANÁLISIS CUANTITATIVO'!B231, 'BD PLÁSTICOS'!S:S))","v":0},{"$f":"IF(ISBLANK('ANÁLISIS CUANTITATIVO'!B231), 0, SUMIF('BD PLÁSTICOS'!L:L, 'ANÁLISIS CUANTITATIVO'!B231, 'BD PLÁSTICOS'!R:R))","v":0},{"$f":"IF(ISBLANK('ANÁLISIS CUANTITATIVO'!B231), 0, SUMIF('BD PLÁSTICOS'!L:L, 'ANÁLISIS CUANTITATIVO'!B231, 'BD PLÁSTICOS'!Q:Q))","v":0}]
[null,null,{"$f":"IF(ISBLANK('ANÁLISIS CUANTITATIVO'!B232), 0, SUMIF('BD PLÁSTICOS'!L:L, 'ANÁLISIS CUANTITATIVO'!B232, 'BD PLÁSTICOS'!S:S))","v":0},{"$f":"IF(ISBLANK('ANÁLISIS CUANTITATIVO'!B232), 0, SUMIF('BD PLÁSTICOS'!L:L, 'ANÁLISIS CUANTITATIVO'!B232, 'BD PLÁSTICOS'!R:R))","v":0},{"$f":"IF(ISBLANK('ANÁLISIS CUANTITATIVO'!B232), 0, SUMIF('BD PLÁSTICOS'!L:L, 'ANÁLISIS CUANTITATIVO'!B232, 'BD PLÁSTICOS'!Q:Q))","v":0}]
[null,null,{"$f":"IF(ISBLANK('ANÁLISIS CUANTITATIVO'!B233), 0, SUMIF('BD PLÁSTICOS'!L:L, 'ANÁLISIS CUANTITATIVO'!B233, 'BD PLÁSTICOS'!S:S))","v":0},{"$f":"IF(ISBLANK('ANÁLISIS CUANTITATIVO'!B233), 0, SUMIF('BD PLÁSTICOS'!L:L, 'ANÁLISIS CUANTITATIVO'!B233, 'BD PLÁSTICOS'!R:R))","v":0},{"$f":"IF(ISBLANK('ANÁLISIS CUANTITATIVO'!B233), 0, SUMIF('BD PLÁSTICOS'!L:L, 'ANÁLISIS CUANTITATIVO'!B233, 'BD PLÁSTICOS'!Q:Q))","v":0}]
[null,null,{"$f":"IF(ISBLANK('ANÁLISIS CUANTITATIVO'!B234), 0, SUMIF('BD PLÁSTICOS'!L:L, 'ANÁLISIS CUANTITATIVO'!B234, 'BD PLÁSTICOS'!S:S))","v":0},{"$f":"IF(ISBLANK('ANÁLISIS CUANTITATIVO'!B234), 0, SUMIF('BD PLÁSTICOS'!L:L, 'ANÁLISIS CUANTITATIVO'!B234, 'BD PLÁSTICOS'!R:R))","v":0},{"$f":"IF(ISBLANK('ANÁLISIS CUANTITATIVO'!B234), 0, SUMIF('BD PLÁSTICOS'!L:L, 'ANÁLISIS CUANTITATIVO'!B234, 'BD PLÁSTICOS'!Q:Q))","v":0}]
[null,null,{"$f":"IF(ISBLANK('ANÁLISIS CUANTITATIVO'!B235), 0, SUMIF('BD PLÁSTICOS'!L:L, 'ANÁLISIS CUANTITATIVO'!B235, 'BD PLÁSTICOS'!S:S))","v":0},{"$f":"IF(ISBLANK('ANÁLISIS CUANTITATIVO'!B235), 0, SUMIF('BD PLÁSTICOS'!L:L, 'ANÁLISIS CUANTITATIVO'!B235, 'BD PLÁSTICOS'!R:R))","v":0},{"$f":"IF(ISBLANK('ANÁLISIS CUANTITATIVO'!B235), 0, SUMIF('BD PLÁSTICOS'!L:L, 'ANÁLISIS CUANTITATIVO'!B235, 'BD PLÁSTICOS'!Q:Q))","v":0}]
[null,null,{"$f":"IF(ISBLANK('ANÁLISIS CUANTITATIVO'!B236), 0, SUMIF('BD PLÁSTICOS'!L:L, 'ANÁLISIS CUANTITATIVO'!B236, 'BD PLÁSTICOS'!S:S))","v":0},{"$f":"IF(ISBLANK('ANÁLISIS CUANTITATIVO'!B236), 0, SUMIF('BD PLÁSTICOS'!L:L, 'ANÁLISIS CUANTITATIVO'!B236, 'BD PLÁSTICOS'!R:R))","v":0},{"$f":"IF(ISBLANK('ANÁLISIS CUANTITATIVO'!B236), 0, SUMIF('BD PLÁSTICOS'!L:L, 'ANÁLISIS CUANTITATIVO'!B236, 'BD PLÁSTICOS'!Q:Q))","v":0}]
[null,null,{"$f":"IF(ISBLANK('ANÁLISIS CUANTITATIVO'!B237), 0, SUMIF('BD PLÁSTICOS'!L:L, 'ANÁLISIS CUANTITATIVO'!B237, 'BD PLÁSTICOS'!S:S))","v":0},{"$f":"IF(ISBLANK('ANÁLISIS CUANTITATIVO'!B237), 0, SUMIF('BD PLÁSTICOS'!L:L, 'ANÁLISIS CUANTITATIVO'!B237, 'BD PLÁSTICOS'!R:R))","v":0},{"$f":"IF(ISBLANK('ANÁLISIS CUANTITATIVO'!B237), 0, SUMIF('BD PLÁSTICOS'!L:L, 'ANÁLISIS CUANTITATIVO'!B237, 'BD PLÁSTICOS'!Q:Q))","v":0}]
[]
[null,"Total ",{"$f":"SUM(C226:C237)","v":0},0,0]
[]
[]
[null," INVENTARIO DE ÁREAS DE LA ORGANIZACIÓN"]
[null,"ÁREA DEL HOTEL","UNIDADES DEL PRODUCTO AL AÑO","PESO ANUAL (kg)","GASTO DE ADQUISCIÓN ANUAL"]
[null,{"$f":"_xlfn.UNIQUE(_xlfn._xlws.FILTER(BDP[ÁREA DEL HOTEL],BDP[ÁREA DEL HOTEL]<> \"\"))","v":{"$error":"#VALUE!"}},{"$f":"SUMIF('BD PLÁSTICOS'!B:B,'ANÁLISIS CUANTITATIVO'!B244,'BD PLÁSTICOS'!S:S)","v":0},{"$f":"SUMIF('BD PLÁSTICOS'!B:B,'ANÁLISIS CUANTITATIVO'!B244,'BD PLÁSTICOS'!R:R)","v":0},{"$f":"SUMIF('BD PLÁSTICOS'!B:B,'ANÁLISIS CUANTITATIVO'!B244,'BD PLÁSTICOS'!Q:Q)","v":0}]
[null,null,{"$f":"SUMIF('BD PLÁSTICOS'!B:B,'ANÁLISIS CUANTITATIVO'!B245,'BD PLÁSTICOS'!S:S)","v":0},{"$f":"SUMIF('BD PLÁSTICOS'!B:B,'ANÁLISIS CUANTITATIVO'!B245,'BD PLÁSTICOS'!R:R)","v":0},{"$f":"SUMIF('BD PLÁSTICOS'!B:B,'ANÁLISIS CUANTITATIVO'!B245,'BD PLÁSTICOS'!Q:Q)","v":0}]
[null,null,{"$f":"SUMIF('BD PLÁSTICOS'!B:B,'ANÁLISIS CUANTITATIVO'!B246,'BD PLÁSTICOS'!S:S)","v":0},{"$f":"SUMIF('BD PLÁSTICOS'!B:B,'ANÁLISIS CUANTITATIVO'!B246,'BD PLÁSTICOS'!R:R)","v":0},{"$f":"SUMIF('BD PLÁSTICOS'!B:B,'ANÁLISIS CUANTITATIVO'!B246,'BD PLÁSTICOS'!Q:Q)","v":0}]
[null,null,{"$f":"SUMIF('BD PLÁSTICOS'!B:B,'ANÁLISIS CUANTITATIVO'!B247,'BD PLÁSTICOS'!S:S)","v":0},{"$f":"SUMIF('BD PLÁSTICOS'!B:B,'ANÁLISIS CUANTITATIVO'!B247,'BD PLÁSTICOS'!R:R)","v":0},{"$f":"SUMIF('BD PLÁSTICOS'!B:B,'ANÁLISIS CUANTITATIVO'!B247,'BD PLÁSTICOS'!Q:Q)","v":0}]
[null,null,{"$f":"SUMIF('BD PLÁSTICOS'!B:B,'ANÁLISIS CUANTITATIVO'!B248,'BD PLÁSTICOS'!S:S)","v":0},{"$f":"SUMIF('BD PLÁSTICOS'!B:B,'ANÁLISIS CUANTITATIVO'!B248,'BD PLÁSTICOS'!R:R)","v":0},{"$f":"SUMIF('BD PLÁSTICOS'!B:B,'ANÁLISIS CUANTITATIVO'!B248,'BD PLÁSTICOS'!Q:Q)","v":0}]
[null,null,{"$f":"SUMIF('BD PLÁSTICOS'!B:B,'ANÁLISIS CUANTITATIVO'!B249,'BD PLÁSTICOS'!S:S)","v":0},{"$f":"SUMIF('BD PLÁSTICOS'!B:B,'ANÁLISIS CUANTITATIVO'!B249,'BD PLÁSTICOS'!R:R)","v":0},{"$f":"SUMIF('BD PLÁSTICOS'!B:B,'ANÁLISIS CUANTITATIVO'!B249,'BD PLÁSTICOS'!Q:Q)","v":0}]
[null,null,{"$f":"SUMIF('BD PLÁSTICOS'!B:B,'ANÁLISIS CUANTITATIVO'!B250,'BD PLÁSTICOS'!S:S)","v":0},{"$f":"SUMIF('BD PLÁSTICOS'!B:B,'ANÁLISIS CUANTITATIVO'!B250,'BD PLÁSTICOS'!R:R)","v":0},{"$f":"SUMIF('BD PLÁSTICOS'!B:B,'ANÁLISIS CUANTITATIVO'!B250,'BD PLÁSTICOS'!Q:Q)","v":0}]
[null,null,{"$f":"SUMIF('BD PLÁSTICOS'!B:B,'ANÁLISIS CUANTITATIVO'!B251,'BD PLÁSTICOS'!S:S)","v":0},{"$f":"SUMIF('BD PLÁSTICOS'!B:B,'ANÁLISIS CUANTITATIVO'!B251,'BD PLÁSTICOS'!R:R)","v":0},{"$f":"SUMIF('BD PLÁSTICOS'!B:B,'ANÁLISIS CUANTITATIVO'!B251,'BD PLÁSTICOS'!Q:Q)","v":0}]
[null,null,{"$f":"SUMIF('BD PLÁSTICOS'!B:B,'ANÁLISIS CUANTITATIVO'!B252,'BD PLÁSTICOS'!S:S)","v":0},{"$f":"SUMIF('BD PLÁSTICOS'!B:B,'ANÁLISIS CUANTITATIVO'!B252,'BD PLÁSTICOS'!R:R)","v":0},{"$f":"SUMIF('BD PLÁSTICOS'!B:B,'ANÁLISIS CUANTITATIVO'!B252,'BD PLÁSTICOS'!Q:Q)","v":0}]
[null,null,{"$f":"SUMIF('BD PLÁSTICOS'!B:B,'ANÁLISIS CUANTITATIVO'!B253,'BD PLÁSTICOS'!S:S)","v":0},{"$f":"SUMIF('BD PLÁSTICOS'!B:B,'ANÁLISIS CUANTITATIVO'!B253,'BD PLÁSTICOS'!R:R)","v":0},{"$f":"SUMIF('BD PLÁSTICOS'!B:B,'ANÁLISIS CUANTITATIVO'!B253,'BD PLÁSTICOS'!Q:Q)","v":0}]
[null,null,{"$f":"SUMIF('BD PLÁSTICOS'!B:B,'ANÁLISIS CUANTITATIVO'!B254,'BD PLÁSTICOS'!S:S)","v":0},{"$f":"SUMIF('BD PLÁSTICOS'!B:B,'ANÁLISIS CUANTITATIVO'!B254,'BD PLÁSTICOS'!R:R)","v":0},{"$f":"SUMIF('BD PLÁSTICOS'!B:B,'ANÁLISIS CUANTITATIVO'!B254,'BD PLÁSTICOS'!Q:Q)","v":0}]
[null,null,{"$f":"SUMIF('BD PLÁSTICOS'!B:B,'ANÁLISIS CUANTITATIVO'!B255,'BD PLÁSTICOS'!S:S)","v":0},{"$f":"SUMIF('BD PLÁSTICOS'!B:B,'ANÁLISIS CUANTITATIVO'!B255,'BD PLÁSTICOS'!R:R)","v":0},{"$f":"SUMIF('BD PLÁSTICOS'!B:B,'ANÁLISIS CUANTITATIVO'!B255,'BD PLÁSTICOS'!Q:Q)","v":0}]
[null,null,{"$f":"SUMIF('BD PLÁSTICOS'!B:B,'ANÁLISIS CUANTITATIVO'!B256,'BD PLÁSTICOS'!S:S)","v":0},{"$f":"SUMIF('BD PLÁSTICOS'!B:B,'ANÁLISIS CUANTITATIVO'!B256,'BD PLÁSTICOS'!R:R)","v":0},{"$f":"SUMIF('BD PLÁSTICOS'!B:B,'ANÁLISIS CUANTITATIVO'!B256,'BD PLÁSTICOS'!Q:Q)","v":0}]
[null,null,{"$f":"SUMIF('BD PLÁSTICOS'!B:B,'ANÁLISIS CUANTITATIVO'!B257,'BD PLÁSTICOS'!S:S)","v":0},{"$f":"SUMIF('BD PLÁSTICOS'!B:B,'ANÁLISIS CUANTITATIVO'!B257,'BD PLÁSTICOS'!R:R)","v":0},{"$f":"SUMIF('BD PLÁSTICOS'!B:B,'ANÁLISIS CUANTITATIVO'!B257,'BD PLÁSTICOS'!Q:Q)","v":0}]
[null,null,{"$f":"SUMIF('BD PLÁSTICOS'!B:B,'ANÁLISIS CUANTITATIVO'!B258,'BD PLÁSTICOS'!S:S)","v":0},{"$f":"SUMIF('BD PLÁSTICOS'!B:B,'ANÁLISIS CUANTITATIVO'!B258,'BD PLÁSTICOS'!R:R)","v":0},{"$f":"SUMIF('BD PLÁSTICOS'!B:B,'ANÁLISIS CUANTITATIVO'!B258,'BD PLÁSTICOS'!Q:Q)","v":0}]
[null,null,{"$f":"SUMIF('BD PLÁSTICOS'!B:B,'ANÁLISIS CUANTITATIVO'!B259,'BD PLÁSTICOS'!S:S)","v":0},{"$f":"SUMIF('BD PLÁSTICOS'!B:B,'ANÁLISIS CUANTITATIVO'!B259,'BD PLÁSTICOS'!R:R)","v":0},{"$f":"SUMIF('BD PLÁSTICOS'!B:B,'ANÁLISIS CUANTITATIVO'!B259,'BD PLÁSTICOS'!Q:Q)","v":0}]
[null,null,{"$f":"SUMIF('BD PLÁSTICOS'!B:B,'ANÁLISIS CUANTITATIVO'!B260,'BD PLÁSTICOS'!S:S)","v":0},{"$f":"SUMIF('BD PLÁSTICOS'!B:B,'ANÁLISIS CUANTITATIVO'!B260,'BD PLÁSTICOS'!R:R)","v":0},{"$f":"SUMIF('BD PLÁSTICOS'!B:B,'ANÁLISIS CUANTITATIVO'!B260,'BD PLÁSTICOS'!Q:Q)","v":0}]
[null,null,{"$f":"SUMIF('BD PLÁSTICOS'!B:B,'ANÁLISIS CUANTITATIVO'!B261,'BD PLÁSTICOS'!S:S)","v":0},{"$f":"SUMIF('BD PLÁSTICOS'!B:B,'ANÁLISIS CUANTITATIVO'!B261,'BD PLÁSTICOS'!R:R)","v":0},{"$f":"SUMIF('BD PLÁSTICOS'!B:B,'ANÁLISIS CUANTITATIVO'!B261,'BD PLÁSTICOS'!Q:Q)","v":0}]
[null,null,{"$f":"SUMIF('BD PLÁSTICOS'!B:B,'ANÁLISIS CUANTITATIVO'!B262,'BD PLÁSTICOS'!S:S)","v":0},{"$f":"SUMIF('BD PLÁSTICOS'!B:B,'ANÁLISIS CUANTITATIVO'!B262,'BD PLÁSTICOS'!R:R)","v":0},{"$f":"SUMIF('BD PLÁSTICOS'!B:B,'ANÁLISIS CUANTITATIVO'!B262,'BD PLÁSTICOS'!Q:Q)","v":0}]
[null,null,{"$f":"SUMIF('BD PLÁSTICOS'!B:B,'ANÁLISIS CUANTITATIVO'!B263,'BD PLÁSTICOS'!S:S)","v":0},{"$f":"SUMIF('BD PLÁSTICOS'!B:B,'ANÁLISIS CUANTITATIVO'!B263,'BD PLÁSTICOS'!R:R)","v":0},{"$f":"SUMIF('BD PLÁSTICOS'!B:B,'ANÁLISIS CUANTITATIVO'!B263,'BD PLÁSTICOS'!Q:Q)","v":0}]
[null,null,{"$f":"SUMIF('BD PLÁSTICOS'!B:B,'ANÁLISIS CUANTITATIVO'!B264,'BD PLÁSTICOS'!S:S)","v":0},{"$f":"SUMIF('BD PLÁSTICOS'!B:B,'ANÁLISIS CUANTITATIVO'!B264,'BD PLÁSTICOS'!R:R)","v":0},{"$f":"SUMIF('BD PLÁSTICOS'!B:B,'ANÁLISIS CUANTITATIVO'!B264,'BD PLÁSTICOS'!Q:Q)","v":0}]
[null,null,{"$f":"SUMIF('BD PLÁSTICOS'!B:B,'ANÁLISIS CUANTITATIVO'!B265,'BD PLÁSTICOS'!S:S)","v":0},{"$f":"SUMIF('BD PLÁSTICOS'!B:B,'ANÁLISIS CUANTITATIVO'!B265,'BD PLÁSTICOS'!R:R)","v":0},{"$f":"SUMIF('BD PLÁSTICOS'!B:B,'ANÁLISIS CUANTITATIVO'!B265,'BD PLÁSTICOS'!Q:Q)","v":0}]
[null,null,{"$f":"SUMIF('BD PLÁSTICOS'!B:B,'ANÁLISIS CUANTITATIVO'!B266,'BD PLÁSTICOS'!S:S)","v":0},{"$f":"SUMIF('BD PLÁSTICOS'!B:B,'ANÁLISIS CUANTITATIVO'!B266,'BD PLÁSTICOS'!R:R)","v":0},{"$f":"SUMIF('BD PLÁSTICOS'!B:B,'ANÁLISIS CUANTITATIVO'!B266,'BD PLÁSTICOS'!Q:Q)","v":0}]
[null,null,{"$f":"SUMIF('BD PLÁSTICOS'!B:B,'ANÁLISIS CUANTITATIVO'!B267,'BD PLÁSTICOS'!S:S)","v":0},{"$f":"SUMIF('BD PLÁSTICOS'!B:B,'ANÁLISIS CUANTITATIVO'!B267,'BD PLÁSTICOS'!R:R)","v":0},{"$f":"SUMIF('BD PLÁSTICOS'!B:B,'ANÁLISIS CUANTITATIVO'!B267,'BD PLÁSTICOS'!Q:Q)","v":0}]
[null,null,{"$f":"SUMIF('BD PLÁSTICOS'!B:B,'ANÁLISIS CUANTITATIVO'!B268,'BD PLÁSTICOS'!S:S)","v":0},{"$f":"SUMIF('BD PLÁSTICOS'!B:B,'ANÁLISIS CUANTITATIVO'!B268,'BD PLÁSTICOS'!R:R)","v":0},{"$f":"SUMIF('BD PLÁSTICOS'!B:B,'ANÁLISIS CUANTITATIVO'!B268,'BD PLÁSTICOS'!Q:Q)","v":0}]
[null,null,{"$f":"SUMIF('BD PLÁSTICOS'!B:B,'ANÁLISIS CUANTITATIVO'!B269,'BD PLÁSTICOS'!S:S)","v":0},{"$f":"SUMIF('BD PLÁSTICOS'!B:B,'ANÁLISIS CUANTITATIVO'!B269,'BD PLÁSTICOS'!R:R)","v":0},{"$f":"SUMIF('BD PLÁSTICOS'!B:B,'ANÁLISIS CUANTITATIVO'!B269,'BD PLÁSTICOS'!Q:Q)","v":0}]
[null,null,{"$f":"SUMIF('BD PLÁSTICOS'!B:B,'ANÁLISIS CUANTITATIVO'!B270,'BD PLÁSTICOS'!S:S)","v":0},{"$f":"SUMIF('BD PLÁSTICOS'!B:B,'ANÁLISIS CUANTITATIVO'!B270,'BD PLÁSTICOS'!R:R)","v":0},{"$f":"SUMIF('BD PLÁSTICOS'!B:B,'ANÁLISIS CUANTITATIVO'!B270,'BD PLÁSTICOS'!Q:Q)","v":0}]
[null,null,{"$f":"SUMIF('BD PLÁSTICOS'!B:B,'ANÁLISIS CUANTITATIVO'!B271,'BD PLÁSTICOS'!S:S)","v":0},{"$f":"SUMIF('BD PLÁSTICOS'!B:B,'ANÁLISIS CUANTITATIVO'!B271,'BD PLÁSTICOS'!R:R)","v":0},{"$f":"SUMIF('BD PLÁSTICOS'!B:B,'ANÁLISIS CUANTITATIVO'!B271,'BD PLÁSTICOS'!Q:Q)","v":0}]
[null,null,{"$f":"SUMIF('BD PLÁSTICOS'!B:B,'ANÁLISIS CUANTITATIVO'!B272,'BD PLÁSTICOS'!S:S)","v":0},{"$f":"SUMIF('BD PLÁSTICOS'!B:B,'ANÁLISIS CUANTITATIVO'!B272,'BD PLÁSTICOS'!R:R)","v":0},{"$f":"SUMIF('BD PLÁSTICOS'!B:B,'ANÁLISIS CUANTITATIVO'!B272,'BD PLÁSTICOS'!Q:Q)","v":0}]
[null,null,{"$f":"SUMIF('BD PLÁSTICOS'!B:B,'ANÁLISIS CUANTITATIVO'!B273,'BD PLÁSTICOS'!S:S)","v":0},{"$f":"SUMIF('BD PLÁSTICOS'!B:B,'ANÁLISIS CUANTITATIVO'!B273,'BD PLÁSTICOS'!R:R)","v":0},{"$f":"SUMIF('BD PLÁSTICOS'!B:B,'ANÁLISIS CUANTITATIVO'!B273,'BD PLÁSTICOS'!Q:Q)","v":0}]
[null,"TOTAL",{"$f":"SUM(C244:C273)","v":0},{"$f":"SUM(D244:D273)","v":0},0]

{"sheet":"INDICADORES","index":5,"n_rows":31,"n_cols":9,"rows_kept":31,"cut":false,"hidden":false,"merged":[[1,1,1,8],[4,1,4,2],[4,4,4,5],[4,7,4,8]]}
[]
[null,"INDICADORES"]
[]
[]
["Posición Ordinal","PRODUCTOS DE MAYOR IMPORTANCIA DE ACUERDO CON EL INDICADOR GASTO DE ADQUISICIÓN (GA)",null,null,"PRODUCTOS DE MAYOR IMPORTANCIA DE ACUERDO CON EL  INDICADOR PESO (kg)",null,null,"PRODUCTOS DE MAYOR IMPORTANCIA DE ACUERDO CON EL INDICADOR  CANTIDAD DE PRODUCTO (CP)"]
[null,"CaracterístIcas del producto","Indicador GA",null,"CaracterístIcas del producto","Indicador Peso",null,"CaracterístIcas del producto","Indicador CP"]
[]
[1,"Nombre",{"$f":"INDEX('ANÁLISIS CUANTITATIVO'!$B$6:$E$219,MATCH(C9,'ANÁLISIS CUANTITATIVO'!$I$6:$I$219,0),1)","v":{"$error":"#VALUE!"}},null,"Nombre",{"$f":"INDEX('ANÁLISIS CUANTITATIVO'!$B$6:$E$219,MATCH(F9,'ANÁLISIS CUANTITATIVO'!$H$6:$H$219,0),1)","v":{"$error":"#VALUE!"}},null,"Nombre",{"$f":"INDEX('ANÁLISIS CUANTITATIVO'!$B$6:$E$219,MATCH(I9,'ANÁLISIS CUANTITATIVO'!$G$6:$G$219,0),1)","v":{"$error":"#VALUE!"}}]
[null,"Gasto de adquisición mensual ",{"$f":"LARGE('ANÁLISIS CUANTITATIVO'!$I$6:$I$219,$A$8)","v":2.2800000000000003E-3},null,"Peso mensual (Kg)",{"$f":"LARGE('ANÁLISIS CUANTITATIVO'!$H$6:$H$219,$A$8)","v":2.2800000000000003E-3},null,"Unidades de producto mensuales",{"$f":"LARGE('ANÁLISIS CUANTITATIVO'!$G$6:$G$219,$A$8)","v":2.2800000000000003E-3}]
[null,"Peso mensual (kg)",{"$f":"INDEX('ANÁLISIS CUANTITATIVO'!$B$6:$E$219,MATCH(C8,'ANÁLISIS CUANTITATIVO'!$B$6:$B$219,0),3)","v":{"$error":"#VALUE!"}},null,"Gasto de adquisición mensual ",{"$f":"INDEX('ANÁLISIS CUANTITATIVO'!$B$6:$E$219,MATCH(F8,'ANÁLISIS CUANTITATIVO'!$B$6:$B$219,0),4)","v":{"$error":"#VALUE!"}},null,"Gasto de adquisición mensual ",{"$f":"INDEX('ANÁLISIS CUANTITATIVO'!$B$6:$E$219,MATCH(I8,'ANÁLISIS CUANTITATIVO'!$B$6:$B$219,0),4)","v":{"$error":"#VALUE!"}}]
[null,"Unidades de producto mensuales",{"$f":"INDEX('ANÁLISIS CUANTITATIVO'!$B$6:$E$219,MATCH(C8,'ANÁLISIS CUANTITATIVO'!$B$6:$B$219,0),2)","v":{"$error":"#VALUE!"}},null,"Unidades de producto mensuales",{"$f":"INDEX('ANÁLISIS CUANTITATIVO'!$B$6:$E$219,MATCH(F8,'ANÁLISIS CUANTITATIVO'!$B$6:$B$219,0),2)","v":{"$error":"#VALUE!"}},null,"Peso mensual (kg)",{"$f":"INDEX('ANÁLISIS CUANTITATIVO'!$B$6:$E$219,MATCH(I8,'ANÁLISIS CUANTITATIVO'!$B$6:$B$219,0),3)","v":{"$error":"#VALUE!"}}]
[]
[2,"Nombre",{"$f":"INDEX('ANÁLISIS CUANTITATIVO'!$B$6:$E$219,MATCH(C14,'ANÁLISIS CUANTITATIVO'!$I$6:$I$219,0),1)","v":0},null,"Nombre",{"$f":"INDEX('ANÁLISIS CUANTITATIVO'!$B$6:$E$219,MATCH(F14,'ANÁLISIS CUANTITATIVO'!$H$6:$H$219,0),1)","v":0},null,"Nombre",{"$f":"INDEX('ANÁLISIS CUANTITATIVO'!$B$6:$E$219,MATCH(I14,'ANÁLISIS CUANTITATIVO'!$G$6:$G$219,0),1)","v":0}]
[null,"Gasto de adquisición mensual ",{"$f":"LARGE('ANÁLISIS CUANTITATIVO'!$I$6:$I$219,$A$13)","v":2.2700000000000003E-3},null,"Peso mensual (Kg)",{"$f":"LARGE('ANÁLISIS CUANTITATIVO'!$H$6:$H$219,$A$13)","v":2.2700000000000003E-3},null,"Unidades de producto mensuales",{"$f":"LARGE('ANÁLISIS CUANTITATIVO'!$G$6:$G$219,$A$13)","v":2.2700000000000003E-3}]
[null,"Peso mensual (kg)",{"$f":"INDEX('ANÁLISIS CUANTITATIVO'!$B$6:$E$219,MATCH(C13,'ANÁLISIS CUANTITATIVO'!$B$6:$B$219,0),3)","v":{"$error":"#N/A"}},null,"Gasto de adquisición mensual ",{"$f":"INDEX('ANÁLISIS CUANTITATIVO'!$B$6:$E$219,MATCH(F13,'ANÁLISIS CUANTITATIVO'!$B$6:$B$219,0),4)","v":{"$error":"#N/A"}},null,"Gasto de adquisición mensual ",{"$f":"INDEX('ANÁLISIS CUANTITATIVO'!$B$6:$E$219,MATCH(I13,'ANÁLISIS CUANTITATIVO'!$B$6:$B$219,0),4)","v":{"$error":"#N/A"}}]
[null,"Unidades de producto mensuales",{"$f":"INDEX('ANÁLISIS CUANTITATIVO'!$B$6:$E$219,MATCH(C13,'ANÁLISIS CUANTITATIVO'!$B$6:$B$219,0),2)","v":{"$error":"#N/A"}},null,"Unidades de producto mensuales",{"$f":"INDEX('ANÁLISIS CUANTITATIVO'!$B$6:$E$219,MATCH(F13,'ANÁLISIS CUANTITATIVO'!$B$6:$B$219,0),2)","v":{"$error":"#N/A"}},null,"Peso mensual (kg)",{"$f":"INDEX('ANÁLISIS CUANTITATIVO'!$B$6:$E$219,MATCH(I13,'ANÁLISIS CUANTITATIVO'!$B$6:$B$219,0),3)","v":{"$error":"#N/A"}}]
[]
[3,"Nombre",{"$f":"INDEX('ANÁLISIS CUANTITATIVO'!$B$6:$E$219,MATCH(C19,'ANÁLISIS CUANTITATIVO'!$I$6:$I$219,0),1)","v":0},null,"Nombre",{"$f":"INDEX('ANÁLISIS CUANTITATIVO'!$B$6:$E$219,MATCH(F19,'ANÁLISIS CUANTITATIVO'!$H$6:$H$219,0),1)","v":0},null,"Nombre",{"$f":"INDEX('ANÁLISIS CUANTITATIVO'!$B$6:$E$219,MATCH(I19,'ANÁLISIS CUANTITATIVO'!$G$6:$G$219,0),1)","v":0}]
[null,"Gasto de adquisición mensual ",{"$f":"LARGE('ANÁLISIS CUANTITATIVO'!$I$6:$I$219,$A$18)","v":2.2600000000000003E-3},null,"Peso mensual (Kg)",{"$f":"LARGE('ANÁLISIS CUANTITATIVO'!$H$6:$H$219,$A$18)","v":2.2600000000000003E-3},null,"Unidades de producto mensuales",{"$f":"LARGE('ANÁLISIS CUANTITATIVO'!$G$6:$G$219,$A$18)","v":2.2600000000000003E-3}]
[null,"Peso mensual (kg)",{"$f":"INDEX('ANÁLISIS CUANTITATIVO'!$B$6:$E$219,MATCH(C18,'ANÁLISIS CUANTITATIVO'!$B$6:$B$219,0),3)","v":{"$error":"#N/A"}},null,"Gasto de adquisición mensual ",{"$f":"INDEX('ANÁLISIS CUANTITATIVO'!$B$6:$E$219,MATCH(F18,'ANÁLISIS CUANTITATIVO'!$B$6:$B$219,0),4)","v":{"$error":"#N/A"}},null,"Gasto de adquisición mensual ",{"$f":"INDEX('ANÁLISIS CUANTITATIVO'!$B$6:$E$219,MATCH(I18,'ANÁLISIS CUANTITATIVO'!$B$6:$B$219,0),4)","v":{"$error":"#N/A"}}]
[null,"Unidades de producto mensuales",{"$f":"INDEX('ANÁLISIS CUANTITATIVO'!$B$6:$E$219,MATCH(C18,'ANÁLISIS CUANTITATIVO'!$B$6:$B$219,0),2)","v":{"$error":"#N/A"}},null,"Unidades de producto mensuales",{"$f":"INDEX('ANÁLISIS CUANTITATIVO'!$B$6:$E$219,MATCH(F18,'ANÁLISIS CUANTITATIVO'!$B$6:$B$219,0),2)","v":{"$error":"#N/A"}},null,"Peso mensual (kg)",{"$f":"INDEX('ANÁLISIS CUANTITATIVO'!$B$6:$E$219,MATCH(I18,'ANÁLISIS CUANTITATIVO'!$B$6:$B$219,0),3)","v":{"$error":"#N/A"}}]
[]
[4,"Nombre",{"$f":"INDEX('ANÁLISIS CUANTITATIVO'!$B$6:$E$219,MATCH(C24,'ANÁLISIS CUANTITATIVO'!$I$6:$I$219,0),1)","v":0},null,"Nombre",{"$f":"INDEX('ANÁLISIS CUANTITATIVO'!$B$6:$E$219,MATCH(F24,'ANÁLISIS CUANTITATIVO'!$H$6:$H$219,0),1)","v":0},null,"Nombre",{"$f":"INDEX('ANÁLISIS CUANTITATIVO'!$B$6:$E$219,MATCH(I24,'ANÁLISIS CUANTITATIVO'!$G$6:$G$219,0),1)","v":0}]
[null,"Gasto de adquisición mensual ",{"$f":"LARGE('ANÁLISIS CUANTITATIVO'!$I$6:$I$219,$A$23)","v":2.2500000000000003E-3},null,"Peso mensual (Kg)",{"$f":"LARGE('ANÁLISIS CUANTITATIVO'!$H$6:$H$219,$A$23)","v":2.2500000000000003E-3},null,"Unidades de producto mensuales",{"$f":"LARGE('ANÁLISIS CUANTITATIVO'!$G$6:$G$219,$A$23)","v":2.2500000000000003E-3}]
[null,"Peso mensual (kg)",{"$f":"INDEX('ANÁLISIS CUANTITATIVO'!$B$6:$E$219,MATCH(C23,'ANÁLISIS CUANTITATIVO'!$B$6:$B$219,0),3)","v":{"$error":"#N/A"}},null,"Gasto de adquisición mensual ",{"$f":"INDEX('ANÁLISIS CUANTITATIVO'!$B$6:$E$219,MATCH(F23,'ANÁLISIS CUANTITATIVO'!$B$6:$B$219,0),4)","v":{"$error":"#N/A"}},null,"Gasto de adquisición mensual ",{"$f":"INDEX('ANÁLISIS CUANTITATIVO'!$B$6:$E$219,MATCH(I23,'ANÁLISIS CUANTITATIVO'!$B$6:$B$219,0),4)","v":{"$error":"#N/A"}}]
[null,"Unidades de producto mensuales",{"$f":"INDEX('ANÁLISIS CUANTITATIVO'!$B$6:$E$219,MATCH(C23,'ANÁLISIS CUANTITATIVO'!$B$6:$B$219,0),2)","v":{"$error":"#N/A"}},null,"Unidades de producto mensuales",{"$f":"INDEX('ANÁLISIS CUANTITATIVO'!$B$6:$E$219,MATCH(F23,'ANÁLISIS CUANTITATIVO'!$B$6:$B$219,0),2)","v":{"$error":"#N/A"}},null,"Peso mensual (kg)",{"$f":"INDEX('ANÁLISIS CUANTITATIVO'!$B$6:$E$219,MATCH(I23,'ANÁLISIS CUANTITATIVO'!$B$6:$B$219,0),3)","v":{"$error":"#N/A"}}]
[]
[5,"Nombre",{"$f":"INDEX('ANÁLISIS CUANTITATIVO'!$B$6:$E$219,MATCH(C29,'ANÁLISIS CUANTITATIVO'!$I$6:$I$219,0),1)","v":0},null,"Nombre",{"$f":"INDEX('ANÁLISIS CUANTITATIVO'!$B$6:$E$219,MATCH(F29,'ANÁLISIS CUANTITATIVO'!$H$6:$H$219,0),1)","v":0},null,"Nombre",{"$f":"INDEX('ANÁLISIS CUANTITATIVO'!$B$6:$E$219,MATCH(I29,'ANÁLISIS CUANTITATIVO'!$G$6:$G$219,0),1)","v":0}]
[null,"Gasto de adquisición mensual ",{"$f":"LARGE('ANÁLISIS CUANTITATIVO'!$I$6:$I$219,$A$28)","v":2.2400000000000002E-3},null,"Peso mensual (Kg)",{"$f":"LARGE('ANÁLISIS CUANTITATIVO'!$H$6:$H$219,$A$28)","v":2.2400000000000002E-3},null,"Unidades de producto mensuales",{"$f":"LARGE('ANÁLISIS CUANTITATIVO'!$G$6:$G$219,$A$28)","v":2.2400000000000002E-3}]
[null,"Peso mensual (kg)",{"$f":"INDEX('ANÁLISIS CUANTITATIVO'!$B$6:$E$219,MATCH(C28,'ANÁLISIS CUANTITATIVO'!$B$6:$B$219,0),3)","v":{"$error":"#N/A"}},null,"Gasto de adquisición mensual ",{"$f":"INDEX('ANÁLISIS CUANTITATIVO'!$B$6:$E$219,MATCH(F28,'ANÁLISIS CUANTITATIVO'!$B$6:$B$219,0),4)","v":{"$error":"#N/A"}},null,"Gasto de adquisición mensual ",{"$f":"INDEX('ANÁLISIS CUANTITATIVO'!$B$6:$E$219,MATCH(I28,'ANÁLISIS CUANTITATIVO'!$B$6:$B$219,0),4)","v":{"$error":"#N/A"}}]
[null,"Piezas mensuales",{"$f":"INDEX('ANÁLISIS CUANTITATIVO'!$B$6:$E$219,MATCH(C28,'ANÁLISIS CUANTITATIVO'!$B$6:$B$219,0),2)","v":{"$error":"#N/A"}},null,"Piezas mensuales",{"$f":"INDEX('ANÁLISIS CUANTITATIVO'!$B$6:$E$219,MATCH(F28,'ANÁLISIS CUANTITATIVO'!$B$6:$B$219,0),2)","v":{"$error":"#N/A"}},null,"Peso mensual (kg)",{"$f":"INDEX('ANÁLISIS CUANTITATIVO'!$B$6:$E$219,MATCH(I28,'ANÁLISIS CUANTITATIVO'!$B$6:$B$219,0),3)","v":{"$error":"#N/A"}}]

{"sheet":"SEGUIMIENTO MENSUAL","index":6,"n_rows":22,"n_cols":47,"rows_kept":22,"cut":false,"hidden":false,"merged":[[0,4,0,8],[0,0,0,3],[0,9,0,10]]}
[]
["No. IDENTIFICADOR","ÁREA DEL HOTEL","PRODUCTO DE PLÁSTICO","TIPO DE EMPAQUE","CANTIDAD DE PRODUCTO POR EMPAQUE (Realiza cambios si es necesario)","CANTIDAD DE EMPAQUES ADQUIRIDOS (Registra los datos de seguimiento)","GASTO REALIZADO POR CADA DE EMPAQUE (Realiza cambios si es necesario)","TIPO DE MANEJO","CATEGORÍA DEL PRODUCTO","TIPO DE PRODUCTO","PESO DEL PRODUCTO DE PLÁSTICO","TIPO DE PLÁSTICO","Año de seguimiento","Mes de seguimiento","Abril","Mayo","Junio","Julio","Agosto","Septiembre","Octubre","Noviembre","Diciembre","Enero","Febrero","Marzo","Abril","Mayo","Junio","Julio","Agosto","Septiembre","Octubre","Noviembre","Diciembre","Enero","Febrero","Marzo","Abril","Mayo","Junio","Julio","Agosto","Septiembre","Octubre","Noviembre","Diciembre"]
[1090,"HABITACIONES","COFFE KIT REGULAR P/4 TAZAS C/CAFE/AZUC","PIEZA",1,0,9.91,"DISPONE","Kit_de_café","COFFE KIT REGULAR P/4 TAZAS C/CAFE/AZUC",1E-3,0,2023]
[30544,"HABITACIONES","CAFE DECAF PQT/C/50 PZA 2 GR","FRASCO C/50",50,0,66.540000000000006,"DISPONE","Kit_de_café","CAFE DECAF PQT/C/50 PZA 2 GR",1E-3,0]
[1742,"HABITACIONES","89330 - PAÑUELOS FACIALES KLEENEX BLAN","CAJA C/72",72,0,809,"DISPONE","Amenidades_de_baño","89330 - PAÑUELOS FACIALES KLEENEX BLAN",2E-3,0]
[1744,"HABITACIONES","90498 - HIGIENICO TRAD KLEENEX COTONELL","PAQUETE C/72",72,0,605.12,"DISPONE","Amenidades_de_baño","90498 - HIGIENICO TRAD KLEENEX COTONELL",0.05,0]
[1667,"HABITACIONES","B9500BL040S CREMA CORPORAL DREAMS G&S 1","BOTE C/100",100,0,955,"DISPONE","Amenidades_de_baño","B9500BL040S CREMA CORPORAL DREAMS G&S 1",0.03,0]
[1668,"HABITACIONES","B9500CS040S SHAMPOO ACONDICIONADOR DREA","BOTE C/100",100,0,920,"DISPONE","Amenidades_de_baño","B9500CS040S SHAMPOO ACONDICIONADOR DREA",0.03,0]
[1669,"HABITACIONES","B9500SG040S GEL DE BAÑO DREAMS G&S 100/","BOTE C/100",100,0,1009,"DISPONE","Amenidades_de_baño","B9500SG040S GEL DE BAÑO DREAMS G&S 100/",0.03,0]
[35681,"HABITACIONES","SHAMPOO Y ACONDICIONADOR DE 1.18 OZ","PIEZA",1,0,4.95,"DISPONE","Amenidades_de_baño","SHAMPOO Y ACONDICIONADOR DE 1.18 OZ",0.01,0]
[45554,"HABITACIONES","GEL ALCOHOL SANITIZANTE 60 ML CON LOGO","PIEZA",1,0,7.68,"DISPONE","Amenidades_de_baño","GEL ALCOHOL SANITIZANTE 60 ML CON LOGO",0.01,0]
[1655,"COCINA","VITAFILM DE 18\" 1500 MTS","PIEZA",1,0,295.33999999999997,"DISPONE","Protección_de_alimentos","VITAFILM DE 18\" 1500 MTS",5,0]
[56996,"ÁREAS PÚBLICAS","BOLSA NEGRA P/BASUR 90X1.20 LARGO CAL20","PAQUETE 14 KG",100,0,35.56,"DISPONE","Bolsa_de_residuos","BOLSA NEGRA P/BASUR 90X1.20 LARGO CAL20",0.05,0]
[56998,"ÁREAS PÚBLICAS","BOLSA TRANSP 40X60 CM 200 P/BASURA","PAQUETE 48 KG",100,0,52.49,"DISPONE","Bolsa_de_residuos","BOLSA TRANSP 40X60 CM 200 P/BASURA",2.7E-2,0]
[56999,"ÁREAS PÚBLICAS","BOLSA TRANSP DE 1 X 1.2 MT CAL 300 P/HI","PAQUETE 7 KG",100,0,54.16,"DISPONE","Bolsa_de_residuos","BOLSA TRANSP DE 1 X 1.2 MT CAL 300 P/HI",0.05,0]
[60204,"ÁREAS PÚBLICAS","BOLSA GLASINE ENCERADA TAMAÑO PALOMITAS","PAQUETE C/1000",100,0,62.01,"DISPONE","Bolsa_de_residuos","BOLSA GLASINE ENCERADA TAMAÑO PALOMITAS",0.02,0]
[37266,"COCINA","GUANTES DE LATEX ESTERIL C/ 100 PZA","CAJA C/1000",100,0,255.25,"DISPONE","Equipo_sanitario","Guantes de latex desechable",6.0000000000000001E-3,"OTROS"]
[84115,"ÁREAS PÚBLICAS","BOLSA NEGRA P/BASURA 60X90 CM CAL 200 K","PAQUETE 14 KG",100,0,34.979999999999997,"DISPONE","Bolsa_de_residuos","BOLSA NEGRA P/BASURA 60X90 CM CAL 200 K",3.4000000000000002E-2,0]
[60772,"OTROS","BIO PLATO OSTRA 8X3X3 C/3 DIVISION C/20 ","CAJ ",200,0,594.23111111111109,"DISPOSICIÓN","Platos_y_charolas","BIO PLATO OSTRA 8X3X3 C/3 DIVISION C/20 ",0.08,0]
[67288,"OTROS","PLATO OSTRA BIO 22.86 X 15.24           ","PZA ",1,0,5.39,"DISPOSICIÓN","Platos_y_charolas","PLATO OSTRA BIO 22.86 X 15.24           ",8.3000000000000004E-2,0]
[67286,"OTROS","CHAROLA BIO 3 DIVISIONES 25.4 X 19.05   ","PZA ",1,0,5.2176,"DISPOSICIÓN","Platos_y_charolas","CHAROLA BIO 3 DIVISIONES 25.4 X 19.05   ",2.1999999999999999E-2,0]
[67289,"OTROS","PLATO BIO P/ HAMBURGUESA 15.24 X 15.24  ","PZA ",1,0,2.151023529411765,"DISPOSICIÓN","Platos_y_charolas","PLATO BIO P/ HAMBURGUESA 15.24 X 15.24  ",0.01,0]

{"sheet":"BD SEGUIMIENTO MENSUAL","index":7,"n_rows":241,"n_cols":18,"rows_kept":241,"cut":false,"hidden":false,"merged":[]}
["No. IDENTIFICADOR","ÁREA DEL HOTEL","PRODUCTO DE PLÁSTICO","TIPO DE EMPAQUE","CANTIDAD DE PRODUCTO POR EMPAQUE","CANTIDAD DE EMPAQUES ADQUIRIDOS","GASTO REALIZADO POR CADA DE EMPAQUE","TIPO DE MANEJO","CATEGORÍA DEL PRODUCTO","TIPO DE PRODUCTO","PESO DEL PRODUCTO DE PLÁSTICO","TIPO DE PLÁSTICO","Año","Mes",null,"CANTIDAD TOTAL DE PRODUCTO ADQUIRIDO","GASTO DE ADQUISICIÓN MENSUAL ","PESO TOTAL MENSUAL DEL PRODUCTO"]
[1090,"HABITACIONES","COFFE KIT REGULAR P/4 TAZAS C/CAFE/AZUC","PIEZA",1,0,9.91,"DISPONE","Kit_de_café","COFFE KIT REGULAR P/4 TAZAS C/CAFE/AZUC",1E-3,0,2023,"Enero"]
[30544,"HABITACIONES","CAFE DECAF PQT/C/50 PZA 2 GR","FRASCO C/50",50,0,66.540000000000006,"DISPONE","Kit_de_café","CAFE DECAF PQT/C/50 PZA 2 GR",1E-3,0,2023,"Enero"]
[1742,"HABITACIONES","89330 - PAÑUELOS FACIALES KLEENEX BLAN","CAJA C/72",72,23,809,"DISPONE","Amenidades_de_baño","89330 - PAÑUELOS FACIALES KLEENEX BLAN",2E-3,0,2023,"Enero"]
[1744,"HABITACIONES","90498 - HIGIENICO TRAD KLEENEX COTONELL","PAQUETE C/72",72,29,605.12,"DISPONE","Amenidades_de_baño","90498 - HIGIENICO TRAD KLEENEX COTONELL",0.05,0,2023,"Enero"]
[1667,"HABITACIONES","B9500BL040S CREMA CORPORAL DREAMS G&S 1","BOTE C/100",100,14,955,"DISPONE","Amenidades_de_baño","B9500BL040S CREMA CORPORAL DREAMS G&S 1",0.03,0,2023,"Enero"]
[1668,"HABITACIONES","B9500CS040S SHAMPOO ACONDICIONADOR DREA","BOTE C/100",100,20,920,"DISPONE","Amenidades_de_baño","B9500CS040S SHAMPOO ACONDICIONADOR DREA",0.03,0,2023,"Enero"]
[1669,"HABITACIONES","B9500SG040S GEL DE BAÑO DREAMS G&S 100/","BOTE C/100",100,19,1009,"DISPONE","Amenidades_de_baño","B9500SG040S GEL DE BAÑO DREAMS G&S 100/",0.03,0,2023,"Enero"]
[35681,"HABITACIONES","SHAMPOO Y ACONDICIONADOR DE 1.18 OZ","PIEZA",1,null,4.95,"DISPONE","Amenidades_de_baño","SHAMPOO Y ACONDICIONADOR DE 1.18 OZ",0.01,0,2023,"Enero"]
[45554,"HABITACIONES","GEL ALCOHOL SANITIZANTE 60 ML CON LOGO","PIEZA",1,576,7.68,"DISPONE","Amenidades_de_baño","GEL ALCOHOL SANITIZANTE 60 ML CON LOGO",0.01,0,2023,"Enero"]
[1655,"COCINA","VITAFILM DE 18\" 1500 MTS","PIEZA",1,115,295.33999999999997,"DISPONE","Protección_de_alimentos","VITAFILM DE 18\" 1500 MTS",5,0,2023,"Enero"]
[56996,"ÁREAS PÚBLICAS","BOLSA NEGRA P/BASUR 90X1.20 LARGO CAL20","PAQUETE 14 KG",100,575,35.56,"DISPONE","Bolsa_de_residuos","BOLSA NEGRA P/BASUR 90X1.20 LARGO CAL20",0.05,0,2023,"Enero"]
[56998,"ÁREAS PÚBLICAS","BOLSA TRANSP 40X60 CM 200 P/BASURA","PAQUETE 48 KG",100,125,52.49,"DISPONE","Bolsa_de_residuos","BOLSA TRANSP 40X60 CM 200 P/BASURA",2.7E-2,0,2023,"Enero"]
[56999,"ÁREAS PÚBLICAS","BOLSA TRANSP DE 1 X 1.2 MT CAL 300 P/HI","PAQUETE 7 KG",100,100,54.16,"DISPONE","Bolsa_de_residuos","BOLSA TRANSP DE 1 X 1.2 MT CAL 300 P/HI",0.05,0,2023,"Enero"]
[60204,"ÁREAS PÚBLICAS","BOLSA GLASINE ENCERADA TAMAÑO PALOMITAS","PAQUETE C/1000",100,16,62.01,"DISPONE","Bolsa_de_residuos","BOLSA GLASINE ENCERADA TAMAÑO PALOMITAS",0.02,0,2023,"Enero"]
[37266,"COCINA","GUANTES DE LATEX ESTERIL C/ 100 PZA","CAJA C/1000",100,14,255.25,"DISPONE","Equipo_sanitario","Guantes de latex desechable",6.0000000000000001E-3,"OTROS",2023,"Enero"]
[84115,"ÁREAS PÚBLICAS","BOLSA NEGRA P/BASURA 60X90 CM CAL 200 K","PAQUETE 14 KG",100,0,34.979999999999997,"DISPONE","Bolsa_de_residuos","BOLSA NEGRA P/BASURA 60X90 CM CAL 200 K",3.4000000000000002E-2,0,2023,"Enero"]
[60772,"OTROS","BIO PLATO OSTRA 8X3X3 C/3 DIVISION C/20 ","CAJ ",200,0,594.23111111111109,"DISPOSICIÓN","Platos_y_charolas","BIO PLATO OSTRA 8X3X3 C/3 DIVISION C/20 ",0.08,0,2023,"Enero"]
[67288,"OTROS","PLATO OSTRA BIO 22.86 X 15.24           ","PZA ",1,0,5.39,"DISPOSICIÓN","Platos_y_charolas","PLATO OSTRA BIO 22.86 X 15.24           ",8.3000000000000004E-2,0,2023,"Enero"]
[67286,"OTROS","CHAROLA BIO 3 DIVISIONES 25.4 X 19.05   ","PZA ",1,0,5.2176,"DISPOSICIÓN","Platos_y_charolas","CHAROLA BIO 3 DIVISIONES 25.4 X 19.05   ",2.1999999999999999E-2,0,2023,"Enero"]
[67289,"OTROS","PLATO BIO P/ HAMBURGUESA 15.24 X 15.24  ","PZA ",1,0,2.151023529411765,"DISPOSICIÓN","Platos_y_charolas","PLATO BIO P/ HAMBURGUESA 15.24 X 15.24  ",0.01,0,2023,"Enero"]
[1090,"HABITACIONES","COFFE KIT REGULAR P/4 TAZAS C/CAFE/AZUC","PIEZA",1,0,9.91,"DISPONE","Kit_de_café","COFFE KIT REGULAR P/4 TAZAS C/CAFE/AZUC",1E-3,0,2023,"Febrero"]
[30544,"HABITACIONES","CAFE DECAF PQT/C/50 PZA 2 GR","FRASCO C/50",50,null,66.540000000000006,"DISPONE","Kit_de_café","CAFE DECAF PQT/C/50 PZA 2 GR",1E-3,0,2023,"Febrero"]
[1742,"HABITACIONES","89330 - PAÑUELOS FACIALES KLEENEX BLAN","CAJA C/72",72,15,809,"DISPONE","Amenidades_de_baño","89330 - PAÑUELOS FACIALES KLEENEX BLAN",2E-3,0,2023,"Febrero"]
[1744,"HABITACIONES","90498 - HIGIENICO TRAD KLEENEX COTONELL","PAQUETE C/72",72,24,605.12,"DISPONE","Amenidades_de_baño","90498 - HIGIENICO TRAD KLEENEX COTONELL",0.05,0,2023,"Febrero"]
[1667,"HABITACIONES","B9500BL040S CREMA CORPORAL DREAMS G&S 1","BOTE C/100",100,15,955,"DISPONE","Amenidades_de_baño","B9500BL040S CREMA CORPORAL DREAMS G&S 1",0.03,0,2023,"Febrero"]
[1668,"HABITACIONES","B9500CS040S SHAMPOO ACONDICIONADOR DREA","BOTE C/100",100,17,920,"DISPONE","Amenidades_de_baño","B9500CS040S SHAMPOO ACONDICIONADOR DREA",0.03,0,2023,"Febrero"]
[1669,"HABITACIONES","B9500SG040S GEL DE BAÑO DREAMS G&S 100/","BOTE C/100",100,17,1009,"DISPONE","Amenidades_de_baño","B9500SG040S GEL DE BAÑO DREAMS G&S 100/",0.03,0,2023,"Febrero"]
[35681,"HABITACIONES","SHAMPOO Y ACONDICIONADOR DE 1.18 OZ","PIEZA",1,null,4.95,"DISPONE","Amenidades_de_baño","SHAMPOO Y ACONDICIONADOR DE 1.18 OZ",0.01,0,2023,"Febrero"]
[45554,"HABITACIONES","GEL ALCOHOL SANITIZANTE 60 ML CON LOGO","PIEZA",1,960,7.68,"DISPONE","Amenidades_de_baño","GEL ALCOHOL SANITIZANTE 60 ML CON LOGO",0.01,0,2023,"Febrero"]
[1655,"COCINA","VITAFILM DE 18\" 1500 MTS","PIEZA",1,100,295.33999999999997,"DISPONE","Protección_de_alimentos","VITAFILM DE 18\" 1500 MTS",5,0,2023,"Febrero"]
[56996,"ÁREAS PÚBLICAS","BOLSA NEGRA P/BASUR 90X1.20 LARGO CAL20","PAQUETE 14 KG",100,575,35.56,"DISPONE","Bolsa_de_residuos","BOLSA NEGRA P/BASUR 90X1.20 LARGO CAL20",0.05,0,2023,"Febrero"]
[56998,"ÁREAS PÚBLICAS","BOLSA TRANSP 40X60 CM 200 P/BASURA","PAQUETE 48 KG",100,150,52.49,"DISPONE","Bolsa_de_residuos","BOLSA TRANSP 40X60 CM 200 P/BASURA",2.7E-2,0,2023,"Febrero"]
[56999,"ÁREAS PÚBLICAS","BOLSA TRANSP DE 1 X 1.2 MT CAL 300 P/HI","PAQUETE 7 KG",100,75,54.16,"DISPONE","Bolsa_de_residuos","BOLSA TRANSP DE 1 X 1.2 MT CAL 300 P/HI",0.05,0,2023,"Febrero"]
[60204,"ÁREAS PÚBLICAS","BOLSA GLASINE ENCERADA TAMAÑO PALOMITAS","PAQUETE C/1000",100,22,62.01,"DISPONE","Bolsa_de_residuos","BOLSA GLASINE ENCERADA TAMAÑO PALOMITAS",0.02,0,2023,"Febrero"]
[37266,"COCINA","GUANTES DE LATEX ESTERIL C/ 100 PZA","CAJA C/1000",100,19,255.25,"DISPONE","Equipo_sanitario","Guantes de latex desechable",6.0000000000000001E-3,"OTROS",2023,"Febrero"]
[84115,"ÁREAS PÚBLICAS","BOLSA NEGRA P/BASURA 60X90 CM CAL 200 K","PAQUETE 14 KG",100,0,34.979999999999997,"DISPONE","Bolsa_de_residuos","BOLSA NEGRA P/BASURA 60X90 CM CAL 200 K",3.4000000000000002E-2,0,2023,"Febrero"]
[60772,"OTROS","BIO PLATO OSTRA 8X3X3 C/3 DIVISION C/20 ","CAJ ",200,0,594.23111111111109,"DISPOSICIÓN","Platos_y_charolas","BIO PLATO OSTRA 8X3X3 C/3 DIVISION C/20 ",0.08,0,2023,"Febrero"]
[67288,"OTROS","PLATO OSTRA BIO 22.86 X 15.24           ","PZA ",1,0,5.39,"DISPOSICIÓN","Platos_y_charolas","PLATO OSTRA BIO 22.86 X 15.24           ",8.3000000000000004E-2,0,2023,"Febrero"]
[67286,"OTROS","CHAROLA BIO 3 DIVISIONES 25.4 X 19.05   ","PZA ",1,0,5.2176,"DISPOSICIÓN","Platos_y_charolas","CHAROLA BIO 3 DIVISIONES 25.4 X 19.05   ",2.1999999999999999E-2,0,2023,"Febrero"]
[67289,"OTROS","PLATO BIO P/ HAMBURGUESA 15.24 X 15.24  ","PZA ",1,0,2.151023529411765,"DISPOSICIÓN","Platos_y_charolas","PLATO BIO P/ HAMBURGUESA 15.24 X 15.24  ",0.01,0,2023,"Febrero"]
[1090,"HABITACIONES","COFFE KIT REGULAR P/4 TAZAS C/CAFE/AZUC","PIEZA",1,0,9.91,"DISPONE","Kit_de_café","COFFE KIT REGULAR P/4 TAZAS C/CAFE/AZUC",1E-3,0,2023,"Marzo"]
[30544,"HABITACIONES","CAFE DECAF PQT/C/50 PZA 2 GR","FRASCO C/50",50,0,66.540000000000006,"DISPONE","Kit_de_café","CAFE DECAF PQT/C/50 PZA 2 GR",1E-3,0,2023,"Marzo"]
[1742,"HABITACIONES","89330 - PAÑUELOS FACIALES KLEENEX BLAN","CAJA C/72",72,16,809,"DISPONE","Amenidades_de_baño","89330 - PAÑUELOS FACIALES KLEENEX BLAN",2E-3,0,2023,"Marzo"]
[1744,"HABITACIONES","90498 - HIGIENICO TRAD KLEENEX COTONELL","PAQUETE C/72",72,24,605.12,"DISPONE","Amenidades_de_baño","90498 - HIGIENICO TRAD KLEENEX COTONELL",0.05,0,2023,"Marzo"]
[1667,"HABITACIONES","B9500BL040S CREMA CORPORAL DREAMS G&S 1","BOTE C/100",100,10,955,"DISPONE","Amenidades_de_baño","B9500BL040S CREMA CORPORAL DREAMS G&S 1",0.03,0,2023,"Marzo"]
[1668,"HABITACIONES","B9500CS040S SHAMPOO ACONDICIONADOR DREA","BOTE C/100",100,26,920,"DISPONE","Amenidades_de_baño","B9500CS040S SHAMPOO ACONDICIONADOR DREA",0.03,0,2023,"Marzo"]
[1669,"HABITACIONES","B9500SG040S GEL DE BAÑO DREAMS G&S 100/","BOTE C/100",100,26,1009,"DISPONE","Amenidades_de_baño","B9500SG040S GEL DE BAÑO DREAMS G&S 100/",0.03,0,2023,"Marzo"]
[35681,"HABITACIONES","SHAMPOO Y ACONDICIONADOR DE 1.18 OZ","PIEZA",1,0,4.95,"DISPONE","Amenidades_de_baño","SHAMPOO Y ACONDICIONADOR DE 1.18 OZ",0.01,0,2023,"Marzo"]
[45554,"HABITACIONES","GEL ALCOHOL SANITIZANTE 60 ML CON LOGO","PIEZA",1,2312,7.68,"DISPONE","Amenidades_de_baño","GEL ALCOHOL SANITIZANTE 60 ML CON LOGO",0.01,0,2023,"Marzo"]
[1655,"COCINA","VITAFILM DE 18\" 1500 MTS","PIEZA",1,103,295.33999999999997,"DISPONE","Protección_de_alimentos","VITAFILM DE 18\" 1500 MTS",5,0,2023,"Marzo"]
[56996,"ÁREAS PÚBLICAS","BOLSA NEGRA P/BASUR 90X1.20 LARGO CAL20","PAQUETE 14 KG",100,600,35.56,"DISPONE","Bolsa_de_residuos","BOLSA NEGRA P/BASUR 90X1.20 LARGO CAL20",0.05,0,2023,"Marzo"]
[56998,"ÁREAS PÚBLICAS","BOLSA TRANSP 40X60 CM 200 P/BASURA","PAQUETE 48 KG",100,200,52.49,"DISPONE","Bolsa_de_residuos","BOLSA TRANSP 40X60 CM 200 P/BASURA",2.7E-2,0,2023,"Marzo"]
[56999,"ÁREAS PÚBLICAS","BOLSA TRANSP DE 1 X 1.2 MT CAL 300 P/HI","PAQUETE 7 KG",100,150,54.16,"DISPONE","Bolsa_de_residuos","BOLSA TRANSP DE 1 X 1.2 MT CAL 300 P/HI",0.05,0,2023,"Marzo"]
[60204,"ÁREAS PÚBLICAS","BOLSA GLASINE ENCERADA TAMAÑO PALOMITAS","PAQUETE C/1000",100,15,62.01,"DISPONE","Bolsa_de_residuos","BOLSA GLASINE ENCERADA TAMAÑO PALOMITAS",0.02,0,2023,"Marzo"]
[37266,"COCINA","GUANTES DE LATEX ESTERIL C/ 100 PZA","CAJA C/1000",100,15,255.25,"DISPONE","Equipo_sanitario","Guantes de latex desechable",6.0000000000000001E-3,"OTROS",2023,"Marzo"]
[84115,"ÁREAS PÚBLICAS","BOLSA NEGRA P/BASURA 60X90 CM CAL 200 K","PAQUETE 14 KG",100,25,34.979999999999997,"DISPONE","Bolsa_de_residuos","BOLSA NEGRA P/BASURA 60X90 CM CAL 200 K",3.4000000000000002E-2,0,2023,"Marzo"]
[60772,"OTROS","BIO PLATO OSTRA 8X3X3 C/3 DIVISION C/20 ","CAJ ",200,0,594.23111111111109,"DISPOSICIÓN","Platos_y_charolas","BIO PLATO OSTRA 8X3X3 C/3 DIVISION C/20 ",0.08,0,2023,"Marzo"]
[67288,"OTROS","PLATO OSTRA BIO 22.86 X 15.24           ","PZA ",1,0,5.39,"DISPOSICIÓN","Platos_y_charolas","PLATO OSTRA BIO 22.86 X 15.24           ",8.3000000000000004E-2,0,2023,"Marzo"]
[67286,"OTROS","CHAROLA BIO 3 DIVISIONES 25.4 X 19.05   ","PZA ",1,0,5.2176,"DISPOSICIÓN","Platos_y_charolas","CHAROLA BIO 3 DIVISIONES 25.4 X 19.05   ",2.1999999999999999E-2,0,2023,"Marzo"]
[67289,"OTROS","PLATO BIO P/ HAMBURGUESA 15.24 X 15.24  ","PZA ",1,0,2.151023529411765,"DISPOSICIÓN","Platos_y_charolas","PLATO BIO P/ HAMBURGUESA 15.24 X 15.24  ",0.01,0,2023,"Marzo"]
[1090,"HABITACIONES","COFFE KIT REGULAR P/4 TAZAS C/CAFE/AZUC","PIEZA",1,0,9.91,"DISPONE","Kit_de_café","COFFE KIT REGULAR P/4 TAZAS C/CAFE/AZUC",1E-3,0,2023,"Abril"]
[30544,"HABITACIONES","CAFE DECAF PQT/C/50 PZA 2 GR","FRASCO C/50",50,0,66.540000000000006,"DISPONE","Kit_de_café","CAFE DECAF PQT/C/50 PZA 2 GR",1E-3,0,2023,"Abril"]
[1742,"HABITACIONES","89330 - PAÑUELOS FACIALES KLEENEX BLAN","CAJA C/72",72,17,809,"DISPONE","Amenidades_de_baño","89330 - PAÑUELOS FACIALES KLEENEX BLAN",2E-3,0,2023,"Abril"]
[1744,"HABITACIONES","90498 - HIGIENICO TRAD KLEENEX COTONELL","PAQUETE C/72",72,27,605.12,"DISPONE","Amenidades_de_baño","90498 - HIGIENICO TRAD KLEENEX COTONELL",0.05,0,2023,"Abril"]
[1667,"HABITACIONES","B9500BL040S CREMA CORPORAL DREAMS G&S 1","BOTE C/100",100,14,955,"DISPONE","Amenidades_de_baño","B9500BL040S CREMA CORPORAL DREAMS G&S 1",0.03,0,2023,"Abril"]
[1668,"HABITACIONES","B9500CS040S SHAMPOO ACONDICIONADOR DREA","BOTE C/100",100,37,920,"DISPONE","Amenidades_de_baño","B9500CS040S SHAMPOO ACONDICIONADOR DREA",0.03,0,2023,"Abril"]
[1669,"HABITACIONES","B9500SG040S GEL DE BAÑO DREAMS G&S 100/","BOTE C/100",100,38,1009,"DISPONE","Amenidades_de_baño","B9500SG040S GEL DE BAÑO DREAMS G&S 100/",0.03,0,2023,"Abril"]
[35681,"HABITACIONES","SHAMPOO Y ACONDICIONADOR DE 1.18 OZ","PIEZA",1,0,4.95,"DISPONE","Amenidades_de_baño","SHAMPOO Y ACONDICIONADOR DE 1.18 OZ",0.01,0,2023,"Abril"]
[45554,"HABITACIONES","GEL ALCOHOL SANITIZANTE 60 ML CON LOGO","PIEZA",1,3648,7.68,"DISPONE","Amenidades_de_baño","GEL ALCOHOL SANITIZANTE 60 ML CON LOGO",0.01,0,2023,"Abril"]
[1655,"COCINA","VITAFILM DE 18\" 1500 MTS","PIEZA",1,99,295.33999999999997,"DISPONE","Protección_de_alimentos","VITAFILM DE 18\" 1500 MTS",5,0,2023,"Abril"]
[56996,"ÁREAS PÚBLICAS","BOLSA NEGRA P/BASUR 90X1.20 LARGO CAL20","PAQUETE 14 KG",100,275,35.56,"DISPONE","Bolsa_de_residuos","BOLSA NEGRA P/BASUR 90X1.20 LARGO CAL20",0.05,0,2023,"Abril"]
[56998,"ÁREAS PÚBLICAS","BOLSA TRANSP 40X60 CM 200 P/BASURA","PAQUETE 48 KG",100,200,52.49,"DISPONE","Bolsa_de_residuos","BOLSA TRANSP 40X60 CM 200 P/BASURA",2.7E-2,0,2023,"Abril"]
[56999,"ÁREAS PÚBLICAS","BOLSA TRANSP DE 1 X 1.2 MT CAL 300 P/HI","PAQUETE 7 KG",100,275,54.16,"DISPONE","Bolsa_de_residuos","BOLSA TRANSP DE 1 X 1.2 MT CAL 300 P/HI",0.05,0,2023,"Abril"]
[60204,"ÁREAS PÚBLICAS","BOLSA GLASINE ENCERADA TAMAÑO PALOMITAS","PAQUETE C/1000",100,17,62.01,"DISPONE","Bolsa_de_residuos","BOLSA GLASINE ENCERADA TAMAÑO PALOMITAS",0.02,0,2023,"Abril"]
[37266,"COCINA","GUANTES DE LATEX ESTERIL C/ 100 PZA","CAJA C/1000",100,11,255.25,"DISPONE","Equipo_sanitario","Guantes de latex desechable",6.0000000000000001E-3,"OTROS",2023,"Abril"]
[84115,"ÁREAS PÚBLICAS","BOLSA NEGRA P/BASURA 60X90 CM CAL 200 K","PAQUETE 14 KG",100,150,34.979999999999997,"DISPONE","Bolsa_de_residuos","BOLSA NEGRA P/BASURA 60X90 CM CAL 200 K",3.4000000000000002E-2,0,2023,"Abril"]
[60772,"OTROS","BIO PLATO OSTRA 8X3X3 C/3 DIVISION C/20 ","CAJ ",200,0,594.23111111111109,"DISPOSICIÓN","Platos_y_charolas","BIO PLATO OSTRA 8X3X3 C/3 DIVISION C/20 ",0.08,0,2023,"Abril"]
[67288,"OTROS","PLATO OSTRA BIO 22.86 X 15.24           ","PZA ",1,0,5.39,"DISPOSICIÓN","Platos_y_charolas","PLATO OSTRA BIO 22.86 X 15.24           ",8.3000000000000004E-2,0,2023,"Abril"]
[67286,"OTROS","CHAROLA BIO 3 DIVISIONES 25.4 X 19.05   ","PZA ",1,0,5.2176,"DISPOSICIÓN","Platos_y_charolas","CHAROLA BIO 3 DIVISIONES 25.4 X 19.05   ",2.1999999999999999E-2,0,2023,"Abril"]
[67289,"OTROS","PLATO BIO P/ HAMBURGUESA 15.24 X 15.24  ","PZA ",1,0,2.151023529411765,"DISPOSICIÓN","Platos_y_charolas","PLATO BIO P/ HAMBURGUESA 15.24 X 15.24  ",0.01,0,2023,"Abril"]
[1090,"HABITACIONES","COFFE KIT REGULAR P/4 TAZAS C/CAFE/AZUC","PIEZA",1,0,9.91,"DISPONE","Kit_de_café","COFFE KIT REGULAR P/4 TAZAS C/CAFE/AZUC",1E-3,0,2023,"Mayo"]
[30544,"HABITACIONES","CAFE DECAF PQT/C/50 PZA 2 GR","FRASCO C/50",50,0,66.540000000000006,"DISPONE","Kit_de_café","CAFE DECAF PQT/C/50 PZA 2 GR",1E-3,0,2023,"Mayo"]
[1742,"HABITACIONES","89330 - PAÑUELOS FACIALES KLEENEX BLAN","CAJA C/72",72,22,809,"DISPONE","Amenidades_de_baño","89330 - PAÑUELOS FACIALES KLEENEX BLAN",2E-3,0,2023,"Mayo"]
[1744,"HABITACIONES","90498 - HIGIENICO TRAD KLEENEX COTONELL","PAQUETE C/72",72,21,605.12,"DISPONE","Amenidades_de_baño","90498 - HIGIENICO TRAD KLEENEX COTONELL",0.05,0,2023,"Mayo"]
[1667,"HABITACIONES","B9500BL040S CREMA CORPORAL DREAMS G&S 1","BOTE C/100",100,43,955,"DISPONE","Amenidades_de_baño","B9500BL040S CREMA CORPORAL DREAMS G&S 1",0.03,0,2023,"Mayo"]
[1668,"HABITACIONES","B9500CS040S SHAMPOO ACONDICIONADOR DREA","BOTE C/100",100,34,920,"DISPONE","Amenidades_de_baño","B9500CS040S SHAMPOO ACONDICIONADOR DREA",0.03,0,2023,"Mayo"]
[1669,"HABITACIONES","B9500SG040S GEL DE BAÑO DREAMS G&S 100/","BOTE C/100",100,38,1009,"DISPONE","Amenidades_de_baño","B9500SG040S GEL DE BAÑO DREAMS G&S 100/",0.03,0,2023,"Mayo"]
[35681,"HABITACIONES","SHAMPOO Y ACONDICIONADOR DE 1.18 OZ","PIEZA",1,0,4.95,"DISPONE","Amenidades_de_baño","SHAMPOO Y ACONDICIONADOR DE 1.18 OZ",0.01,0,2023,"Mayo"]
[45554,"HABITACIONES","GEL ALCOHOL SANITIZANTE 60 ML CON LOGO","PIEZA",1,0,7.68,"DISPONE","Amenidades_de_baño","GEL ALCOHOL SANITIZANTE 60 ML CON LOGO",0.01,0,2023,"Mayo"]
[1655,"COCINA","VITAFILM DE 18\" 1500 MTS","PIEZA",1,119,295.33999999999997,"DISPONE","Protección_de_alimentos","VITAFILM DE 18\" 1500 MTS",5,0,2023,"Mayo"]
[56996,"ÁREAS PÚBLICAS","BOLSA NEGRA P/BASUR 90X1.20 LARGO CAL20","PAQUETE 14 KG",100,600,35.56,"DISPONE","Bolsa_de_residuos","BOLSA NEGRA P/BASUR 90X1.20 LARGO CAL20",0.05,0,2023,"Mayo"]
[56998,"ÁREAS PÚBLICAS","BOLSA TRANSP 40X60 CM 200 P/BASURA","PAQUETE 48 KG",100,325,52.49,"DISPONE","Bolsa_de_residuos","BOLSA TRANSP 40X60 CM 200 P/BASURA",2.7E-2,0,2023,"Mayo"]
[56999,"ÁREAS PÚBLICAS","BOLSA TRANSP DE 1 X 1.2 MT CAL 300 P/HI","PAQUETE 7 KG",100,50,54.16,"DISPONE","Bolsa_de_residuos","BOLSA TRANSP DE 1 X 1.2 MT CAL 300 P/HI",0.05,0,2023,"Mayo"]
[60204,"ÁREAS PÚBLICAS","BOLSA GLASINE ENCERADA TAMAÑO PALOMITAS","PAQUETE C/1000",100,24,62.01,"DISPONE","Bolsa_de_residuos","BOLSA GLASINE ENCERADA TAMAÑO PALOMITAS",0.02,0,2023,"Mayo"]
[37266,"COCINA","GUANTES DE LATEX ESTERIL C/ 100 PZA","CAJA C/1000",100,14,255.25,"DISPONE","Equipo_sanitario","Guantes de latex desechable",6.0000000000000001E-3,"OTROS",2023,"Mayo"]
[84115,"ÁREAS PÚBLICAS","BOLSA NEGRA P/BASURA 60X90 CM CAL 200 K","PAQUETE 14 KG",100,0,34.979999999999997,"DISPONE","Bolsa_de_residuos","BOLSA NEGRA P/BASURA 60X90 CM CAL 200 K",3.4000000000000002E-2,0,2023,"Mayo"]
[60772,"OTROS","BIO PLATO OSTRA 8X3X3 C/3 DIVISION C/20 ","CAJ ",200,0,594.23111111111109,"DISPOSICIÓN","Platos_y_charolas","BIO PLATO OSTRA 8X3X3 C/3 DIVISION C/20 ",0.08,0,2023,"Mayo"]
[67288,"OTROS","PLATO OSTRA BIO 22.86 X 15.24           ","PZA ",1,0,5.39,"DISPOSICIÓN","Platos_y_charolas","PLATO OSTRA BIO 22.86 X 15.24           ",8.3000000000000004E-2,0,2023,"Mayo"]
[67286,"OTROS","CHAROLA BIO 3 DIVISIONES 25.4 X 19.05   ","PZA ",1,400,5.2176,"DISPOSICIÓN","Platos_y_charolas","CHAROLA BIO 3 DIVISIONES 25.4 X 19.05   ",2.1999999999999999E-2,0,2023,"Mayo"]
[67289,"OTROS","PLATO BIO P/ HAMBURGUESA 15.24 X 15.24  ","PZA ",1,5,2.151023529411765,"DISPOSICIÓN","Platos_y_charolas","PLATO BIO P/ HAMBURGUESA 15.24 X 15.24  ",0.01,0,2023,"Mayo"]
[1090,"HABITACIONES","COFFE KIT REGULAR P/4 TAZAS C/CAFE/AZUC","PIEZA",1,0,9.91,"DISPONE","Kit_de_café","COFFE KIT REGULAR P/4 TAZAS C/CAFE/AZUC",1E-3,0,2023,"Junio"]
[30544,"HABITACIONES","CAFE DECAF PQT/C/50 PZA 2 GR","FRASCO C/50",50,0,66.540000000000006,"DISPONE","Kit_de_café","CAFE DECAF PQT/C/50 PZA 2 GR",1E-3,0,2023,"Junio"]
[1742,"HABITACIONES","89330 - PAÑUELOS FACIALES KLEENEX BLAN","CAJA C/72",72,13,809,"DISPONE","Amenidades_de_baño","89330 - PAÑUELOS FACIALES KLEENEX BLAN",2E-3,0,2023,"Junio"]
[1744,"HABITACIONES","90498 - HIGIENICO TRAD KLEENEX COTONELL","PAQUETE C/72",72,27,605.12,"DISPONE","Amenidades_de_baño","90498 - HIGIENICO TRAD KLEENEX COTONELL",0.05,0,2023,"Junio"]
[1667,"HABITACIONES","B9500BL040S CREMA CORPORAL DREAMS G&S 1","BOTE C/100",100,27,955,"DISPONE","Amenidades_de_baño","B9500BL040S CREMA CORPORAL DREAMS G&S 1",0.03,0,2023,"Junio"]
[1668,"HABITACIONES","B9500CS040S SHAMPOO ACONDICIONADOR DREA","BOTE C/100",100,28,920,"DISPONE","Amenidades_de_baño","B9500CS040S SHAMPOO ACONDICIONADOR DREA",0.03,0,2023,"Junio"]
[1669,"HABITACIONES","B9500SG040S GEL DE BAÑO DREAMS G&S 100/","BOTE C/100",100,25,1009,"DISPONE","Amenidades_de_baño","B9500SG040S GEL DE BAÑO DREAMS G&S 100/",0.03,0,2023,"Junio"]
[35681,"HABITACIONES","SHAMPOO Y ACONDICIONADOR DE 1.18 OZ","PIEZA",1,null,4.95,"DISPONE","Amenidades_de_baño","SHAMPOO Y ACONDICIONADOR DE 1.18 OZ",0.01,0,2023,"Junio"]
[45554,"HABITACIONES","GEL ALCOHOL SANITIZANTE 60 ML CON LOGO","PIEZA",1,0,7.68,"DISPONE","Amenidades_de_baño","GEL ALCOHOL SANITIZANTE 60 ML CON LOGO",0.01,0,2023,"Junio"]
[1655,"COCINA","VITAFILM DE 18\" 1500 MTS","PIEZA",1,98,295.33999999999997,"DISPONE","Protección_de_alimentos","VITAFILM DE 18\" 1500 MTS",5,0,2023,"Junio"]
[56996,"ÁREAS PÚBLICAS","BOLSA NEGRA P/BASUR 90X1.20 LARGO CAL20","PAQUETE 14 KG",100,650,35.56,"DISPONE","Bolsa_de_residuos","BOLSA NEGRA P/BASUR 90X1.20 LARGO CAL20",0.05,0,2023,"Junio"]
[56998,"ÁREAS PÚBLICAS","BOLSA TRANSP 40X60 CM 200 P/BASURA","PAQUETE 48 KG",100,200,52.49,"DISPONE","Bolsa_de_residuos","BOLSA TRANSP 40X60 CM 200 P/BASURA",2.7E-2,0,2023,"Junio"]
[56999,"ÁREAS PÚBLICAS","BOLSA TRANSP DE 1 X 1.2 MT CAL 300 P/HI","PAQUETE 7 KG",100,75,54.16,"DISPONE","Bolsa_de_residuos","BOLSA TRANSP DE 1 X 1.2 MT CAL 300 P/HI",0.05,0,2023,"Junio"]
[60204,"ÁREAS PÚBLICAS","BOLSA GLASINE ENCERADA TAMAÑO PALOMITAS","PAQUETE C/1000",100,16,62.01,"DISPONE","Bolsa_de_residuos","BOLSA GLASINE ENCERADA TAMAÑO PALOMITAS",0.02,0,2023,"Junio"]
[37266,"COCINA","GUANTES DE LATEX ESTERIL C/ 100 PZA","CAJA C/1000",100,9,255.25,"DISPONE","Equipo_sanitario","Guantes de latex desechable",6.0000000000000001E-3,"OTROS",2023,"Junio"]
[84115,"ÁREAS PÚBLICAS","BOLSA NEGRA P/BASURA 60X90 CM CAL 200 K","PAQUETE 14 KG",100,0,34.979999999999997,"DISPONE","Bolsa_de_residuos","BOLSA NEGRA P/BASURA 60X90 CM CAL 200 K",3.4000000000000002E-2,0,2023,"Junio"]
[60772,"OTROS","BIO PLATO OSTRA 8X3X3 C/3 DIVISION C/20 ","CAJ ",200,0,594.23111111111109,"DISPOSICIÓN","Platos_y_charolas","BIO PLATO OSTRA 8X3X3 C/3 DIVISION C/20 ",0.08,0,2023,"Junio"]
[67288,"OTROS","PLATO OSTRA BIO 22.86 X 15.24           ","PZA ",1,0,5.39,"DISPOSICIÓN","Platos_y_charolas","PLATO OSTRA BIO 22.86 X 15.24           ",8.3000000000000004E-2,0,2023,"Junio"]
[67286,"OTROS","CHAROLA BIO 3 DIVISIONES 25.4 X 19.05   ","PZA ",1,0,5.2176,"DISPOSICIÓN","Platos_y_charolas","CHAROLA BIO 3 DIVISIONES 25.4 X 19.05   ",2.1999999999999999E-2,0,2023,"Junio"]
[67289,"OTROS","PLATO BIO P/ HAMBURGUESA 15.24 X 15.24  ","PZA ",1,500,2.151023529411765,"DISPOSICIÓN","Platos_y_charolas","PLATO BIO P/ HAMBURGUESA 15.24 X 15.24  ",0.01,0,2023,"Junio"]
[1090,"HABITACIONES","COFFE KIT REGULAR P/4 TAZAS C/CAFE/AZUC","PIEZA",1,0,9.91,"DISPONE","Kit_de_café","COFFE KIT REGULAR P/4 TAZAS C/CAFE/AZUC",1E-3,0,2023,"Julio"]
[30544,"HABITACIONES","CAFE DECAF PQT/C/50 PZA 2 GR","FRASCO C/50",50,0,66.540000000000006,"DISPONE","Kit_de_café","CAFE DECAF PQT/C/50 PZA 2 GR",1E-3,0,2023,"Julio"]
[1742,"HABITACIONES","89330 - PAÑUELOS FACIALES KLEENEX BLAN","CAJA C/72",72,7,809,"DISPONE","Amenidades_de_baño","89330 - PAÑUELOS FACIALES KLEENEX BLAN",2E-3,0,2023,"Julio"]
[1744,"HABITACIONES","90498 - HIGIENICO TRAD KLEENEX COTONELL","PAQUETE C/72",72,23,605.12,"DISPONE","Amenidades_de_baño","90498 - HIGIENICO TRAD KLEENEX COTONELL",0.05,0,2023,"Julio"]
[1667,"HABITACIONES","B9500BL040S CREMA CORPORAL DREAMS G&S 1","BOTE C/100",100,29,955,"DISPONE","Amenidades_de_baño","B9500BL040S CREMA CORPORAL DREAMS G&S 1",0.03,0,2023,"Julio"]
[1668,"HABITACIONES","B9500CS040S SHAMPOO ACONDICIONADOR DREA","BOTE C/100",100,35,920,"DISPONE","Amenidades_de_baño","B9500CS040S SHAMPOO ACONDICIONADOR DREA",0.03,0,2023,"Julio"]
[1669,"HABITACIONES","B9500SG040S GEL DE BAÑO DREAMS G&S 100/","BOTE C/100",100,32,1009,"DISPONE","Amenidades_de_baño","B9500SG040S GEL DE BAÑO DREAMS G&S 100/",0.03,0,2023,"Julio"]
[35681,"HABITACIONES","SHAMPOO Y ACONDICIONADOR DE 1.18 OZ","PIEZA",1,0,4.95,"DISPONE","Amenidades_de_baño","SHAMPOO Y ACONDICIONADOR DE 1.18 OZ",0.01,0,2023,"Julio"]
[45554,"HABITACIONES","GEL ALCOHOL SANITIZANTE 60 ML CON LOGO","PIEZA",1,0,7.68,"DISPONE","Amenidades_de_baño","GEL ALCOHOL SANITIZANTE 60 ML CON LOGO",0.01,0,2023,"Julio"]
[1655,"COCINA","VITAFILM DE 18\" 1500 MTS","PIEZA",1,65,295.33999999999997,"DISPONE","Protección_de_alimentos","VITAFILM DE 18\" 1500 MTS",5,0,2023,"Julio"]
[56996,"ÁREAS PÚBLICAS","BOLSA NEGRA P/BASUR 90X1.20 LARGO CAL20","PAQUETE 14 KG",100,650,35.56,"DISPONE","Bolsa_de_residuos","BOLSA NEGRA P/BASUR 90X1.20 LARGO CAL20",0.05,0,2023,"Julio"]
[56998,"ÁREAS PÚBLICAS","BOLSA TRANSP 40X60 CM 200 P/BASURA","PAQUETE 48 KG",100,225,52.49,"DISPONE","Bolsa_de_residuos","BOLSA TRANSP 40X60 CM 200 P/BASURA",2.7E-2,0,2023,"Julio"]
[56999,"ÁREAS PÚBLICAS","BOLSA TRANSP DE 1 X 1.2 MT CAL 300 P/HI","PAQUETE 7 KG",100,300,54.16,"DISPONE","Bolsa_de_residuos","BOLSA TRANSP DE 1 X 1.2 MT CAL 300 P/HI",0.05,0,2023,"Julio"]
[60204,"ÁREAS PÚBLICAS","BOLSA GLASINE ENCERADA TAMAÑO PALOMITAS","PAQUETE C/1000",100,25,62.01,"DISPONE","Bolsa_de_residuos","BOLSA GLASINE ENCERADA TAMAÑO PALOMITAS",0.02,0,2023,"Julio"]
[37266,"COCINA","GUANTES DE LATEX ESTERIL C/ 100 PZA","CAJA C/1000",100,16,255.25,"DISPONE","Equipo_sanitario","Guantes de latex desechable",6.0000000000000001E-3,"OTROS",2023,"Julio"]
[84115,"ÁREAS PÚBLICAS","BOLSA NEGRA P/BASURA 60X90 CM CAL 200 K","PAQUETE 14 KG",100,0,34.979999999999997,"DISPONE","Bolsa_de_residuos","BOLSA NEGRA P/BASURA 60X90 CM CAL 200 K",3.4000000000000002E-2,0,2023,"Julio"]
[60772,"OTROS","BIO PLATO OSTRA 8X3X3 C/3 DIVISION C/20 ","CAJ ",200,0,594.23111111111109,"DISPOSICIÓN","Platos_y_charolas","BIO PLATO OSTRA 8X3X3 C/3 DIVISION C/20 ",0.08,0,2023,"Julio"]
[67288,"OTROS","PLATO OSTRA BIO 22.86 X 15.24           ","PZA ",1,0,5.39,"DISPOSICIÓN","Platos_y_charolas","PLATO OSTRA BIO 22.86 X 15.24           ",8.3000000000000004E-2,0,2023,"Julio"]
[67286,"OTROS","CHAROLA BIO 3 DIVISIONES 25.4 X 19.05   ","PZA ",1,0,5.2176,"DISPOSICIÓN","Platos_y_charolas","CHAROLA BIO 3 DIVISIONES 25.4 X 19.05   ",2.1999999999999999E-2,0,2023,"Julio"]
[67289,"OTROS","PLATO BIO P/ HAMBURGUESA 15.24 X 15.24  ","PZA ",1,0,2.151023529411765,"DISPOSICIÓN","Platos_y_charolas","PLATO BIO P/ HAMBURGUESA 15.24 X 15.24  ",0.01,0,2023,"Julio"]
[1090,"HABITACIONES","COFFE KIT REGULAR P/4 TAZAS C/CAFE/AZUC","PIEZA",1,0,9.91,"DISPONE","Kit_de_café","COFFE KIT REGULAR P/4 TAZAS C/CAFE/AZUC",1E-3,0,2023,"Agosto"]
[30544,"HABITACIONES","CAFE DECAF PQT/C/50 PZA 2 GR","FRASCO C/50",50,0,66.540000000000006,"DISPONE","Kit_de_café","CAFE DECAF PQT/C/50 PZA 2 GR",1E-3,0,2023,"Agosto"]
[1742,"HABITACIONES","89330 - PAÑUELOS FACIALES KLEENEX BLAN","CAJA C/72",72,9,809,"DISPONE","Amenidades_de_baño","89330 - PAÑUELOS FACIALES KLEENEX BLAN",2E-3,0,2023,"Agosto"]
[1744,"HABITACIONES","90498 - HIGIENICO TRAD KLEENEX COTONELL","PAQUETE C/72",72,27,605.12,"DISPONE","Amenidades_de_baño","90498 - HIGIENICO TRAD KLEENEX COTONELL",0.05,0,2023,"Agosto"]
[1667,"HABITACIONES","B9500BL040S CREMA CORPORAL DREAMS G&S 1","BOTE C/100",100,25,955,"DISPONE","Amenidades_de_baño","B9500BL040S CREMA CORPORAL DREAMS G&S 1",0.03,0,2023,"Agosto"]
[1668,"HABITACIONES","B9500CS040S SHAMPOO ACONDICIONADOR DREA","BOTE C/100",100,29,920,"DISPONE","Amenidades_de_baño","B9500CS040S SHAMPOO ACONDICIONADOR DREA",0.03,0,2023,"Agosto"]
[1669,"HABITACIONES","B9500SG040S GEL DE BAÑO DREAMS G&S 100/","BOTE C/100",100,30,1009,"DISPONE","Amenidades_de_baño","B9500SG040S GEL DE BAÑO DREAMS G&S 100/",0.03,0,2023,"Agosto"]
[35681,"HABITACIONES","SHAMPOO Y ACONDICIONADOR DE 1.18 OZ","PIEZA",1,0,4.95,"DISPONE","Amenidades_de_baño","SHAMPOO Y ACONDICIONADOR DE 1.18 OZ",0.01,0,2023,"Agosto"]
[45554,"HABITACIONES","GEL ALCOHOL SANITIZANTE 60 ML CON LOGO","PIEZA",1,0,7.68,"DISPONE","Amenidades_de_baño","GEL ALCOHOL SANITIZANTE 60 ML CON LOGO",0.01,0,2023,"Agosto"]
[1655,"COCINA","VITAFILM DE 18\" 1500 MTS","PIEZA",1,87,295.33999999999997,"DISPONE","Protección_de_alimentos","VITAFILM DE 18\" 1500 MTS",5,0,2023,"Agosto"]
[56996,"ÁREAS PÚBLICAS","BOLSA NEGRA P/BASUR 90X1.20 LARGO CAL20","PAQUETE 14 KG",100,625,35.56,"DISPONE","Bolsa_de_residuos","BOLSA NEGRA P/BASUR 90X1.20 LARGO CAL20",0.05,0,2023,"Agosto"]
[56998,"ÁREAS PÚBLICAS","BOLSA TRANSP 40X60 CM 200 P/BASURA","PAQUETE 48 KG",100,100,52.49,"DISPONE","Bolsa_de_residuos","BOLSA TRANSP 40X60 CM 200 P/BASURA",2.7E-2,0,2023,"Agosto"]
[56999,"ÁREAS PÚBLICAS","BOLSA TRANSP DE 1 X 1.2 MT CAL 300 P/HI","PAQUETE 7 KG",100,250,54.16,"DISPONE","Bolsa_de_residuos","BOLSA TRANSP DE 1 X 1.2 MT CAL 300 P/HI",0.05,0,2023,"Agosto"]
[60204,"ÁREAS PÚBLICAS","BOLSA GLASINE ENCERADA TAMAÑO PALOMITAS","PAQUETE C/1000",100,10,62.01,"DISPONE","Bolsa_de_residuos","BOLSA GLASINE ENCERADA TAMAÑO PALOMITAS",0.02,0,2023,"Agosto"]
[37266,"COCINA","GUANTES DE LATEX ESTERIL C/ 100 PZA","CAJA C/1000",100,10,255.25,"DISPONE","Equipo_sanitario","Guantes de latex desechable",6.0000000000000001E-3,"OTROS",2023,"Agosto"]
[84115,"ÁREAS PÚBLICAS","BOLSA NEGRA P/BASURA 60X90 CM CAL 200 K","PAQUETE 14 KG",100,0,34.979999999999997,"DISPONE","Bolsa_de_residuos","BOLSA NEGRA P/BASURA 60X90 CM CAL 200 K",3.4000000000000002E-2,0,2023,"Agosto"]
[60772,"OTROS","BIO PLATO OSTRA 8X3X3 C/3 DIVISION C/20 ","CAJ ",200,0,594.23111111111109,"DISPOSICIÓN","Platos_y_charolas","BIO PLATO OSTRA 8X3X3 C/3 DIVISION C/20 ",0.08,0,2023,"Agosto"]
[67288,"OTROS","PLATO OSTRA BIO 22.86 X 15.24           ","PZA ",1,0,5.39,"DISPOSICIÓN","Platos_y_charolas","PLATO OSTRA BIO 22.86 X 15.24           ",8.3000000000000004E-2,0,2023,"Agosto"]
[67286,"OTROS","CHAROLA BIO 3 DIVISIONES 25.4 X 19.05   ","PZA ",1,0,5.2176,"DISPOSICIÓN","Platos_y_charolas","CHAROLA BIO 3 DIVISIONES 25.4 X 19.05   ",2.1999999999999999E-2,0,2023,"Agosto"]
[67289,"OTROS","PLATO BIO P/ HAMBURGUESA 15.24 X 15.24  ","PZA ",1,0,2.151023529411765,"DISPOSICIÓN","Platos_y_charolas","PLATO BIO P/ HAMBURGUESA 15.24 X 15.24  ",0.01,0,2023,"Agosto"]
[1090,"HABITACIONES","COFFE KIT REGULAR P/4 TAZAS C/CAFE/AZUC","PIEZA",1,0,9.91,"DISPONE","Kit_de_café","COFFE KIT REGULAR P/4 TAZAS C/CAFE/AZUC",1E-3,0,2023,"Septiembre"]
[30544,"HABITACIONES","CAFE DECAF PQT/C/50 PZA 2 GR","FRASCO C/50",50,0,66.540000000000006,"DISPONE","Kit_de_café","CAFE DECAF PQT/C/50 PZA 2 GR",1E-3,0,2023,"Septiembre"]
[1742,"HABITACIONES","89330 - PAÑUELOS FACIALES KLEENEX BLAN","CAJA C/72",72,2,809,"DISPONE","Amenidades_de_baño","89330 - PAÑUELOS FACIALES KLEENEX BLAN",2E-3,0,2023,"Septiembre"]
[1744,"HABITACIONES","90498 - HIGIENICO TRAD KLEENEX COTONELL","PAQUETE C/72",72,23,605.12,"DISPONE","Amenidades_de_baño","90498 - HIGIENICO TRAD KLEENEX COTONELL",0.05,0,2023,"Septiembre"]
[1667,"HABITACIONES","B9500BL040S CREMA CORPORAL DREAMS G&S 1","BOTE C/100",100,16,955,"DISPONE","Amenidades_de_baño","B9500BL040S CREMA CORPORAL DREAMS G&S 1",0.03,0,2023,"Septiembre"]
[1668,"HABITACIONES","B9500CS040S SHAMPOO ACONDICIONADOR DREA","BOTE C/100",100,23,920,"DISPONE","Amenidades_de_baño","B9500CS040S SHAMPOO ACONDICIONADOR DREA",0.03,0,2023,"Septiembre"]
[1669,"HABITACIONES","B9500SG040S GEL DE BAÑO DREAMS G&S 100/","BOTE C/100",100,23,1009,"DISPONE","Amenidades_de_baño","B9500SG040S GEL DE BAÑO DREAMS G&S 100/",0.03,0,2023,"Septiembre"]
[35681,"HABITACIONES","SHAMPOO Y ACONDICIONADOR DE 1.18 OZ","PIEZA",1,0,4.95,"DISPONE","Amenidades_de_baño","SHAMPOO Y ACONDICIONADOR DE 1.18 OZ",0.01,0,2023,"Septiembre"]
[45554,"HABITACIONES","GEL ALCOHOL SANITIZANTE 60 ML CON LOGO","PIEZA",1,0,7.68,"DISPONE","Amenidades_de_baño","GEL ALCOHOL SANITIZANTE 60 ML CON LOGO",0.01,0,2023,"Septiembre"]
[1655,"COCINA","VITAFILM DE 18\" 1500 MTS","PIEZA",1,56,295.33999999999997,"DISPONE","Protección_de_alimentos","VITAFILM DE 18\" 1500 MTS",5,0,2023,"Septiembre"]
[56996,"ÁREAS PÚBLICAS","BOLSA NEGRA P/BASUR 90X1.20 LARGO CAL20","PAQUETE 14 KG",100,500,35.56,"DISPONE","Bolsa_de_residuos","BOLSA NEGRA P/BASUR 90X1.20 LARGO CAL20",0.05,0,2023,"Septiembre"]
[56998,"ÁREAS PÚBLICAS","BOLSA TRANSP 40X60 CM 200 P/BASURA","PAQUETE 48 KG",100,225,52.49,"DISPONE","Bolsa_de_residuos","BOLSA TRANSP 40X60 CM 200 P/BASURA",2.7E-2,0,2023,"Septiembre"]
[56999,"ÁREAS PÚBLICAS","BOLSA TRANSP DE 1 X 1.2 MT CAL 300 P/HI","PAQUETE 7 KG",100,200,54.16,"DISPONE","Bolsa_de_residuos","BOLSA TRANSP DE 1 X 1.2 MT CAL 300 P/HI",0.05,0,2023,"Septiembre"]
[60204,"ÁREAS PÚBLICAS","BOLSA GLASINE ENCERADA TAMAÑO PALOMITAS","PAQUETE C/1000",100,3,62.01,"DISPONE","Bolsa_de_residuos","BOLSA GLASINE ENCERADA TAMAÑO PALOMITAS",0.02,0,2023,"Septiembre"]
[37266,"COCINA","GUANTES DE LATEX ESTERIL C/ 100 PZA","CAJA C/1000",100,4,255.25,"DISPONE","Equipo_sanitario","Guantes de latex desechable",6.0000000000000001E-3,"OTROS",2023,"Septiembre"]
[84115,"ÁREAS PÚBLICAS","BOLSA NEGRA P/BASURA 60X90 CM CAL 200 K","PAQUETE 14 KG",100,0,34.979999999999997,"DISPONE","Bolsa_de_residuos","BOLSA NEGRA P/BASURA 60X90 CM CAL 200 K",3.4000000000000002E-2,0,2023,"Septiembre"]
[60772,"OTROS","BIO PLATO OSTRA 8X3X3 C/3 DIVISION C/20 ","CAJ ",200,0,594.23111111111109,"DISPOSICIÓN","Platos_y_charolas","BIO PLATO OSTRA 8X3X3 C/3 DIVISION C/20 ",0.08,0,2023,"Septiembre"]
[67288,"OTROS","PLATO OSTRA BIO 22.86 X 15.24           ","PZA ",1,0,5.39,"DISPOSICIÓN","Platos_y_charolas","PLATO OSTRA BIO 22.86 X 15.24           ",8.3000000000000004E-2,0,2023,"Septiembre"]
[67286,"OTROS","CHAROLA BIO 3 DIVISIONES 25.4 X 19.05   ","PZA ",1,0,5.2176,"DISPOSICIÓN","Platos_y_charolas","CHAROLA BIO 3 DIVISIONES 25.4 X 19.05   ",2.1999999999999999E-2,0,2023,"Septiembre"]
[67289,"OTROS","PLATO BIO P/ HAMBURGUESA 15.24 X 15.24  ","PZA ",1,0,2.151023529411765,"DISPOSICIÓN","Platos_y_charolas","PLATO BIO P/ HAMBURGUESA 15.24 X 15.24  ",0.01,0,2023,"Septiembre"]
[1090,"HABITACIONES","COFFE KIT REGULAR P/4 TAZAS C/CAFE/AZUC","PIEZA",1,0,9.91,"DISPONE","Kit_de_café","COFFE KIT REGULAR P/4 TAZAS C/CAFE/AZUC",1E-3,0,2023,"Octubre"]
[30544,"HABITACIONES","CAFE DECAF PQT/C/50 PZA 2 GR","FRASCO C/50",50,0,66.540000000000006,"DISPONE","Kit_de_café","CAFE DECAF PQT/C/50 PZA 2 GR",1E-3,0,2023,"Octubre"]
[1742,"HABITACIONES","89330 - PAÑUELOS FACIALES KLEENEX BLAN","CAJA C/72",72,8,809,"DISPONE","Amenidades_de_baño","89330 - PAÑUELOS FACIALES KLEENEX BLAN",2E-3,0,2023,"Octubre"]
[1744,"HABITACIONES","90498 - HIGIENICO TRAD KLEENEX COTONELL","PAQUETE C/72",72,25,605.12,"DISPONE","Amenidades_de_baño","90498 - HIGIENICO TRAD KLEENEX COTONELL",0.05,0,2023,"Octubre"]
[1667,"HABITACIONES","B9500BL040S CREMA CORPORAL DREAMS G&S 1","BOTE C/100",100,20,955,"DISPONE","Amenidades_de_baño","B9500BL040S CREMA CORPORAL DREAMS G&S 1",0.03,0,2023,"Octubre"]
[1668,"HABITACIONES","B9500CS040S SHAMPOO ACONDICIONADOR DREA","BOTE C/100",100,29,920,"DISPONE","Amenidades_de_baño","B9500CS040S SHAMPOO ACONDICIONADOR DREA",0.03,0,2023,"Octubre"]
[1669,"HABITACIONES","B9500SG040S GEL DE BAÑO DREAMS G&S 100/","BOTE C/100",100,29,1009,"DISPONE","Amenidades_de_baño","B9500SG040S GEL DE BAÑO DREAMS G&S 100/",0.03,0,2023,"Octubre"]
[35681,"HABITACIONES","SHAMPOO Y ACONDICIONADOR DE 1.18 OZ","PIEZA",1,0,4.95,"DISPONE","Amenidades_de_baño","SHAMPOO Y ACONDICIONADOR DE 1.18 OZ",0.01,0,2023,"Octubre"]
[45554,"HABITACIONES","GEL ALCOHOL SANITIZANTE 60 ML CON LOGO","PIEZA",1,0,7.68,"DISPONE","Amenidades_de_baño","GEL ALCOHOL SANITIZANTE 60 ML CON LOGO",0.01,0,2023,"Octubre"]
[1655,"COCINA","VITAFILM DE 18\" 1500 MTS","PIEZA",1,65,295.33999999999997,"DISPONE","Protección_de_alimentos","VITAFILM DE 18\" 1500 MTS",5,0,2023,"Octubre"]
[56996,"ÁREAS PÚBLICAS","BOLSA NEGRA P/BASUR 90X1.20 LARGO CAL20","PAQUETE 14 KG",100,75,35.56,"DISPONE","Bolsa_de_residuos","BOLSA NEGRA P/BASUR 90X1.20 LARGO CAL20",0.05,0,2023,"Octubre"]
[56998,"ÁREAS PÚBLICAS","BOLSA TRANSP 40X60 CM 200 P/BASURA","PAQUETE 48 KG",100,50,52.49,"DISPONE","Bolsa_de_residuos","BOLSA TRANSP 40X60 CM 200 P/BASURA",2.7E-2,0,2023,"Octubre"]
[56999,"ÁREAS PÚBLICAS","BOLSA TRANSP DE 1 X 1.2 MT CAL 300 P/HI","PAQUETE 7 KG",100,465,54.16,"DISPONE","Bolsa_de_residuos","BOLSA TRANSP DE 1 X 1.2 MT CAL 300 P/HI",0.05,0,2023,"Octubre"]
[60204,"ÁREAS PÚBLICAS","BOLSA GLASINE ENCERADA TAMAÑO PALOMITAS","PAQUETE C/1000",100,18,62.01,"DISPONE","Bolsa_de_residuos","BOLSA GLASINE ENCERADA TAMAÑO PALOMITAS",0.02,0,2023,"Octubre"]
[37266,"COCINA","GUANTES DE LATEX ESTERIL C/ 100 PZA","CAJA C/1000",100,11,255.25,"DISPONE","Equipo_sanitario","Guantes de latex desechable",6.0000000000000001E-3,"OTROS",2023,"Octubre"]
[84115,"ÁREAS PÚBLICAS","BOLSA NEGRA P/BASURA 60X90 CM CAL 200 K","PAQUETE 14 KG",100,100,34.979999999999997,"DISPONE","Bolsa_de_residuos","BOLSA NEGRA P/BASURA 60X90 CM CAL 200 K",3.4000000000000002E-2,0,2023,"Octubre"]
[60772,"OTROS","BIO PLATO OSTRA 8X3X3 C/3 DIVISION C/20 ","CAJ ",200,0,594.23111111111109,"DISPOSICIÓN","Platos_y_charolas","BIO PLATO OSTRA 8X3X3 C/3 DIVISION C/20 ",0.08,0,2023,"Octubre"]
[67288,"OTROS","PLATO OSTRA BIO 22.86 X 15.24           ","PZA ",1,0,5.39,"DISPOSICIÓN","Platos_y_charolas","PLATO OSTRA BIO 22.86 X 15.24           ",8.3000000000000004E-2,0,2023,"Octubre"]
[67286,"OTROS","CHAROLA BIO 3 DIVISIONES 25.4 X 19.05   ","PZA ",1,0,5.2176,"DISPOSICIÓN","Platos_y_charolas","CHAROLA BIO 3 DIVISIONES 25.4 X 19.05   ",2.1999999999999999E-2,0,2023,"Octubre"]
[67289,"OTROS","PLATO BIO P/ HAMBURGUESA 15.24 X 15.24  ","PZA ",1,0,2.151023529411765,"DISPOSICIÓN","Platos_y_charolas","PLATO BIO P/ HAMBURGUESA 15.24 X 15.24  ",0.01,0,2023,"Octubre"]
[1090,"HABITACIONES","COFFE KIT REGULAR P/4 TAZAS C/CAFE/AZUC","PIEZA",1,0,9.91,"DISPONE","Kit_de_café","COFFE KIT REGULAR P/4 TAZAS C/CAFE/AZUC",1E-3,0,2023,"Noviembre"]
[30544,"HABITACIONES","CAFE DECAF PQT/C/50 PZA 2 GR","FRASCO C/50",50,0,66.540000000000006,"DISPONE","Kit_de_café","CAFE DECAF PQT/C/50 PZA 2 GR",1E-3,0,2023,"Noviembre"]
[1742,"HABITACIONES","89330 - PAÑUELOS FACIALES KLEENEX BLAN","CAJA C/72",72,17,809,"DISPONE","Amenidades_de_baño","89330 - PAÑUELOS FACIALES KLEENEX BLAN",2E-3,0,2023,"Noviembre"]
[1744,"HABITACIONES","90498 - HIGIENICO TRAD KLEENEX COTONELL","PAQUETE C/72",72,30,605.12,"DISPONE","Amenidades_de_baño","90498 - HIGIENICO TRAD KLEENEX COTONELL",0.05,0,2023,"Noviembre"]
[1667,"HABITACIONES","B9500BL040S CREMA CORPORAL DREAMS G&S 1","BOTE C/100",100,28,955,"DISPONE","Amenidades_de_baño","B9500BL040S CREMA CORPORAL DREAMS G&S 1",0.03,0,2023,"Noviembre"]
[1668,"HABITACIONES","B9500CS040S SHAMPOO ACONDICIONADOR DREA","BOTE C/100",100,31,920,"DISPONE","Amenidades_de_baño","B9500CS040S SHAMPOO ACONDICIONADOR DREA",0.03,0,2023,"Noviembre"]
[1669,"HABITACIONES","B9500SG040S GEL DE BAÑO DREAMS G&S 100/","BOTE C/100",100,29,1009,"DISPONE","Amenidades_de_baño","B9500SG040S GEL DE BAÑO DREAMS G&S 100/",0.03,0,2023,"Noviembre"]
[35681,"HABITACIONES","SHAMPOO Y ACONDICIONADOR DE 1.18 OZ","PIEZA",1,0,4.95,"DISPONE","Amenidades_de_baño","SHAMPOO Y ACONDICIONADOR DE 1.18 OZ",0.01,0,2023,"Noviembre"]
[45554,"HABITACIONES","GEL ALCOHOL SANITIZANTE 60 ML CON LOGO","PIEZA",1,0,7.68,"DISPONE","Amenidades_de_baño","GEL ALCOHOL SANITIZANTE 60 ML CON LOGO",0.01,0,2023,"Noviembre"]
[1655,"COCINA","VITAFILM DE 18\" 1500 MTS","PIEZA",1,86,295.33999999999997,"DISPONE","Protección_de_alimentos","VITAFILM DE 18\" 1500 MTS",5,0,2023,"Noviembre"]
[56996,"ÁREAS PÚBLICAS","BOLSA NEGRA P/BASUR 90X1.20 LARGO CAL20","PAQUETE 14 KG",100,0,35.56,"DISPONE","Bolsa_de_residuos","BOLSA NEGRA P/BASUR 90X1.20 LARGO CAL20",0.05,0,2023,"Noviembre"]
[56998,"ÁREAS PÚBLICAS","BOLSA TRANSP 40X60 CM 200 P/BASURA","PAQUETE 48 KG",100,75,52.49,"DISPONE","Bolsa_de_residuos","BOLSA TRANSP 40X60 CM 200 P/BASURA",2.7E-2,0,2023,"Noviembre"]
[56999,"ÁREAS PÚBLICAS","BOLSA TRANSP DE 1 X 1.2 MT CAL 300 P/HI","PAQUETE 7 KG",100,450,54.16,"DISPONE","Bolsa_de_residuos","BOLSA TRANSP DE 1 X 1.2 MT CAL 300 P/HI",0.05,0,2023,"Noviembre"]
[60204,"ÁREAS PÚBLICAS","BOLSA GLASINE ENCERADA TAMAÑO PALOMITAS","PAQUETE C/1000",100,12,62.01,"DISPONE","Bolsa_de_residuos","BOLSA GLASINE ENCERADA TAMAÑO PALOMITAS",0.02,0,2023,"Noviembre"]
[37266,"COCINA","GUANTES DE LATEX ESTERIL C/ 100 PZA","CAJA C/1000",100,19,255.25,"DISPONE","Equipo_sanitario","Guantes de latex desechable",6.0000000000000001E-3,"OTROS",2023,"Noviembre"]
[84115,"ÁREAS PÚBLICAS","BOLSA NEGRA P/BASURA 60X90 CM CAL 200 K","PAQUETE 14 KG",100,175,34.979999999999997,"DISPONE","Bolsa_de_residuos","BOLSA NEGRA P/BASURA 60X90 CM CAL 200 K",3.4000000000000002E-2,0,2023,"Noviembre"]
[60772,"OTROS","BIO PLATO OSTRA 8X3X3 C/3 DIVISION C/20 ","CAJ ",200,0,594.23111111111109,"DISPOSICIÓN","Platos_y_charolas","BIO PLATO OSTRA 8X3X3 C/3 DIVISION C/20 ",0.08,0,2023,"Noviembre"]
[67288,"OTROS","PLATO OSTRA BIO 22.86 X 15.24           ","PZA ",1,0,5.39,"DISPOSICIÓN","Platos_y_charolas","PLATO OSTRA BIO 22.86 X 15.24           ",8.3000000000000004E-2,0,2023,"Noviembre"]
[67286,"OTROS","CHAROLA BIO 3 DIVISIONES 25.4 X 19.05   ","PZA ",1,0,5.2176,"DISPOSICIÓN","Platos_y_charolas","CHAROLA BIO 3 DIVISIONES 25.4 X 19.05   ",2.1999999999999999E-2,0,2023,"Noviembre"]
[67289,"OTROS","PLATO BIO P/ HAMBURGUESA 15.24 X 15.24  ","PZA ",1,0,2.151023529411765,"DISPOSICIÓN","Platos_y_charolas","PLATO BIO P/ HAMBURGUESA 15.24 X 15.24  ",0.01,0,2023,"Noviembre"]
[1090,"HABITACIONES","COFFE KIT REGULAR P/4 TAZAS C/CAFE/AZUC","PIEZA",1,0,9.91,"DISPONE","Kit_de_café","COFFE KIT REGULAR P/4 TAZAS C/CAFE/AZUC",1E-3,0,2023,"Diciembre"]
[30544,"HABITACIONES","CAFE DECAF PQT/C/50 PZA 2 GR","FRASCO C/50",50,0,66.540000000000006,"DISPONE","Kit_de_café","CAFE DECAF PQT/C/50 PZA 2 GR",1E-3,0,2023,"Diciembre"]
[1742,"HABITACIONES","89330 - PAÑUELOS FACIALES KLEENEX BLAN","CAJA C/72",72,22,809,"DISPONE","Amenidades_de_baño","89330 - PAÑUELOS FACIALES KLEENEX BLAN",2E-3,0,2023,"Diciembre"]
[1744,"HABITACIONES","90498 - HIGIENICO TRAD KLEENEX COTONELL","PAQUETE C/72",72,36,605.12,"DISPONE","Amenidades_de_baño","90498 - HIGIENICO TRAD KLEENEX COTONELL",0.05,0,2023,"Diciembre"]
[1667,"HABITACIONES","B9500BL040S CREMA CORPORAL DREAMS G&S 1","BOTE C/100",100,34,955,"DISPONE","Amenidades_de_baño","B9500BL040S CREMA CORPORAL DREAMS G&S 1",0.03,0,2023,"Diciembre"]
[1668,"HABITACIONES","B9500CS040S SHAMPOO ACONDICIONADOR DREA","BOTE C/100",100,33,920,"DISPONE","Amenidades_de_baño","B9500CS040S SHAMPOO ACONDICIONADOR DREA",0.03,0,2023,"Diciembre"]
[1669,"HABITACIONES","B9500SG040S GEL DE BAÑO DREAMS G&S 100/","BOTE C/100",100,24,1009,"DISPONE","Amenidades_de_baño","B9500SG040S GEL DE BAÑO DREAMS G&S 100/",0.03,0,2023,"Diciembre"]
[35681,"HABITACIONES","SHAMPOO Y ACONDICIONADOR DE 1.18 OZ","PIEZA",1,0,4.95,"DISPONE","Amenidades_de_baño","SHAMPOO Y ACONDICIONADOR DE 1.18 OZ",0.01,0,2023,"Diciembre"]
[45554,"HABITACIONES","GEL ALCOHOL SANITIZANTE 60 ML CON LOGO","PIEZA",1,0,7.68,"DISPONE","Amenidades_de_baño","GEL ALCOHOL SANITIZANTE 60 ML CON LOGO",0.01,0,2023,"Diciembre"]
[1655,"COCINA","VITAFILM DE 18\" 1500 MTS","PIEZA",1,71,295.33999999999997,"DISPONE","Protección_de_alimentos","VITAFILM DE 18\" 1500 MTS",5,0,2023,"Diciembre"]
[56996,"ÁREAS PÚBLICAS","BOLSA NEGRA P/BASUR 90X1.20 LARGO CAL20","PAQUETE 14 KG",100,0,35.56,"DISPONE","Bolsa_de_residuos","BOLSA NEGRA P/BASUR 90X1.20 LARGO CAL20",0.05,0,2023,"Diciembre"]
[56998,"ÁREAS PÚBLICAS","BOLSA TRANSP 40X60 CM 200 P/BASURA","PAQUETE 48 KG",100,200,52.49,"DISPONE","Bolsa_de_residuos","BOLSA TRANSP 40X60 CM 200 P/BASURA",2.7E-2,0,2023,"Diciembre"]
[56999,"ÁREAS PÚBLICAS","BOLSA TRANSP DE 1 X 1.2 MT CAL 300 P/HI","PAQUETE 7 KG",100,550,54.16,"DISPONE","Bolsa_de_residuos","BOLSA TRANSP DE 1 X 1.2 MT CAL 300 P/HI",0.05,0,2023,"Diciembre"]
[60204,"ÁREAS PÚBLICAS","BOLSA GLASINE ENCERADA TAMAÑO PALOMITAS","PAQUETE C/1000",100,10,62.01,"DISPONE","Bolsa_de_residuos","BOLSA GLASINE ENCERADA TAMAÑO PALOMITAS",0.02,0,2023,"Diciembre"]
[37266,"COCINA","GUANTES DE LATEX ESTERIL C/ 100 PZA","CAJA C/1000",100,21,255.25,"DISPONE","Equipo_sanitario","Guantes de latex desechable",6.0000000000000001E-3,"OTROS",2023,"Diciembre"]
[84115,"ÁREAS PÚBLICAS","BOLSA NEGRA P/BASURA 60X90 CM CAL 200 K","PAQUETE 14 KG",100,100,34.979999999999997,"DISPONE","Bolsa_de_residuos","BOLSA NEGRA P/BASURA 60X90 CM CAL 200 K",3.4000000000000002E-2,0,2023,"Diciembre"]
[60772,"OTROS","BIO PLATO OSTRA 8X3X3 C/3 DIVISION C/20 ","CAJ ",200,0,594.23111111111109,"DISPOSICIÓN","Platos_y_charolas","BIO PLATO OSTRA 8X3X3 C/3 DIVISION C/20 ",0.08,0,2023,"Diciembre"]
[67288,"OTROS","PLATO OSTRA BIO 22.86 X 15.24           ","PZA ",1,0,5.39,"DISPOSICIÓN","Platos_y_charolas","PLATO OSTRA BIO 22.86 X 15.24           ",8.3000000000000004E-2,0,2023,"Diciembre"]
[67286,"OTROS","CHAROLA BIO 3 DIVISIONES 25.4 X 19.05   ","PZA ",1,0,5.2176,"DISPOSICIÓN","Platos_y_charolas","CHAROLA BIO 3 DIVISIONES 25.4 X 19.05   ",2.1999999999999999E-2,0,2023,"Diciembre"]
[67289,"OTROS","PLATO BIO P/ HAMBURGUESA 15.24 X 15.24  ","PZA ",1,0,2.151023529411765,"DISPOSICIÓN","Platos_y_charolas","PLATO BIO P/ HAMBURGUESA 15.24 X 15.24  ",0.01,0,2023,"Diciembre"]

{"sheet":"FICHAS TÉCNICAS DE PLÁSTICOS","index":8,"n_rows":150,"n_cols":6,"rows_kept":150,"cut":false,"hidden":false,"merged":[[2,3,2,5],[1,1,1,5],[3,1,3,5]]}
[]
[null,"FICHAS TÉCNICAS DE PLÁSTICOS"]
[]
[null,"En esta hoja, se muetran las características de los productos de plástico que pueden encontrarse dentro de la organización. Estos datos son utilizados para complementar la información de línea base. Es importante considerar que son ejemplos que se pueden utilizar cuando no se realiza el pesaje directo de los productos ni se identifica el tipo de plástico."]
[]
[null,"Categoría","Nombre de categoría","Descripción","PESO POR UNIDAD EN KILOGRAMOS","TIPO DE PLÁSTICO"]
[null,"Acceso_e_identificación",{"$f":"SUBSTITUTE(B7,\"_\",\" \")","v":"Acceso e identificación"},"TARJETA ELECTRONICA P/HABTACIONES NARANJA CON LOGO",5.0000000000000001E-3,"PVC"]
[null,"Acceso_e_identificación","Acceso e identificación","Brazalete",2E-3,"PP"]
[null,"Agua_embotellada","Agua embotellada","Botella para agua 330 ml",1.4999999999999999E-2,"PET"]
[null,"Agua_embotellada","Agua embotellada","Botella para agua 400 ml ",1.4999999999999999E-2,"PET"]
[null,"Agua_embotellada","Agua embotellada","Botella para agua 500 ml",1.4999999999999999E-2,"PET"]
[null,"Agua_embotellada",{"$f":"SUBSTITUTE(B12,\"_\",\" \")","v":"Agua embotellada"},"AGUA E PURA DE 600 MIL C/12 BOTELLAS    ",2.3E-2]
[null,"Agua_embotellada","Agua embotellada","Botella para agua 1 l",2.4E-2,"PET"]
[null,"Agua_embotellada","Agua embotellada","AGUA EN GARRAFON 19 LT                  ",0.75]
[null,"Agua_embotellada","Agua embotellada","Botella para agua 1.5 l",0.36,"PET"]
[null,"Agitadores","Agitadores","Agitadores 13.9 cm",8.0000000000000004E-4,"OTHER/PP"]
[null,"Amenidades_de_baño",{"$f":"SUBSTITUTE(B17,\"_\",\" \")","v":"Amenidades de baño"},"Envase para crema de afeitar 8 ml",1.6000000000000001E-4,"OTHER/HDPE"]
[null,"Amenidades_de_baño",{"$f":"SUBSTITUTE(B18,\"_\",\" \")","v":"Amenidades de baño"},"Envase para acondicionador 75 ml",1.4999999999999999E-2,"HDPE"]
[null,"Amenidades_de_baño","Amenidades de baño","Envase para acondicionador 60 ml",0.01,"HDPE"]
[null,"Amenidades_de_baño","Amenidades de baño","Envase para acondicionador 4 oz",2.3700000000000001E-3,"HDPE"]
[null,"Amenidades_de_baño",{"$f":"SUBSTITUTE(B21,\"_\",\" \")","v":"Amenidades de baño"},"Envase para gel 60 ml",0.01,"HDPE"]
[null,"Amenidades_de_baño","Amenidades de baño","Envase para gel de baño 75 ml",1.4999999999999999E-2,"HDPE"]
[null,"Amenidades_de_baño","Amenidades de baño","Envase para gel de baño 4 oz",2.3700000000000001E-3,"HDPE"]
[null,"Amenidades_de_baño","Amenidades de baño","Envase para labial 2 g",1E-3,"HDPE"]
[null,"Amenidades_de_baño","Amenidades de baño","Envase para loción corporal 60ml ",0.01,"HDPE"]
[null,"Amenidades_de_baño","Amenidades de baño","Envase para loción corporal 75 ml",1.4999999999999999E-2,"HDPE"]
[null,"Amenidades_de_baño",{"$f":"SUBSTITUTE(B27,\"_\",\" \")","v":"Amenidades de baño"},"B9500BL040S CREMA CORPORAL DREAMS G&S 1",0.03]
[null,"Amenidades_de_baño","Amenidades de baño","B9500CS040S SHAMPOO ACONDICIONADOR DREA",0.03]
[null,"Amenidades_de_baño","Amenidades de baño","B9500SG040S GEL DE BAÑO DREAMS G&S 100/",0.03]
[null,"Amenidades_de_baño","Amenidades de baño","SHAMPOO Y ACONDICIONADOR DE 1.18 OZ",0.01]
[null,"Amenidades_de_baño","Amenidades de baño","GEL ALCOHOL SANITIZANTE 60 ML CON LOGO",0.01]
[null,"Amenidades_de_baño","Amenidades de baño","Envase para loción corporal 4 oz",4.0000000000000001E-3,"OTHER"]
[null,"Amenidades_de_baño","Amenidades de baño","Envase para shampoo 75 ml",1.4999999999999999E-2,"HDPE"]
[null,"Amenidades_de_baño","Amenidades de baño","Envase para shampoo 60 ml",0.01,"HDPE"]
[null,"Amenidades_de_baño",{"$f":"SUBSTITUTE(B35,\"_\",\" \")","v":"Amenidades de baño"},"89330 - PAÑUELOS FACIALES KLEENEX BLAN",2E-3]
[null,"Amenidades_de_baño","Amenidades de baño","90498 - HIGIENICO TRAD KLEENEX COTONELL",0.05]
[null,"Amenidades_de_baño",{"$f":"SUBSTITUTE(B37,\"_\",\" \")","v":"Amenidades de baño"},"Envase de crema para manos 75 ml",1.4999999999999999E-2]
[null,"Bolsa_de_residuos","Bolsa de residuos","Bolsa para basura 24 x 24 ",0.02,"LDPE"]
[null,"Bolsa_de_residuos","Bolsa de residuos","Bolsa para basura 50 x 70",0.03,"LDPE"]
[null,"Bolsa_de_residuos","Bolsa de residuos","Bolsa para basura 60 x 90 ",0.03,"LDPE"]
[null,"Bolsa_de_residuos","Bolsa de residuos","Bolsa para basura 90 x 120",0.03,"LDPE"]
[null,"Bolsa_de_residuos","Bolsa de residuos","Bolsa de plástico color negro (para residuos) 50 x 70 ",2.4799999999999999E-2,"LDPE"]
[null,"Bolsa_de_residuos","Bolsa de residuos","Bolsa de plástico color transparente 90 x 1.20",2.1000000000000001E-2,"LDPE "]
[null,"Bolsa_de_residuos","Bolsa de residuos","Bolsa de plástico natural 50 x 75",0.01,"LDPE "]
[null,"Bolsa_de_residuos","Bolsa de residuos","Bolsa de plástico natural 56 x 50",0.01,"HDPE"]
[null,"Bolsa_de_residuos","Bolsa de residuos","Bolsa de plástico natural 50 x 70",2.4799999999999999E-2,"LDPE "]
[null,"Bolsa_de_residuos",{"$f":"SUBSTITUTE(B47,\"_\",\" \")","v":"Bolsa de residuos"},"Bolsa Oxobiodegradable",5.5E-2,"OXOBIODEGRADABLE"]
[null,"Bolsa_de_residuos",{"$f":"SUBSTITUTE(B48,\"_\",\" \")","v":"Bolsa de residuos"},"BOLSA NEGRA P/BASUR 90X1.20 LARGO CAL20",0.05]
[null,"Bolsa_de_residuos","Bolsa de residuos","BOLSA TRANSP 40X60 CM 200 P/BASURA",2.7E-2]
[null,"Bolsa_de_residuos","Bolsa de residuos","BOLSA TRANSP DE 1 X 1.2 MT CAL 300 P/HI",0.05]
[null,"Bolsa_de_residuos","Bolsa de residuos","BOLSA GLASINE ENCERADA TAMAÑO PALOMITAS",0.02]
[null,"Bolsa_de_residuos",{"$f":"SUBSTITUTE(B52,\"_\",\" \")","v":"Bolsa de residuos"},"BOLSA NEGRA P/BASURA 60X90 CM CAL 200 K",3.4000000000000002E-2]
[null,"Bolsa_de_residuos","Bolsa de residuos","Bolsa oxobiodegradable color negro, cal. 90",5.5500000000000001E-2,"LDPE"]
[null,"Bolsa_de_residuos","Bolsa de residuos","Bolsa oxotransparente",6.9000000000000008E-3,"OXOBIODEGRADABLE"]
[null,"Bolsa_para_acarreo","Bolsa para acarreo","Bolsa de color blanco 25 x 35 ",2.222E-2,"LDPE"]
[null,"Bolsa_para_acarreo","Bolsa para acarreo","Bolsa souvenir 25 x 35",2.2200000000000001E-2,"HDPE"]
[null,"Bolsas_oxodegradables","Bolsas oxodegradables","Bolsa Oxobiodegradable 60 x 90",5.5E-2,"OXOBIODEGRADABLE LDPE"]
[null,"Bolsas_oxodegradables","Bolsas oxodegradables","Bolsa oxotransparente 90 x 120",6.9000000000000008E-3,"OXOBIODEGRADABLE LDPE"]
[null,"Bolsas_para_lavandería_tintorería","Bolsas para lavandería tintorería","Bolsa para lavandería 40 x 60",2.7E-2,"LDPE "]
[null,"Bolsas_para_lavandería_tintorería","Bolsas para lavandería tintorería","Bolsa lavandería transparente 90 x 120",0.03,"LDPE"]
[null,"Bolsas_para_lavandería_tintorería","Bolsas para lavandería tintorería","Bolsa para tintorería",0.02,"LDPE"]
[null,"Bolsas_para_porcionar","Bolsas para porcionar","Bolsa de celofán 8.5 x 21 x 1",5.1999999999999998E-2,"PP"]
[null,"Bolsas_para_porcionar","Bolsas para porcionar","Bolsa de celofán 10 x 20 ",0.05,"PP"]
[null,"Bolsas_para_porcionar","Bolsas para porcionar","Bolsa chica 50 x 75",5.2740000000000002E-2,"LDPE "]
[null,"Bolsas_para_porcionar","Bolsas para porcionar","Bolsa para alimentos 50 x 70",3.0300000000000001E-2,"LDPE"]
[null,"Bolsas_para_porcionar","Bolsas para porcionar","Bolsa para alimentos 60 x 90",0.06,"LDPE"]
[null,"Bolsas_para_porcionar","Bolsas para porcionar","Bolsa para alimentos 90 x 120",6.9000000000000008E-3,"LDPE"]
[null,"Bebidas_carbonatadas","Bebidas carbonatadas","Botella de 335 ml",0.02,"PET"]
[null,"Calzado",{"$f":"SUBSTITUTE(B69,\"_\",\" \")","v":"Calzado"},"Pantuflas",0.2,"OTROS"]
[null,"Contenedores","Contenedores","Botella de PET presentación 500 ml",0.03,"PET"]
[null,"Contenedores","Contenedores","Botella de PET presentación  1 litro",3.5999999999999997E-2,"PET"]
[null,"Contenedores","Contenedores","Contenedor transparente bisagra 32 oz mediano ",0.02,"PET/PS"]
[null,"Contenedores","Contenedores","Contenedor transparente bisagra 14 x 14 pequeño",1.4E-2,"PET/PS"]
[null,"Contenedores","Contenedores","Contenedor unicel almeja sin o con 3 div 8x8",1.35E-2,"PS"]
[null,"Contenedores","Contenedores","Contenedor unicel almeja sin o con 3 div 7x7",1.2E-2,"PS"]
[null,"Contenedores","Contenedores","Contenedor unicel tipo vaso 32 oz",0.12,"PS"]
[null,"Contenedores","Contenedores","Contenedor unicel hamburguesa 6x6",6.4999999999999997E-3,"PS"]
[null,"Contenedores","Contenedores","Galón HDPE de 3.7 litros",0.11,"HDPE"]
[null,"Contenedores","Contenedores","Hielera de unicel tamaño chica 28x20.5x20",0.31900000000000001,"PS"]
[null,"Contenedores",{"$f":"SUBSTITUTE(B80,\"_\",\" \")","v":"Contenedores"},"Hielera de unicel tamaño grande 61x40.5x36.5",0.4,"PS"]
[null,"Contenedores","Contenedores","Hielera de unicel tamaño mediana 36.5x26.5x26.5",0.33700000000000002,"PS"]
[null,"Contenedores",{"$f":"SUBSTITUTE(B82,\"_\",\" \")","v":"Contenedores"},"Ramekin 2 oz",2.0000000000000001E-4,"PP"]
[null,"Contenedores",{"$f":"SUBSTITUTE(B83,\"_\",\" \")","v":"Contenedores"},"Ramekin 4 oz",4.3E-3,"PP"]
[null,"Contenedores",{"$f":"SUBSTITUTE(B84,\"_\",\" \")","v":"Contenedores"},"Ramekin 5 oz",5.0000000000000001E-3,"PP"]
[null,"Cubertería_desechable","Cubertería desechable","Cuchara nevera (de colores variados) ",1.06E-3,"PP"]
[null,"Cubertería_desechable","Cubertería desechable","Cucharas desechables color blanco",3.0000000000000001E-3,"PS"]
[null,"Cubertería_desechable",{"$f":"SUBSTITUTE(B87,\"_\",\" \")","v":"Cubertería desechable"},"JUEGO DE CUBIERTOS DESCECHABLES (TENEDO ",2.2000000000000001E-3]
[null,"Cubertería_desechable","Cubertería desechable","Cuchillo desechable",2.3500000000000001E-3,"PS"]
[null,"Cubertería_desechable","Cubertería desechable","Tenedor desechable ",2.2000000000000001E-3,"PS"]
[null,"Equipo_sanitario",{"$f":"SUBSTITUTE(B90,\"_\",\" \")","v":"Equipo sanitario"},"Cubrebocas",0.01,"OTROS"]
[null,"Equipo_sanitario","Equipo sanitario","Guantes de latex desechable",6.0000000000000001E-3,"OTROS"]
[null,"Equipo_sanitario","Equipo sanitario","Guante de latex satinado / rojo",6.4000000000000001E-2,"OTROS"]
[null,"Equipo_sanitario","Equipo sanitario","Micas para cara t carta",0.04,"OTROS"]
[null,"Equipo_sanitario","Equipo sanitario","Mandil de hule blanco ",0.2,"OTROS"]
[null,"Equipo_sanitario","Equipo sanitario","Mandil unitalla",0.6,"PVC / PP"]
[null,"Otras_bebidas",{"$f":"SUBSTITUTE(B96,\"_\",\" \")","v":"Otras bebidas"},"CONCENTRADO JUGO PIÑA 3.785 L",7.0000000000000007E-2]
[null,"Otras_bebidas","Otras bebidas","CONCENTRADO P/COCTEL DAIQUIRI MANGO 3.7",7.0000000000000007E-2]
[null,"Otras_bebidas","Otras bebidas","CONCENTRADO PIÑA COLADA DELLI 3.785 DEL",7.0000000000000007E-2]
[null,"Otras_bebidas","Otras bebidas","Botella de jugo  600 ml",1.7999999999999999E-2,"PET"]
[null,"Otras_bebidas","Otras bebidas","Botella de té 600 ml",1.7999999999999999E-2,"PET"]
[null,"Kit_de_café","Kit de café","Cápsula para café ",3.5999999999999999E-3,"PP"]
[null,"Kit_de_café","Kit de café","Envase para sustituto de crema presentación 15 ml",1.2E-2,"PS"]
[null,"Kit_de_café","Kit de café","Crema para café polvo",5.0000000000000001E-4,"OTROS"]
[null,"Kit_de_café","Kit de café","Sobre azucar morena",5.9999999999999995E-4,"OTROS"]
[null,"Kit_de_café",{"$f":"SUBSTITUTE(B105,\"_\",\" \")","v":"Kit de café"},"CAFE DECAF PQT/C/50 PZA 2 GR",1E-3]
[null,"Kit_de_café",{"$f":"SUBSTITUTE(B106,\"_\",\" \")","v":"Kit de café"},"COFFE KIT REGULAR P/4 TAZAS C/CAFE/AZUC",1E-3]
[null,"Kit_de_café","Kit de café","Sobre azucar blanca",5.0000000000000001E-4,"OTROS"]
[null,"Kit_de_café","Kit de café","Sobre sustituto azucar ",2.5000000000000001E-4,"OTROS"]
[null,"Kit_de_café","Kit de café","Sobre café  negro",5.0000000000000001E-4,"OTROS"]
[null,"Popotes_o_pajillas","Popotes o pajillas","Popote",1.2999999999999999E-3,"PP"]
[null,"Productos_porcionados","Productos porcionados","Sobre de mayonesa 8 g",4.0000000000000002E-4,"OTROS"]
[null,"Productos_porcionados","Productos porcionados","Sobre para mermelada de varios sabores 14 g",4.0000000000000002E-4,"OTROS"]
[null,"Productos_porcionados","Productos porcionados","Sobre de mostaza",4.0000000000000002E-4,"OTROS"]
[null,"Productos_porcionados","Productos porcionados","Sobre de salsa cátsup 8 g",4.0000000000000002E-4,"OTROS"]
[null,"Productos_porcionados","Productos porcionados","Mantequilla porción individual",1E-3,"OTROS"]
[null,"Productos_porcionados","Productos porcionados","Sobre para aderezo y condimentos 1 pza",4.0000000000000001E-3,"OTHER"]
[null,"Platos_y_charolas","Platos y charolas","Plato de plástico blanco o color del 2 ó 3 ó 5",1.4E-2,"PS"]
[null,"Platos_y_charolas","Platos y charolas","Plato térmico unicel #855  o taquera",3.0999999999999999E-3,"PS"]
[null,"Platos_y_charolas","Platos y charolas","Plato térmico unicel térmico liso  ancho 15 cm",2.3E-3,"PS"]
[null,"Platos_y_charolas","Platos y charolas","Charola términca unicel 66 o 15x15",2.3E-3,"PS"]
[null,"Platos_y_charolas","Platos y charolas","Plato térmico unicel hondo  26 cm ancho",3.8E-3,"PS"]
[null,"Platos_y_charolas",{"$f":"SUBSTITUTE(B122,\"_\",\" \")","v":"Platos y charolas"},"BIO PLATO OSTRA 8X3X3 C/3 DIVISION C/20 ",0.08]
[null,"Platos_y_charolas","Platos y charolas","PLATO OSTRA BIO 22.86 X 15.24           ",8.3000000000000004E-2]
[null,"Platos_y_charolas","Platos y charolas","CHAROLA BIO 3 DIVISIONES 25.4 X 19.05   ",2.1999999999999999E-2]
[null,"Platos_y_charolas","Platos y charolas","PLATO BIO P/ HAMBURGUESA 15.24 X 15.24  ",0.01]
[null,"Platos_y_charolas","Platos y charolas","Plato térmico unicel 10.5x22 o hotdog",2.8999999999999998E-3,"PS"]
[null,"Protección_de_alimentos",{"$f":"SUBSTITUTE(B127,\"_\",\" \")","v":"Protección de alimentos"},"Papel Film / Vitafilm",3.75,"PVC"]
[null,"Protección_de_alimentos",{"$f":"SUBSTITUTE(B128,\"_\",\" \")","v":"Protección de alimentos"},"VITAFILM DE 18\" 1500 MTS",5]
[null,"Protección_de_alimentos","Protección de alimentos","PAPEL ENCERADO C/1000 PZA FALTA MEDIDA",5]
[null,"Tapas_desechables","Tapas desechables","Tapa para vaso de 12 a 24 oz ",4.0000000000000001E-3,"PET"]
[null,"Tapas_desechables",{"$f":"SUBSTITUTE(B131,\"_\",\" \")","v":"Tapas desechables"},"TAPA PARA VASO DE CAFE DE 8 OZ",1E-3]
[null,"Tapas_desechables",{"$f":"SUBSTITUTE(B132,\"_\",\" \")","v":"Tapas desechables"},"TAPA DOMO PLA 16 OZ BIODEGRADABLE       ",3.0000000000000001E-3]
[null,"Tapas_desechables",{"$f":"SUBSTITUTE(B133,\"_\",\" \")","v":"Tapas desechables"},"TAPA P/ CHAROLA BIO PLA 25.4 X 19.06 4  ",2.1999999999999999E-2]
[null,"Tapas_desechables","Tapas desechables","Tapa para vaso tipo cúpula o Frapé ",3.5000000000000001E-3,"PET"]
[null,"Tapas_desechables","Tapas desechables","Tapa para café negra 12 a 20 oz",3.5000000000000001E-3,"PS"]
[null,"Vasos_desechables",{"$f":"SUBSTITUTE(B136,\"_\",\" \")","v":"Vasos desechables"},"Vaso unicel 8 oz",2.8E-3,"PS"]
[null,"Vasos_desechables","Vasos desechables","Vaso unicel 10 oz",3.8999999999999998E-3,"PS"]
[null,"Vasos_desechables","Vasos desechables","Vaso rojo plástico de  16 oz.",7.6E-3,"PS"]
[null,"Vasos_desechables","Vasos desechables","Vaso plástico rojo 20 oz",0.01,"PS"]
[null,"Vasos_desechables","Vasos desechables","Vaso transparente  20 oz",1.7000000000000001E-2,"PET"]
[null,"Vasos_desechables","Vasos desechables","Vaso transparente de 10 oz.",4.1399999999999996E-3,"PP"]
[null,"Vasos_desechables","Vasos desechables","Vaso transparente  16 oz",4.81E-3,"PET"]
[null,"Vasos_desechables","Vasos desechables","Vaso  color 20 oz",1.7000000000000001E-2,"PS"]
[null,"Vasos_desechables","Vasos desechables","Vaso  color 16 oz",4.81E-3,"PS"]
[null,"Vasos_desechables","Vasos desechables","Vaso para café de 4 oz",3.2799999999999999E-3,"BIODEGRADABLE "]
[null,"Vasos_desechables","Vasos desechables","Vaso para café de 8 oz",6.7300000000000007E-3,"BIODEGRADABLE "]
[null,"Vasos_desechables","Vasos desechables","Vaso para café sin asa",6.7300000000000007E-3,"BIODEGRADABLE"]
[null,"Vasos_desechables","Vasos desechables","VASO PLA 16 OZ BIODEGRADABLE            ",0.01,"BIODEGRADABLE"]
[null,"Vasos_desechables",{"$f":"SUBSTITUTE(B149,\"_\",\" \")","v":"Vasos desechables"},"VASO 8 ONZAS PAPEL ENCERADO C/1000PZA",1,"Papel"]
[null,"Vasos_desechables","Vasos desechables","Vaso para frappé de 16 oz.",1.1050000000000001E-2,"PP"]